{"text_format":"1","workbook":"xlsx","n_sheets":10,"sheets":["Narrative","Budget","Transferability","GEPA","Private Schools","General Assurances","Program Specific Assurances","Prefills","Sheet1","Eisenhower"],"not_rendered":{"charts":0,"images":2,"macros":1,"external_links":6,"defined_names":456,"comments":2,"pivot_tables":0},"unopened":[],"bounds":{"document_bytes":16777216,"sheet_cells":100000,"rows_first":2000,"rows_last":500,"rows_between":2000,"halvings":0,"cell_chars":16384,"cell_head_chars":4096},"cells_cut":0,"cells_raw":0,"read":"whole","date_system":"1900"}

{"sheet":"Narrative","index":0,"n_rows":256,"n_cols":16,"rows_kept":256,"cut":false,"hidden":false,"merged":[[255,0,255,15],[241,0,241,15],[228,0,228,15],[44,2,44,3],[145,0,145,15],[243,0,243,15],[230,0,230,15],[232,0,232,15],[233,0,233,15],[235,0,235,15],[237,0,237,15],[234,0,234,15],[229,0,229,15],[65,12,65,15],[66,7,66,11],[214,0,214,15],[212,1,212,15],[213,1,213,15],[215,0,215,15],[179,0,179,15],[143,0,143,15],[246,0,246,15],[183,0,183,15],[182,0,182,15],[169,0,169,15],[122,0,122,15],[123,0,123,15],[178,0,178,15],[159,0,159,15],[121,0,121,15],[125,0,125,15],[63,12,63,15],[36,0,36,15],[38,0,38,15],[57,0,57,15],[44,0,44,1],[136,0,136,15],[75,7,76,15],[78,7,79,15],[124,0,124,15],[134,0,134,15],[127,0,127,15],[115,0,115,15],[120,0,120,15],[81,7,82,15],[84,7,85,15],[87,7,88,15],[90,7,91,15],[138,0,138,15],[140,0,140,15],[142,0,142,15],[128,0,128,15],[69,7,69,11],[69,12,69,15],[66,12,66,15],[67,7,67,11],[67,12,67,15],[68,7,68,11],[93,7,94,15],[96,7,97,15],[117,0,117,15],[111,0,111,15],[113,0,113,15],[129,0,129,15],[102,7,103,15],[135,0,135,15],[130,0,130,15],[105,7,106,15],[99,7,100,15],[0,12,0,15],[1,13,1,14],[3,13,3,14],[5,14,5,15],[7,13,7,14],[177,0,177,15],[17,13,17,15],[18,0,19,6],[18,7,18,15],[19,7,19,15],[20,0,20,15],[22,0,22,15],[9,14,9,15],[16,0,16,6],[15,0,15,6],[17,0,17,6],[17,7,17,8],[15,9,15,15],[16,7,16,8],[46,13,46,15],[47,13,47,15],[132,0,132,15],[133,0,133,15],[59,6,59,11],[254,0,254,15],[238,0,238,15],[245,0,245,15],[247,0,247,15],[248,0,248,15],[251,0,251,15],[250,0,250,15],[244,0,244,15],[253,0,253,15],[240,0,240,15],[249,0,249,15],[131,0,131,15],[54,0,54,15],[55,0,55,15],[72,0,72,15],[74,0,74,15],[70,0,70,15],[52,0,52,15],[17,9,17,11],[23,0,23,15],[44,4,44,12],[46,4,46,12],[47,8,47,12],[21,0,21,15],[24,0,24,15],[26,0,26,15],[27,1,27,3],[31,0,31,5],[31,7,31,14],[45,13,45,15],[59,12,59,15],[62,0,62,4],[61,0,61,15],[58,12,58,15],[29,0,29,5],[29,7,29,14],[45,0,45,1],[45,2,45,3],[68,12,68,15],[59,0,59,4],[14,0,14,15],[64,7,64,11],[64,12,64,15],[65,7,65,11],[33,0,33,5],[33,7,33,14],[63,0,68,4],[63,5,68,5],[63,7,63,11],[171,0,171,15],[172,0,172,15],[1,2,1,11],[3,2,3,11],[2,2,2,11],[4,2,4,11],[6,2,6,11],[9,2,9,11],[8,2,8,11],[7,2,7,11],[10,2,10,11],[11,2,11,11],[12,2,12,11],[108,7,109,15],[62,6,62,11],[62,12,62,15],[44,13,44,15],[42,0,42,15],[45,4,45,12],[40,0,40,15],[15,7,15,8],[16,9,16,15],[58,0,58,4],[58,6,58,11],[146,0,146,15],[154,0,154,15],[163,0,163,15],[141,0,141,15],[147,0,147,15],[148,0,148,15],[149,0,149,15],[155,0,155,15],[157,0,157,15],[156,0,156,15],[152,0,152,15],[144,0,144,15],[158,0,158,15],[160,0,160,15],[161,0,161,15],[162,0,162,15],[184,0,184,15],[150,0,150,15],[211,0,211,15],[206,0,206,15],[207,0,207,15],[208,0,208,15],[209,0,209,15],[188,0,188,15],[189,0,189,15],[200,0,200,15],[205,0,205,15],[187,0,187,15],[197,0,197,15],[186,0,186,15],[202,0,202,15],[170,0,170,15],[181,0,181,15],[180,0,180,15],[165,0,165,15],[167,0,167,15],[175,0,175,15],[173,0,173,15],[174,0,174,15],[168,0,168,15],[236,0,236,15],[198,0,198,15],[199,0,199,15],[191,0,191,15],[192,0,192,15],[193,0,193,15],[194,0,194,15],[195,0,195,15],[196,0,196,15],[218,0,218,15],[224,0,224,15],[223,0,223,15],[217,0,217,15],[226,0,226,15],[227,0,227,15],[219,0,219,15],[220,0,220,15],[222,0,222,15],[201,0,201,15],[204,0,204,15],[231,0,231,15],[225,0,225,15],[216,0,216,15]]}
[null,null,null,null,null,null,null,null,null,null,null,null,"Place an \"X\" by the applicable response."]
[null,null,"Virginia Department of Education",null,null,null,null,null,null,null,null,null,"X"," Original "]
[null,null,"Office of ESEA Programs"]
[null,null,"P. O. Box 2120",null,null,null,null,null,null,null,null,null,null,"Revision :   "]
[null,null,"Richmond, Virginia 23218-2120",null,null,null,null,null,null,null,null,null,null,"Revision #"]
[null,null,null,null,null,null,null,null,null,null,null,null,null,"Date:"]
[null,null,"A.  COVER PAGE",null,null,null,null,null,null,null,null,null,null,"Explain"]
[null,null,"Title IV, Part A, Student Support and Academic Enrichment Grants",null,null,null,null,null,null,null,null,null,null,"Amendment:"]
[null,null,null,null,null,null,null,null,null,null,null,null,null,"Amendment # "]
[null,null,"2020-2021 Individual Program Application",null,null,null,null,null,null,null,null,null,null,"Date:       "]
[null,null,"Due by July 1, 2020",null,null,null,null,null,null,null,null,null,null,"Explain"]
[null,null,"Elementary and Secondary Education Act of 1965 (ESEA), as amended by"]
[null,null,"the Every Student Succeeds Act of 2015 (ESSA), P.L. 114-95"]
[]
["To be Completed by School Division"]
["Applicant  (Legal Name of Agency)",null,null,null,null,null,null,"Division Number",null,"Title IV, Part A, Coordinator "]
["ALBEMARLE COUNTY PUBLIC SCHOOLS",null,null,null,null,null,null,{"$f":"IF(ISBLANK(A17),\" \",VLOOKUP(A17,Prefills!A2:B148,2))","v":2},null,"Debora Collins"]
["Mailing Address (Street, City or Town, Zip Code)",null,null,null,null,null,null,"Phone:",null,"434-296-5820",null,null,"Ext:"]
["401 McIntire Road\nCharlottesville, VA  22902",null,null,null,null,null,null,"Email:"]
[null,null,null,null,null,null,null,"dcollins@k12albemarle.org"]
[]
["LOCAL EDUCATIONAL AGENCY CERTIFICATION"]
["Use of Funds:  The applicant designated above applies for an allocation of federal assistance as appropriated under ESEA.  Funds are available to support local education reform efforts that are consistent with statewide education reform efforts to: 1) provide funding to implement promising education reform programs and school improvement programs based on evidence-based research;  2) provide a continuing source of innovative and educational improvement;  3) meet the educational needs of all students; and 4) develop and implement education programs to improve student achievement and teacher performance. \n\nSpecific uses of funds for this application are found in the \"Guidelines, Instructions, and Assurances\" document."]
[]
["Assurances:  The local educational agency assures that the Title IV, Part A, program will be administered and implemented in compliance with all applicable statutes, regulations, policies, and program plans.  Additionally, the local educational agency agrees by signing below to implement the general and program specific assurances located in the application.  The assurances and signed cover page are to be retained at the division level.  "]
[]
["Certification:  We hereby certify that, to the best of our knowledge, the information contained in this application is correct.  The agency named above has authorized us as its representatives to file this application, and such action is recorded in the minutes of the School Board meeting held "]
["on","2020-05-28",null,null,"."]
[]
[]
["Superintendent’s Signature",null,null,null,null,null,null,"Board Chairperson’s Signature"]
["Matthew S. Haas",null,null,null,null,null,null,"Jonno Alcaro"]
["Superintendent’s Name",null,null,null,null,null,null,"Board Chairperson’s Name"]
["2020-06-11",null,null,null,null,null,null,"2020-06-11"]
["Date",null,null,null,null,null,null,"Date"]
[]
["Application Submission, Approval, and LEA Expenditure of Funds: This application for Federal Funds is due by July 1, 2020.  Revisions and Amendments should be submitted in a timely manner.  Please note, in order for the funds to be expendable, the electronic application must be received at the Virginia Department of Education through the file submission process of the Online Management of Education Grant Awards (OMEGA) system.  "]
[]
[]
[]
["Page 1"]
[null,null,null,null,"School Division:",null,{"$f":"$A$17","v":"ALBEMARLE COUNTY PUBLIC SCHOOLS"},null,null,null,null,null,"Division Number:",null,null,{"$f":"$H$17","v":2}]
["APPLICATION INFORMATION"]
[]
["2019 - 2020\nAllocation",null,"2019 - 2020\nConsolidated\nYes or No",null,"Program",null,null,null,null,null,null,null,null,"2020-2021\nAllocation Total"]
[{"$f":"IF(ISBLANK($A$17),\" \",VLOOKUP($P$42,Prefills!AX3:BA142,4))","v":113535.06},null,"No",null,"Title IV, Part A, Student Support and Academic Enrichment Grant",null,null,null,null,null,null,null,null,113535]
[null,null,null,null,"Transferability (funds transferred out of Title IVA)",null,null,null,null,null,null,null,null,{"$f":"M70","v":113535}]
[null,null,null,null,null,null,null,null,"Total Allocation Available for Title IV, Part A",null,null,null,null,{"$f":"N46-N47","v":0}]
[]
[]
[]
[]
["TRANSFERABILITY"]
[]
["Section 5103(b)(2) of the Every Student Succeeds Act allows LEAs to transfer funds between certain qualifying federal programs. If funds are transferred into or out of the Title II, Part A, program, PRIOR APPROVAL IS REQUIRED, and a separate Transferability approval form must be submitted. The transfer request form is available at "]
["Transfer Request Form"]
[]
["1) If funds are to be transferred INTO Title IV, Part A, complete Section A."]
["A.  Program from which funds will be transferred",null,null,null,null,null,"Program TO which funds will be transferred:",null,null,null,null,null,"Amount"]
["Title II, Part A",null,null,null,null,"TO","Title IV, Part A, Student Support and Academic Enrichment Grant"]
[]
["2) Place an \"X\" next to the federal programs you are requesting funds to be transferred to."]
["B.  Program from which funds will be transferred:",null,null,null,null,null,"Select program(s) TO which funds will be transferred:",null,null,null,null,null,"Amount"]
["Title IV, Part A",null,null,null,null,"TO",null,"Title I, Part A",null,null,null,null,75000]
[null,null,null,null,null,null,null,"Title I, Part C"]
[null,null,null,null,null,null,null,"Title I, Part D"]
[null,null,null,null,null,null,null,"Title II, Part A"]
[null,null,null,null,null,null,null,"Title III, Part A",null,null,null,null,38535]
[null,null,null,null,null,null,null,"Title V, Part B"]
[null,null,null,null,null,null,null,"Total",null,null,null,null,{"$f":"SUM(M64:P69)","v":113535}]
["Page 2"]
[null,null,null,null,"School Division:",null,{"$f":"$A$17","v":"ALBEMARLE COUNTY PUBLIC SCHOOLS"},null,null,null,null,null,"Division Number:",null,null,{"$f":"$H$17","v":2}]
["REVISIONS AND AMENDMENTS"]
[]
["Place an \"X\" in the first box indicating whether it is a revision or amendment. Enter the date of the revision or amendment.  Indicate the tab(s) that have been changed. Provide a concise description of changes (for example, \"Programmatic Changes--purchase of additional reading materials, object code 6000; Budget Changes--decreased travel budget in object code 5000 and increased materials to purchase additional reading materials in object code 6000\"). When completing an amendment, changes to the program overview may be reflected as additions at the end of the narrative.\n\nNOTE: Any changes to the program budget should first be reflected in an amended application, followed by a budget transfer within 7 business days of approval of the amended application. Budget transfers will not be accepted without an approved amended application reflecting budget changes."]
["1.","Revision",null,null,null,"Date:"]
[null,"Amendment",null,null,null,"Date:"]
[]
["2.","Revision",null,null,null,"Date:"]
[null,"Amendment",null,null,null,"Date:"]
[]
["3.","Revision",null,null,null,"Date:"]
[null,"Amendment",null,null,null,"Date:"]
[]
["4.","Revision",null,null,null,"Date:"]
[null,"Amendment",null,null,null,"Date:"]
[]
["5.","Revision",null,null,null,"Date:"]
[null,"Amendment",null,null,null,"Date:"]
[]
["6.","Revision",null,null,null,"Date:"]
[null,"Amendment",null,null,null,"Date:"]
[]
["7.","Revision",null,null,null,"Date:"]
[null,"Amendment",null,null,null,"Date:"]
[]
["8.","Revision",null,null,null,"Date:"]
[null,"Amendment",null,null,null,"Date:"]
[]
["9.","Revision",null,null,null,"Date:"]
[null,"Amendment",null,null,null,"Date:"]
[]
["10.","Revision",null,null,null,"Date:"]
[null,"Amendment",null,null,null,"Date:"]
[]
["11.","Revision",null,null,null,"Date:"]
[null,"Amendment",null,null,null,"Date:"]
[]
["12.","Revision",null,null,null,"Date:"]
[null,"Amendment",null,null,null,"Date:"]
[]
["Page 3"]
[null,null,null,null,"School Division:",null,{"$f":"$A$17","v":"ALBEMARLE COUNTY PUBLIC SCHOOLS"},null,null,null,null,null,"Division Number:",null,null,{"$f":"$H$17","v":2}]
["B.  PROGRAM OVERVIEW (7 PAGES)"]
[]
["The purpose of this subpart is to improve students’ academic achievement by increasing the capacity of states, local educational agencies, schools, and local communities to—\n              (1) provide all students with access to a well-rounded education;\n              (2) improve school conditions for student learning; and\n              (3) improve the use of technology in order to improve the academic achievement and digital literacy of\n                   all students."]
[]
["Any local educational agency receiving an allocation in an amount less than $30,000 may designate funds to any of these areas above. Any LEA receiving an allocation of $30,000 or greater must designate funds as follows:\n              • not less than 20 percent of funds to support well-rounded educational opportunities;\n              • not less than 20 percent of funds to safe and healthy students; and\n              • a portion of funds to support effective use of technology; not more than 15 percent of this portion can be used for       \n                 purchasing technology infrastructure."]
[]
["Narrative Boxes"]
["Box 1:  For local education agencies receiving allocations of $30,000 or greater, provide a description of the needs assessment that was conducted to examine needs for improvement in the areas of—\n                              (A) access to, and opportunities for, a well-rounded education for all students;\n                              (B) school conditions for student learning in order to create a healthy and safe school environment; and\n                              (C) access to personalized learning experiences supported by technology and professional development for \n                                    the effective use of data and technology.               \nNote: Local education agencies receiving an allocation in an amount less than $30,000 are not required to complete Box 1."]
["Since the inception of the Title IV, Part A program, our school division has used these funds toward serving our overall student-centered goal that all students will graduate having actively mastered the lifelong learning competencies they will need to succeed as 21st century learners, workers, and citizens.  By transferring Title IV funds into Title I, II, and III programs during the last three years, we have strengthened the programs and services designed to serve at-risk students in attaining that goal. We plan to transfer all 2020-2021 Title IV funds to support Title I and Title III programming, to continue assisting at-risk students in meeting academic targets. \nThe Title I needs assessment process is thorough, systematic and data-driven, and we find each year that the number of students below benchmark in reading and math at our six, targeted assistance Title I schools is increasing.  Our literacy needs assessment and associated scoring derive from 3-4 measurements depending on a student's grade level (PALS, QRI, WRI, Six-Minute-Solution or SOL). Each student receives a composite score based on values assigned to each area, and the resulting Eligibility List shows students in greatest need of supplemental services that will be provided by the"]
["Title I reading teachers, who provide intensive instruction beyond the classroom.  Over six hundred Title I students are served in reading and math across the six schools, and funding for teachers is our continuing, proven approach to meeting the needs of Title I students.  We plan to fund a full FTE teacher position through transferred Title IV funds to be able to serve more students having academic challenges.\n\nReview of the services provided by the ESOL Family Support Specialist, located at our International Welcome Center and funded through Title IV transfer funding beginning in 2019-20, confirms that this position is integral to serving and meeting the needs of our ESOL families, particularly in light of the COVID 19 pandemic. The Specialist provides assistance to ESOL families in need and works to empower EL students to achieve higher self-sufficiency in academic and community life. The Specialist guides students and families by providing academic consultation, supplemenal support through mentoring and workshops, and community resource connections. School case management teams may be convened by the Specialist "]
["as a means to promote communication between school and home, as well as to identify areas requiring support services. \nThe review of position services and need for position continuance has been overseen by the Director of ESOL and Foreign Languages, the Deputy Superintendent for Instruction, and the federal program Coordinators who plan for coordination of services among the federal programs."]
[]
["Page 4"]
[null,null,null,null,"School Division:",null,{"$f":"$A$17","v":"ALBEMARLE COUNTY PUBLIC SCHOOLS"},null,null,null,null,null,"Division Number:",null,null,{"$f":"$H$17","v":2}]
["B.  PROGRAM OVERVIEW (CONTINUED)"]
[]
["Box 1 (continued):  "]
[]
[]
[]
["Box 2:  Describe, if applicable, how funds will be used for activities related to supporting well-rounded education."]
[]
[]
[]
[]
["Page 5"]
[null,null,null,null,"School Division:",null,{"$f":"$A$17","v":"ALBEMARLE COUNTY PUBLIC SCHOOLS"},null,null,null,null,null,"Division Number:",null,null,{"$f":"$H$17","v":2}]
["B.     PROGRAM OVERVIEW (CONTINUED)"]
[]
["Box 2 (continued):  "]
[]
[]
[]
["Box 3:  Describe, if applicable, how funds will be used for activities related to supporting safe and healthy students."]
[]
[]
[]
["Page 6"]
[null,null,null,null,"School Division:",null,{"$f":"$A$17","v":"ALBEMARLE COUNTY PUBLIC SCHOOLS"},null,null,null,null,null,"Division Number:",null,null,{"$f":"$H$17","v":2}]
["B.     PROGRAM OVERVIEW (CONTINUED)"]
[]
["Box 3 (continued):  "]
[]
[]
[]
[]
["Box 4:  Describe, if applicable, how funds will be used for activities related to supporting the effective use of technology \nNOTE:  LEAs may not spend more than 15 percent of the funds allocated to the effective use of technology category to purchase equipment, devices, software, platforms, digital instructional resources, or other one-time IT purchases (e.g. if allocating $12,000 to support the effective use of technology, then only $1,800 may be used to purchase technology infrastructure)."]
[]
[]
[]
["Page 7"]
[null,null,null,null,"School Division:",null,{"$f":"$A$17","v":"ALBEMARLE COUNTY PUBLIC SCHOOLS"},null,null,null,null,null,"Division Number:",null,null,{"$f":"$H$17","v":2}]
["B.  PROGRAM OVERVIEW (CONTINUED)"]
[]
["Box 4 (continued):  "]
[]
[]
["Box 5:  Describe how the local educational agency, or consortium of such agencies, will periodically evaluate the effectiveness of the activities carried out under this section based on such objectives and outcomes."]
[]
[]
[]
[]
["Page 8"]
[null,null,null,null,"School Division:",null,{"$f":"$A$17","v":"ALBEMARLE COUNTY PUBLIC SCHOOLS"},null,null,null,null,null,"Division Number:",null,null,{"$f":"$H$17","v":2}]
["C.  COORDINATION OF SERVICES"]
["Describe the partnerships within the division among the programs in this application and other federal, state and/or local programs in the delivery of services to the targeted population(s).  Describe the collaboration of program staff, parents, and the community to provide services and activities that will contribute to the attainment of the measurable objectives in this application.  Describe any partnership with an institution of higher education, business, nonprofit organization, community-based organization, or other public or private entity with a demonstrated record of success in implementing activities."]
[]
[]
[]
[]
[]
["Page 9"]
[null,null,null,null,"School Division:",null,{"$f":"$A$17","v":"ALBEMARLE COUNTY PUBLIC SCHOOLS"},null,null,null,null,null,"Division Number:",null,null,{"$f":"$H$17","v":2}]
["D.  MEASURABLE OBJECTIVES "]
["Section 1"]
["Section 4104(a)(2) of ESSA requires that States report the degree to which divisions have made progress toward meeting the objectives and outcomes in their approved applications."]
["Describe the division's progress towards meeting the measurable objectives. Address each measurable objective for which activities were implemented in the previous year. Indicate the application year for the measurable objective and include relevant data. "]
[]
["Measurable Objective 1:"]
[]
[]
["Measurable Objective 2:"]
[]
[]
["Measurable Objective 3:"]
[]
[]
["Measurable Objective 4:"]
[]
["Page 10"]
[null,null,null,null,"School Division:",null,{"$f":"$A$17","v":"ALBEMARLE COUNTY PUBLIC SCHOOLS"},null,null,null,null,null,"Division Number:",null,null,{"$f":"$H$17","v":2}]
["D.  MEASURABLE OBJECTIVES (CONTINUED)"]
["Measurable Objective 5:"]
[]
[]
["Measurable Objective 6:"]
[]
[]
["Section 2"]
["1.","State up to six measurable objectives, each incorporating the four components, that will guide the development of the program to be funded with the requested ESEA federal funds. "]
["2.","Describe the evidence-based research that supports the services and activities (programs, models, instructional methods, and techniques) that will be implemented to achieve each objective and that will be supported by the requested funds. \nWhat is a Measurable Objective?\nA measurable objective has four components:\n1) Subject (Who is the target or focus?);\n2) Behavior (What will be changed/improved?);\n3) Specific criteria for assessing improvement, readiness, or achievement and tools to be used to measure effectiveness; and\n4) Time period for performance or assessment.\n"]
["Measurable Objective 1:"]
[]
[]
["Evidence-based research services and activities that will be implemented and supported by the requested funds to achieve the objective:"]
[]
[]
["Page 11"]
[null,null,null,null,"School Division:",null,{"$f":"$A$17","v":"ALBEMARLE COUNTY PUBLIC SCHOOLS"},null,null,null,null,null,"Division Number:",null,null,{"$f":"$H$17","v":2}]
["D.  MEASURABLE OBJECTIVES (CONTINUED)"]
["Measurable Objective 2:"]
[]
[]
["Evidence-based research services and activities that will be implemented and supported by the requested funds to achieve the objective:"]
[]
[]
["Measurable Objective 3:"]
[]
[]
["Evidence-based research services and activities that will be implemented and supported by the requested funds to achieve the objective:"]
[]
["Measurable Objective 4:"]
[]
[]
["Evidence-based research services and activities that will be implemented and supported by the requested funds to achieve the objective:"]
[]
[]
[]
["Page 12"]
[null,null,null,null,"School Division:",null,{"$f":"$A$17","v":"ALBEMARLE COUNTY PUBLIC SCHOOLS"},null,null,null,null,null,"Division Number:",null,null,{"$f":"$H$17","v":2}]
["D.  MEASURABLE OBJECTIVES (CONTINUED)"]
["Measurable Objective 5:"]
[]
[]
["Evidence-based research services and activities that will be implemented and supported by the requested funds to achieve the objective:"]
[]
[]
["Measurable Objective 6:"]
[]
[]
["Evidence-based research services and activities that will be implemented and supported by the requested funds to achieve the objective:"]
[]
["Page 13"]

{"sheet":"Budget","index":1,"n_rows":288,"n_cols":17,"rows_kept":288,"cut":false,"hidden":false,"merged":[[56,8,56,10],[59,8,59,10],[57,0,57,7],[56,11,56,13],[55,14,55,16],[37,1,37,16],[48,0,48,7],[49,0,49,7],[40,0,40,16],[43,0,43,16],[46,0,46,16],[49,14,49,16],[33,1,33,5],[50,0,50,7],[33,6,33,7],[33,8,33,9],[33,10,33,11],[35,1,35,5],[48,8,48,10],[48,11,48,13],[53,0,53,7],[53,8,53,10],[53,11,53,13],[54,0,54,7],[54,8,54,10],[54,11,54,13],[55,0,55,7],[55,8,55,10],[23,10,23,11],[18,10,18,11],[21,6,21,7],[21,10,21,11],[22,8,22,9],[20,1,20,5],[17,6,17,7],[22,6,22,7],[18,6,18,7],[18,8,18,9],[19,1,19,5],[19,6,19,7],[20,6,20,7],[7,1,7,5],[29,12,30,12],[25,12,27,12],[21,12,23,12],[18,12,19,12],[14,12,16,12],[24,1,24,5],[25,1,25,5],[26,1,26,5],[28,1,28,5],[29,1,29,5],[30,1,30,5],[8,1,8,5],[9,1,9,5],[13,1,13,5],[15,1,15,5],[17,1,17,5],[16,1,16,5],[16,6,16,7],[6,12,8,12],[16,8,16,9],[16,10,16,11],[10,12,12,12],[23,1,23,5],[59,14,59,16],[133,10,133,13],[133,14,133,16],[212,14,212,16],[114,10,114,13],[17,10,17,11],[49,8,49,10],[49,11,49,13],[50,8,50,10],[50,11,50,13],[51,8,51,10],[51,11,51,13],[52,11,52,13],[21,13,23,16],[104,0,104,9],[109,14,109,16],[113,0,113,9],[113,10,113,13],[113,14,113,16],[110,0,110,9],[110,10,110,13],[22,1,22,5],[23,6,23,7],[23,8,23,9],[6,13,8,16],[18,13,19,16],[14,13,16,16],[24,13,24,16],[17,13,17,16],[20,13,20,16],[29,13,30,16],[98,0,98,9],[80,10,80,13],[80,14,80,16],[82,0,82,9],[81,0,81,9],[80,0,80,9],[81,14,81,16],[83,0,83,9],[82,10,82,13],[45,0,45,16],[74,0,74,9],[74,10,74,13],[74,14,74,16],[83,10,83,13],[82,14,82,16],[83,14,83,16],[58,14,58,16],[276,1,276,16],[279,1,279,16],[281,1,281,16],[282,1,282,16],[121,0,121,16],[136,0,136,9],[136,10,136,13],[136,14,136,16],[124,14,124,16],[125,0,125,9],[206,11,206,13],[227,11,227,13],[228,14,228,16],[228,11,228,13],[247,11,247,13],[227,14,227,16],[220,14,220,16],[219,11,219,13],[193,14,193,16],[191,11,191,13],[191,14,191,16],[135,0,135,9],[208,14,208,16],[151,0,151,9],[107,0,107,9],[107,10,107,13],[107,14,107,16],[85,14,85,16],[87,14,87,16],[85,0,85,9],[84,10,84,13],[95,0,95,9],[95,10,95,13],[95,14,95,16],[84,0,84,9],[86,0,86,9],[86,14,86,16],[93,0,93,16],[94,0,94,16],[105,10,105,13],[85,10,85,13],[86,10,86,13],[88,0,88,16],[106,0,106,9],[87,10,87,13],[84,14,84,16],[91,0,91,16],[151,10,151,13],[151,14,151,16],[152,0,152,9],[155,0,155,9],[155,10,155,13],[152,10,152,13],[152,14,152,16],[127,0,127,9],[127,10,127,13],[127,14,127,16],[128,10,128,13],[130,10,130,13],[130,14,130,16],[130,0,130,9],[153,14,153,16],[149,0,149,9],[115,14,115,16],[115,0,115,9],[110,14,110,16],[150,10,150,13],[150,14,150,16],[135,10,135,13],[115,10,115,13],[173,14,173,16],[169,14,169,16],[171,14,171,16],[172,10,172,13],[172,14,172,16],[173,0,173,9],[173,10,173,13],[159,0,159,9],[159,10,159,13],[159,14,159,16],[129,10,129,13],[144,0,144,16],[139,14,139,16],[135,14,135,16],[137,0,137,9],[129,0,129,9],[143,0,143,16],[206,14,206,16],[205,14,205,16],[207,14,207,16],[210,14,210,16],[177,0,177,16],[186,0,186,7],[205,11,205,13],[185,14,185,16],[202,11,202,13],[197,14,197,16],[200,11,200,13],[200,14,200,16],[197,11,197,13],[202,14,202,16],[190,14,190,16],[201,14,201,16],[196,14,196,16],[204,11,204,13],[203,14,203,16],[186,14,186,16],[186,11,186,13],[165,0,165,9],[164,0,164,9],[163,0,163,9],[160,0,160,9],[163,10,163,13],[163,14,163,16],[160,10,160,13],[211,14,211,16],[212,11,212,13],[167,10,167,13],[167,14,167,16],[168,0,168,9],[168,10,168,13],[168,14,168,16],[187,11,187,13],[195,14,195,16],[192,14,192,16],[188,11,188,13],[189,11,189,13],[190,11,190,13],[196,11,196,13],[210,11,210,13],[209,14,209,16],[189,14,189,16],[147,10,147,13],[148,0,148,9],[148,10,148,13],[148,14,148,16],[147,14,147,16],[154,0,154,9],[153,10,153,13],[174,14,174,16],[158,0,158,9],[158,10,158,13],[158,14,158,16],[170,0,170,9],[170,10,170,13],[170,14,170,16],[161,10,161,13],[161,14,161,16],[161,0,161,9],[167,0,167,9],[172,0,172,9],[169,0,169,9],[165,10,165,13],[165,14,165,16],[164,10,164,13],[174,0,174,9],[124,10,124,13],[132,0,132,9],[132,10,132,13],[138,14,138,16],[132,14,132,16],[125,14,125,16],[131,10,131,13],[186,8,186,10],[184,11,184,13],[184,14,184,16],[166,0,166,9],[166,10,166,13],[166,14,166,16],[169,10,169,13],[162,0,162,9],[145,0,145,16],[146,0,146,16],[154,14,154,16],[164,14,164,16],[154,10,154,13],[155,14,155,16],[156,14,156,16],[162,10,162,13],[147,0,147,9],[105,14,105,16],[114,14,114,16],[106,14,106,16],[156,0,156,9],[156,10,156,13],[150,0,150,9],[131,0,131,9],[129,14,129,16],[137,14,137,16],[141,0,141,16],[140,10,140,13],[153,0,153,9],[131,14,131,16],[137,10,137,13],[134,0,134,9],[134,10,134,13],[134,14,134,16],[138,10,138,13],[139,0,139,9],[139,10,139,13],[140,14,140,16],[124,0,124,9],[133,0,133,9],[125,10,125,13],[100,0,100,9],[100,10,100,13],[101,10,101,13],[101,14,101,16],[102,0,102,9],[102,10,102,13],[102,14,102,16],[99,14,99,16],[100,14,100,16],[184,0,184,7],[75,14,75,16],[78,0,78,9],[78,10,78,13],[78,14,78,16],[76,0,76,9],[76,10,76,13],[79,0,79,9],[79,10,79,13],[79,14,79,16],[149,10,149,13],[149,14,149,16],[138,0,138,9],[184,8,184,10],[171,0,171,9],[171,10,171,13],[174,10,174,13],[123,0,123,16],[126,0,126,9],[81,10,81,13],[175,0,175,9],[175,10,175,13],[175,14,175,16],[176,14,176,16],[259,0,259,16],[263,0,263,16],[255,8,255,10],[255,11,255,13],[255,14,255,16],[256,14,256,16],[253,0,253,7],[253,8,253,10],[253,11,253,13],[253,14,253,16],[254,0,254,7],[254,8,254,10],[254,11,254,13],[254,14,254,16],[256,8,256,13],[252,0,252,7],[252,8,252,10],[252,11,252,13],[252,14,252,16],[191,0,191,7],[191,8,191,10],[187,8,187,10],[188,8,188,10],[189,8,189,10],[190,8,190,10],[187,14,187,16],[188,14,188,16],[201,8,201,10],[194,8,194,10],[195,8,195,10],[192,8,192,10],[193,8,193,10],[198,8,198,10],[194,11,194,13],[237,8,237,10],[237,0,237,7],[234,14,234,16],[239,14,239,16],[251,0,251,7],[283,0,283,16],[6,6,6,7],[7,6,7,7],[8,6,8,7],[9,6,9,7],[273,1,273,16],[275,1,275,16],[278,1,278,16],[36,6,36,7],[36,8,36,9],[36,10,36,11],[36,1,36,5],[257,0,257,16],[261,0,261,16],[271,1,271,16],[264,0,264,16],[266,1,266,16],[268,1,268,16],[248,14,248,16],[247,0,247,7],[247,8,247,10],[248,11,248,13],[270,1,270,16],[255,0,255,7],[1,0,1,16],[13,8,13,9],[13,10,13,11],[14,10,14,11],[9,10,9,11],[10,8,10,9],[12,8,12,9],[10,10,10,11],[12,10,12,11],[13,6,13,7],[14,6,14,7],[14,8,14,9],[5,13,5,16],[5,1,5,5],[13,13,13,16],[14,1,14,5],[6,8,6,9],[9,13,9,16],[12,6,12,7],[8,8,8,9],[9,8,9,9],[5,6,5,7],[5,8,5,9],[5,10,5,11],[251,8,251,10],[251,11,251,13],[251,14,251,16],[248,0,248,7],[248,8,248,10],[249,14,249,16],[250,0,250,7],[250,8,250,10],[250,11,250,13],[250,14,250,16],[249,0,249,7],[249,8,249,10],[249,11,249,13],[238,11,238,13],[238,14,238,16],[242,8,242,10],[193,11,193,13],[198,11,198,13],[199,8,199,10],[208,8,208,10],[209,0,209,7],[209,8,209,10],[203,11,203,13],[202,8,202,10],[211,11,211,13],[208,11,208,13],[208,0,208,7],[211,0,211,7],[210,0,210,7],[210,8,210,10],[199,11,199,13],[201,11,201,13],[239,11,239,13],[209,11,209,13],[194,14,194,16],[198,14,198,16],[199,14,199,16],[244,0,244,7],[244,8,244,10],[244,11,244,13],[241,11,241,13],[241,14,241,16],[241,0,241,7],[244,14,244,16],[247,14,247,16],[246,0,246,7],[246,8,246,10],[246,11,246,13],[243,14,243,16],[246,14,246,16],[192,0,192,7],[193,0,193,7],[198,0,198,7],[199,0,199,7],[196,0,196,7],[196,8,196,10],[237,11,237,13],[237,14,237,16],[242,0,242,7],[241,8,241,10],[238,0,238,7],[238,8,238,10],[239,8,239,10],[240,0,240,7],[240,8,240,10],[240,11,240,13],[240,14,240,16],[242,11,242,13],[242,14,242,16],[239,0,239,7],[207,11,207,13],[216,14,216,16],[215,14,215,16],[204,14,204,16],[185,8,185,10],[185,11,185,13],[233,14,233,16],[231,14,231,16],[232,0,232,7],[232,8,232,10],[195,11,195,13],[232,11,232,13],[232,14,232,16],[192,11,192,13],[197,0,197,7],[197,8,197,10],[194,0,194,7],[195,0,195,7],[211,8,211,10],[212,0,212,7],[214,0,214,7],[214,8,214,10],[187,0,187,7],[188,0,188,7],[189,0,189,7],[190,0,190,7],[229,11,229,13],[229,14,229,16],[180,0,180,16],[182,0,182,16],[183,0,183,16],[176,10,176,13],[181,0,181,16],[179,0,179,16],[185,0,185,7],[108,10,108,13],[90,0,90,16],[111,10,111,13],[109,10,109,13],[111,14,111,16],[96,14,96,16],[98,10,98,13],[98,14,98,16],[97,14,97,16],[99,0,99,9],[99,10,99,13],[105,0,105,9],[104,10,104,13],[104,14,104,16],[101,0,101,9],[96,0,96,9],[96,10,96,13],[112,0,112,9],[112,10,112,13],[112,14,112,16],[106,10,106,13],[92,0,92,16],[118,0,118,16],[128,0,128,9],[108,14,108,16],[109,0,109,9],[126,10,126,13],[108,0,108,9],[116,14,116,16],[114,0,114,9],[97,0,97,9],[103,0,103,9],[120,0,120,16],[116,10,116,13],[122,0,122,16],[126,14,126,16],[128,14,128,16],[111,0,111,9],[97,10,97,13],[103,10,103,13],[103,14,103,16],[160,14,160,16],[157,0,157,9],[157,10,157,13],[157,14,157,16],[162,14,162,16],[217,0,217,7],[217,8,217,10],[218,0,218,7],[218,8,218,10],[212,8,212,10],[216,0,216,7],[200,0,200,7],[200,8,200,10],[201,0,201,7],[203,0,203,7],[206,0,206,7],[206,8,206,10],[207,0,207,7],[207,8,207,10],[204,0,204,7],[205,0,205,7],[205,8,205,10],[202,0,202,7],[204,8,204,10],[221,0,221,16],[215,11,215,13],[216,11,216,13],[218,14,218,16],[215,0,215,7],[215,8,215,10],[214,14,214,16],[213,14,213,16],[217,11,217,13],[213,8,213,10],[213,0,213,7],[216,8,216,10],[217,14,217,16],[218,11,218,13],[213,11,213,13],[203,8,203,10],[280,0,280,16],[277,0,277,16],[274,0,274,16],[269,0,269,16],[224,0,224,16],[219,8,219,10],[219,0,219,7],[229,0,229,7],[229,8,229,10],[223,0,223,16],[228,0,228,7],[228,8,228,10],[219,14,219,16],[235,14,235,16],[234,11,234,13],[234,0,234,7],[245,0,245,7],[245,8,245,10],[245,11,245,13],[245,14,245,16],[243,0,243,7],[243,8,243,10],[243,11,243,13],[225,0,225,16],[226,0,226,16],[231,0,231,7],[231,8,231,10],[236,0,236,7],[236,8,236,10],[236,11,236,13],[236,14,236,16],[233,0,233,7],[233,8,233,10],[233,11,233,13],[230,0,230,7],[230,8,230,10],[230,11,230,13],[230,14,230,16],[235,0,235,7],[235,8,235,10],[235,11,235,13],[234,8,234,10],[231,11,231,13],[11,6,11,7],[11,8,11,9],[11,10,11,11],[34,13,34,15],[41,0,41,16],[44,0,44,16],[26,10,26,11],[15,6,15,7],[15,8,15,9],[15,10,15,11],[26,8,26,9],[27,8,27,9],[25,10,25,11],[18,1,18,5],[22,10,22,11],[20,8,20,9],[20,10,20,11],[17,8,17,9],[19,8,19,9],[19,10,19,11],[24,10,24,11],[21,1,21,5],[24,6,24,7],[10,13,12,16],[60,14,60,16],[61,14,61,16],[60,0,60,7],[60,8,60,10],[57,8,57,10],[21,0,24,0],[32,13,32,15],[21,8,21,9],[25,6,25,7],[29,10,29,11],[51,0,51,7],[52,0,52,7],[52,8,52,10],[31,6,31,7],[27,10,27,11],[24,8,24,9],[47,8,47,10],[47,11,47,13],[35,12,36,12],[38,0,38,16],[56,14,56,16],[25,8,25,9],[60,11,60,13],[57,14,57,16],[26,6,26,7],[3,6,3,11],[4,6,4,11],[3,0,4,5],[54,14,54,16],[47,14,47,16],[50,14,50,16],[48,14,48,16],[51,14,51,16],[14,0,17,0],[10,0,13,0],[6,0,9,0],[6,10,6,11],[7,10,7,11],[8,10,8,11],[7,8,7,9],[10,1,10,5],[12,1,12,5],[10,6,10,7],[6,1,6,5],[28,13,28,16],[53,14,53,16],[52,14,52,16],[11,1,11,5],[63,11,63,13],[30,6,30,7],[29,8,29,9],[30,8,30,9],[32,6,32,7],[32,8,32,9],[32,10,32,11],[27,6,27,7],[30,10,30,11],[29,6,29,7],[28,6,28,7],[28,8,28,9],[28,10,28,11],[31,8,31,9],[56,0,56,7],[62,8,62,10],[59,0,59,7],[57,11,57,13],[55,11,55,13],[59,11,59,13],[61,11,61,13],[58,0,58,7],[58,8,58,10],[58,11,58,13],[27,1,27,5],[25,13,27,16],[77,10,77,13],[77,14,77,16],[70,0,70,16],[61,0,61,7],[62,0,62,7],[71,10,71,13],[62,11,62,13],[72,10,72,13],[71,0,71,9],[62,14,62,16],[65,0,65,16],[63,14,63,16],[63,8,63,10],[61,8,61,10],[68,0,68,16],[71,14,71,16],[73,10,73,13],[72,14,72,16],[72,0,72,9],[73,0,73,9],[67,0,67,16],[73,14,73,16],[77,0,77,9],[69,0,69,16],[76,14,76,16],[214,11,214,13],[227,0,227,7],[227,8,227,10],[75,0,75,9],[75,10,75,13],[18,0,20,0],[36,13,36,15],[33,13,33,15],[34,1,34,5],[34,6,34,7],[34,8,34,9],[34,10,34,11],[35,13,35,16],[220,8,220,13],[29,0,31,0],[25,0,28,0],[31,13,31,16],[31,10,31,11],[35,6,35,11],[31,1,31,5],[32,1,32,5]]}
[null,null,null,null,"School Division:",null,{"$f":"Narrative!$A$17","v":"ALBEMARLE COUNTY PUBLIC SCHOOLS"},null,null,null,null,null,null,"Division Number:",null,null,{"$f":"Narrative!$H$17","v":2}]
["E.  BUDGET SUMMARY"]
[]
["2020-2021 Allocation",null,null,null,null,null,"Title IV, Part A\nBudget for 2020-2021\nAward S424A200048"]
[null,null,null,null,null,null,{"$f":"Narrative!N48","v":0}]
["Object Code","Expenditure",null,null,null,null,"A.\nWell-Rounded ",null,"B.\nSafe and Healthy Students",null,"C.\nEffective Use of Technology",null,"Summary","Does the Budget Summary Match the Detail Budget?"]
["1000 -\n Personal Services","Administrative"]
[null,"Non-Administrative"]
[null,"Private School Set-Aside"]
[null,"Total Personal Services",null,null,null,null,{"$f":"SUM(G7:H9)","v":0},null,{"$f":"SUM(I7:J9)","v":0},null,{"$f":"SUM(K7:L9)","v":0},null,{"$f":"SUM(G10:L10)","v":0},{"$f":"IF(SUM(O64)=SUM(G10:L10),\"Yes\", \"No - Please review your entries.\")","v":"Yes"}]
["2000 -\nEmployee Benefits","Administrative"]
[null,"Non-Administrative"]
[null,"Private School Set-Aside"]
[null,"Total Employee Benefits",null,null,null,null,{"$f":"SUM(G11:H13)","v":0},null,{"$f":"SUM(I11:J13)","v":0},null,{"$f":"SUM(K11:L13)","v":0},null,{"$f":"SUM(G14:L14)","v":0},{"$f":"IF(SUM(O88)=SUM(G14:L14),\"Yes\",\"No - Please review your entries.\")","v":"Yes"}]
["3000 - \nPurchased/\nContracted Services","Administrative"]
[null,"Non-Administrative"]
[null,"Private School Set-Aside"]
[null,"Total Purchased/Contracted Services",null,null,null,null,{"$f":"SUM(G15:H17)","v":0},null,{"$f":"SUM(I15:J17)","v":0},null,{"$f":"SUM(K15:L17)","v":0},null,{"$f":"SUM(G18:L18)","v":0},{"$f":"IF(SUM(O117)=SUM(G18:L18),\"Yes\",\"No - Please review your entries.\")","v":"Yes"}]
["4000 - \nInternal Services","Internal Services"]
[null,"Private School Set-Aside"]
[null,"Total Internal Services",null,null,null,null,{"$f":"SUM(G19:H20)","v":0},null,{"$f":"SUM(I19:J20)","v":0},null,{"$f":"SUM(K19:L20)","v":0},null,{"$f":"SUM(G21:L21)","v":0},{"$f":"IF(SUM(O141)=SUM(G21:L21),\"Yes\",\"No - Please review your entries.\")","v":"Yes"}]
["5000 - \nOther  \nCharges","Indirect Costs"]
[null,"Non-Administrative"]
[null,"Private School Set-Aside"]
[null,"Total Other Charges",null,null,null,null,{"$f":"SUM(G22:H24)","v":0},null,{"$f":"SUM(I22:J24)","v":0},null,{"$f":"SUM(K22:L24)","v":0},null,{"$f":"SUM(G25:L25)","v":0},{"$f":"IF(SUM(O177)=SUM(G25:L25),\"Yes\",\"No - Please review your entries.\")","v":"Yes"}]
["6000 - \nMaterials\nand Supplies","Administrative"]
[null,"Non-Administrative"]
[null,"Private School Set-Aside"]
[null,"Total Materials and Supplies",null,null,null,null,{"$f":"SUM(G26:H28)","v":0},null,{"$f":"SUM(I26:J28)","v":0},null,{"$f":"SUM(K26:L28)","v":0},null,{"$f":"SUM(G29:L29)","v":0},{"$f":"IF(SUM(O221)=SUM(G29:L29),\"Yes\",\"No - Please review your entries.\")","v":"Yes"}]
["8000 - \nCapital\nOutlay","Non-Administrative"]
[null,"Private School Set-Aside"]
[null,"Total Capital Outlay",null,null,null,null,{"$f":"SUM(G30:H31)","v":0},null,{"$f":"SUM(I30:J31)","v":0},null,{"$f":"SUM(K30:L31)","v":0},null,{"$f":"SUM(G32:L32)","v":0},{"$f":"IF(SUM(O257)=SUM(G32:L32),\"Yes\",\"No - Please review your entries.\")","v":"Yes"}]
[null,"TOTAL SUBGRANT BUDGET",null,null,null,null,{"$f":"SUM(G32,G29,G25,G21,G18,G14,G10)","v":0},null,{"$f":"SUM(I32,I29,I25,I21,I18,I14,I10)","v":0},null,{"$f":"SUM(K32,K29,K25,K21,K18,K14,K10)","v":0},null,{"$f":"SUM(G33:L33)","v":0},"**Reflects 15% max allowed for technology, equipment, devices, and software in Technology area.",null,null,{"$f":"K33*0.15","v":0}]
[null,"TOTAL SET-ASIDE SUBGRANT BUDGET",null,null,null,null,{"$f":"SUM(G7+G11+G15+G22+G26)","v":0},null,{"$f":"SUM(I7+I11+I15+I22+I26)","v":0},null,{"$f":"SUM(K7+K11+K15+K22+K26)","v":0},null,{"$f":"SUM(G34:L34)","v":0},"Are the administrative charges less than or equal to 2% of the allocation?",null,null,{"$f":"IF(SUM(M34)<=SUM(Narrative!N48*0.02),\"Yes\",\"No - Please review your entries.\")","v":"Yes"}]
[null,"TOTAL PRIVATE SCHOOL SET-ASIDE SUBGRANT BUDGET",null,null,null,null,{"$f":"SUM(G9+G13+G17+G20+G24+G28+G31)","v":0},null,{"$f":"SUM(I9+I13+I17+I20+I24+I28+I31)","v":0},null,{"$f":"SUM(K9+K13+K17+K20+K24+K28+K31)","v":0},null,{"$f":"SUM(G35:L35)","v":0},"Does the Private School Set-Aside Match the Value of Services on the Private School tab?",null,null,{"$f":"IF(SUM(M35)=SUM('Private Schools'!F36:H36),\"Yes\",\"No - Please review your entries.\")","v":"Yes"}]
[null,"Is the allocation $30,000 or greater?  If \"yes\", mandatory distribution of allocation applies.",null,null,null,null,{"$f":"IF(Narrative!N48>=30000,\"Yes\",\"No - Grant is not subject to minimum requirements\")","v":"No - Grant is not subject to minimum requirements"}]
[null,"If allocation is $30,000 or greater, does the allocation meet minimum requirement for each area?",null,null,null,null,{"$f":"IF(OR(SUM(G33)>=SUM(Narrative!N48*0.2), SUM(Narrative!N48)<30000), \"Requirement Met\", \"Requirement Not Met- Redistribute Funds\")","v":"Requirement Met"},null,{"$f":"IF(OR(SUM(I33)>=SUM(Narrative!N48*0.2), SUM(Narrative!N48)<30000), \"Requirement Met\", \"Requirement Not Met- Redistribute Funds\")","v":"Requirement Met"},null,{"$f":"IF(OR(SUM(K33)>0), \"Requirement Met\", \"Requirement Not Met - Redistribute Funds\")","v":"Requirement Not Met - Redistribute Funds"},null,null,"Does Total Allocation Match Detailed Budget?",null,null,{"$f":"IF(SUM(M33)=SUM(G5),\"Yes\",\"No - Please review your entries.\")","v":"Yes"}]
[null,"Notes:  (1) Object codes 7000 and 9000 are not used in application budgets or in requests for reimbursements for this grant.\n             (2) Indirect costs claims are subject to the availability of funds and statutory or administrative restrictions. Title III, Part A and Title IV, Part A, \n                  place a statutory limitation or cap on administrative costs. Because the cap applies to the combined claims for indirect costs and direct \n                  administrative costs, divisions may not be able to claim the entirety of their indirect costs. The amount unrecovered may not be shifted to \n                  another federal award."]
["Page 14"]
[null,null,null,null,"School Division:",null,{"$f":"Narrative!$A$17","v":"ALBEMARLE COUNTY PUBLIC SCHOOLS"},null,null,null,null,null,null,"Division Number:",null,null,{"$f":"Narrative!$H$17","v":2}]
["F.  DETAILED BUDGET BREAKDOWN"]
["Include a detailed breakdown of the budget categories for Object Codes 1000-6000 and 8000, as shown on page 15."]
[]
["DETAILED BUDGET DESCRIPTION OF OBJECT CODE 1000"]
["If applicable, indicate the positions and FTEs supported with funds from this program."]
[]
[]
["Item Description",null,null,null,null,null,null,null,"Supported Area/Activity",null,null,"FTEs",null,null,"Total Cost"]
[]
[]
[]
[]
[]
[]
[]
[]
[]
[]
[]
[]
[]
[]
[]
[null,null,null,null,"      ",null,null,null,"Total for Object Code:",null,null,{"$f":"SUM(L49:N63)","v":0},null,null,{"$f":"SUM(O49:Q63)","v":0}]
[]
["Page 15"]
[null,null,null,null,"School Division:",null,{"$f":"Narrative!$A$17","v":"ALBEMARLE COUNTY PUBLIC SCHOOLS"},null,null,null,null,null,null,"Division Number:",null,null,{"$f":"Narrative!$H$17","v":2}]
["DETAILED BUDGET DESCRIPTION OF OBJECT CODE 2000"]
["Indicate the fixed charge categories (such as FICA, health, etc.) and specify the amount of each."]
[]
[]
["Item Description",null,null,null,null,null,null,null,null,null,"Supported Area/Activity",null,null,null,"Total Cost"]
[]
[]
[]
[]
[]
[]
[]
[]
[]
[]
[]
[]
[]
[]
[]
[null,null,null,null,"      ",null,null,null,null,null,"Total for Object Code:",null,null,null,{"$f":"SUM(O73:Q87)","v":0}]
["Page 16"]
[null,null,null,null,"School Division:",null,{"$f":"Narrative!$A$17","v":"ALBEMARLE COUNTY PUBLIC SCHOOLS"},null,null,null,null,null,null,"Division Number:",null,null,{"$f":"Narrative!$H$17","v":2}]
["JUSTIFICATION FOR PROFESSIONAL DEVELOPMENT - OBJECT CODE 3000"]
["Please indicate how these funds will support any services and activities that are described in this application.  If program funds are expended for professional development, justify such expenditures by demonstrating a relationship between the proposed expenditure for professional development and the program services and activities described in the application. "]
[]
[]
[]
["Item Description",null,null,null,null,null,null,null,null,null,"Supported Area/Activity",null,null,null,"Total Cost"]
[]
[]
[]
[]
[]
[]
[]
[]
[]
[]
[]
[]
[]
[]
[]
[]
[]
[]
[]
[]
[null,null,null,null,"      ",null,null,null,null,null,"Total for Object Code:",null,null,null,{"$f":"SUM(O97:Q116)","v":0}]
[]
["Page 17"]
[null,null,null,null,"School Division:",null,{"$f":"Narrative!$A$17","v":"ALBEMARLE COUNTY PUBLIC SCHOOLS"},null,null,null,null,null,null,"Division Number:",null,null,{"$f":"Narrative!$H$17","v":2}]
["JUSTIFICATION FOR INTERNAL SERVICES - OBJECT CODE 4000"]
["If program funds are expended for internal services, describe these services below."]
[]
[]
["Item Description",null,null,null,null,null,null,null,null,null,"Supported Area/Activity",null,null,null,"Total Cost"]
[]
[]
[]
[]
[]
[]
[]
[]
[]
[]
[]
[]
[]
[]
[]
[null,null,null,null,"      ",null,null,null,null,null,"Total for Object Code:",null,null,null,{"$f":"SUM(O126:Q140)","v":0}]
["Page 18"]
[null,null,null,null,"School Division:",null,{"$f":"Narrative!$A$17","v":"ALBEMARLE COUNTY PUBLIC SCHOOLS"},null,null,null,null,null,null,"Division Number:",null,null,{"$f":"Narrative!$H$17","v":2}]
["JUSTIFICATION FOR TRAVEL COSTS - OBJECT CODE 5000"]
["Travel must be justified by demonstrating a relationship between the proposed travel and the needs of the program.  Please indicate the estimated cost and the estimated number of people attending.  If applicable, indicate indirect costs charged to this program.  Indirect costs cannot be claimed against capital outlay and equipment."]
[]
[]
["Item Description",null,null,null,null,null,null,null,null,null,"Supported Area/Activity",null,null,null,"Total Cost"]
[]
[]
[]
[]
[]
[]
[]
[]
[]
[]
[]
[]
[]
[]
[]
[]
[]
[]
[]
[]
[]
[]
[]
[]
[]
[]
[]
[]
[null,null,null,null,"      ",null,null,null,null,null,"Total for Object Code:",null,null,null,{"$f":"SUM(O149:Q176)","v":0}]
["Page 19"]
[null,null,null,null,"School Division:",null,{"$f":"Narrative!$A$17","v":"ALBEMARLE COUNTY PUBLIC SCHOOLS"},null,null,null,null,null,null,"Division Number:",null,null,{"$f":"Narrative!$H$17","v":2}]
["JUSTIFICATION FOR MATERIALS AND SUPPLIES - OBJECT CODE 6000"]
["Provide a description of materials, supplies, and all equipment less $5,000 per unit.  Indicate the estimated quantity of each item.  Please describe any technology infrastructure included in the budget.  \nNOTE:  LEAs may not spend more than 15 percent of the funds allocated to the effective use of technology category to purchase equipment, devices, software, platforms, digital instructional resources, or other one-time IT purchases."]
[]
[]
[]
["Item Description",null,null,null,null,null,null,null,"Supported Area/Activity",null,null,"Quantities",null,null,"Total Cost"]
[]
[]
[]
[]
[]
[]
[]
[]
[]
[]
[]
[]
[]
[]
[]
[]
[]
[]
[]
[]
[]
[]
[]
[]
[]
[]
[]
[]
[]
[]
[]
[]
[]
[]
[]
[null,null,null,null,"      ",null,null,null,"Total for Object Code:",null,null,null,null,null,{"$f":"SUM(O186:Q220)","v":0}]
["Page 20"]
[null,null,null,null,"School Division:",null,{"$f":"Narrative!$A$17","v":"ALBEMARLE COUNTY PUBLIC SCHOOLS"},null,null,null,null,null,null,"Division Number:",null,null,{"$f":"Narrative!$H$17","v":2}]
["JUSTIFICATION FOR CAPITAL OUTLAY - OBJECT CODE 8000"]
["All capital outlay expenditures over $5,000 per unit must be approved in advance by the Virginia Department of Education. If the school division has established a threshold of a lesser amount, items equal to that amount or greater must also receive prior approval by the Virginia Department of Education.  Nonconsumable items must be listed in the application.  Equipment quantities must be specified. "]
[]
[]
["Item Description",null,null,null,null,null,null,null,"Supported Area/Activity",null,null,"Quantities",null,null,"Total Cost"]
[]
[]
[]
[]
[]
[]
[]
[]
[]
[]
[]
[]
[]
[]
[]
[]
[]
[]
[]
[]
[]
[]
[]
[]
[]
[]
[]
[]
[null,null,null,null,"      ",null,null,null,"Total for Object Code:",null,null,null,null,null,{"$f":"SUM(O229:Q256)","v":0}]
["Page 21"]
[null,null,null,null,"School Division:",null,{"$f":"Narrative!$A$17","v":"ALBEMARLE COUNTY PUBLIC SCHOOLS"},null,null,null,null,null,null,"Division Number:",null,null,{"$f":"Narrative!$H$17","v":2}]
["EXPENDITURE ACCOUNTS DESCRIPTIONS"]
[]
["These accounts are for budgeting and recording expenditures of the educational agency for activities under its control.  Below are definitions of the major expenditure categories.  The descriptions provided are examples only.   For further clarification on the proper expenditures of funds, contact your school division budget or finance office, the grant specialist in the Virginia Department of Education, or refer to the appropriate federal act."]
[]
["OBJECT CODE DEFINITIONS:"]
["(revised 5/16/17)"]
[]
[1000,"PERSONAL SERVICES - Includes all compensation for the direct labor of persons in the employment of the local government.  Salaries and wages paid to employees for full‐ and part‐time work, including overtime, shift differential, and similar compensation. Includes payments for time not worked, including sick leave, vacation, holidays, jury duty, military leave, and other paid absences that are earned during the reporting period.  \n\nFor the purposes of this report, the term “salaries” means all compensation including base wage.  This also includes amounts paid through salary reduction plans, such as tax‐sheltered annuities and flexible benefit plans.  Do not confuse this definition with the Virginia Retirement System (VRS) definition, which excludes supplements for retirement calculation purposes in some circumstances.\n"]
[]
[2000,"EMPLOYEE BENEFITS - Job related benefits provided to employees as part of their total compensation.  Fringe benefits include the employer’s portion of FICA, pensions, insurance (life, health, disability income, etc.) and employee allowances.  \n\nNOTE:  Fringe Benefits are a significant component of employee compensation and, like salaries and wages, are charged to the appropriate object of expenditure within each program.  If possible, fringe benefit costs should be charged to the applicable educational program or activity on an ongoing basis.  An alternative is to charge all fringe benefits to various benefit accounts.  As part of the year‐end closing process, these accounts are closed, and all costs are allocated to the appropriate educational program or activity.  The following methods are suggested for allocating such cost at year‐end.  If these methods do not provide reasonable allocations based on circumstances within the school division, then the school division should use another reasonable allocation method.  Consistency in application should be maintained at all times.\n\n• Allocation by percentage of payroll dollars\n• Allocation by Head Count\n• Direct to Program or Activity\n"]
["Page 22"]
[3000,"PURCHASED/CONTRACTUAL SERVICES - Services acquired from outside sources (i.e., private vendors, public authorities, or other governmental entities).  Purchase of the service is on a fee basis or fixed time contract basis.  Payments for rentals and utilities are not included in this account description.  Allowable payments would be to individual or firms that are independent contractors and not employees of the grantee or sub‐grantee organization.  The word honorarium is sometimes used to characterize such payments; the term “fee” is preferred.\n\n• Food Purchases – Prepared meals, working meals, and/or catered services purchased through a vendor are included in this object code.  Reimbursement is capped at the per diem rate for the meal listed according to the state travel regulations.  Examples for this object code include meals provided during day‐long professional development sessions, or meals provided to support attendance at family engagement activities.  Food purchased from catering services and restaurants such as Pizza Hut, Panera Bread, and Subway is included in this object code.\n\n• Transportation Services Public Carriers – Payments to public carriers for transportation of pupils on vehicles that are used by the public. Include payments for pupils transported in intra‐city transit buses, taxicabs, airplanes, and intercity/interstate passenger buses.\n\n• Transportation Services Private Carriers – Payments (either cash or tokens) to parents for transportation of pupils in lieu of providing transportation on school buses. Include allowable payments to parents for pupils attending public, private, and non‐sectarian schools. Include costs associated with transporting special education students in school board‐owned vehicles to and from school.\n\n• Transportation Services by Contract – Payments to private owners of school buses who contract with the school board to transport pupils to and from public schools. Include payments to owners of private vehicles that contract with the school board to transport pupils to and from designated public and private schools.\n\n"]
[null,"• Purchase of Service from Other Governmental Entities – Payments for services purchased from other governmental entities (i.e., other local governments, public authorities, state agencies, and other LEAs) on a contract/fee basis. Tuition payments to other local governments for a jointly operated center are not included here but are reported under “Payments to Joint Operations” (object code 7000).\n\n• Tuition Paid – Other Divisions In‐State, Tuition Paid – Other Divisions Out‐of‐State, and Tuition Paid – Private Schools are included in this object code.\n"]
[]
[4000,"INTERNAL SERVICES - Charges from an Internal Service Fund to other functions/activities/elements of the local government for the use of intergovernmental services, such as data processing, automotive/motor pool, central purchasing/central stores, print shop, and risk management. These services are provided by internal services within the School District and possibly the county but not a vendor.  \n\n• Food Purchases – Food purchased from the food services department of a school division or subgrantee equivalent to support professional development or family engagement events is included in this object code.  For example, internal expenses for school cafeterias to provide meals to support attendance at family engagement activities are included in this object code.\n"]
["Page 23"]
[5000,"OTHER CHARGES - Include expenditures that support the use of programs. Includes expenditures that support the program, including utilities (maintenance and operation of plant), staff/administrative/consultant travel, office phone charges, training, leases/rental, indirect cost, and other.\n\n• Food Purchases – Food Purchases under this object code are restricted to food purchases related to travel reimbursement for meals only (see Travel below). If the sub‐recipient’s internal travel policies conform to state travel regulations, reimbursement is allowable at per diem meals rates according to state travel regulations. If the sub‐recipient’s internal travel policies require reimbursement for the cost of each meal, reimbursement is capped at the per diem rate for the meal listed according to the state travel regulations. Sub‐recipients must elect either meals per diem or per meals costs as their internal travel policy.\n\n• Telecommunications – Include expenditures for recurring telecommunications services for the use of on‐line computer technology (e.g., telephone/telecommunications line charges).  Telephone charges for line service for Internet connectivity and the Electronic Classroom program.\n\n• Utilities – Payments for heat, electricity, water, and sewer services regardless of whether the service is provided by a private enterprise authority or an enterprise fund operated by a local government.\n\n• Communications – Payments for postal, messenger, and telecommunications services, typically office voice telephone charges.  (Telecommunication costs directly related to technology uses should be coded under 6000.) In addition, office telephone charges would be coded under this code.\n\n• Insurance – Payments for insurance except those that relate to personal services (i.e., hospitalization, group life, worker’s compensation, unemployment)\n\n• Leases and Rentals – Includes payments for leases that are not capitalized and rental of land, structures, and equipment. Do not include payments made under a lease‐purchase agreement.\n\n"]
[null,"• Travel – includes payments for travel reimbursement for staff/administrative/consultant travel. These are travel costs that are being reimbursed directly to travelers.  These costs may include lodging, mileage, meals, and incidentals as allowable according to state travel regulations or documented subrecipient internal travel policies. If the sub‐recipient does not have documented internal travel policies, state travel regulations will prevail.\n\n• Contributions to Other Entities – Includes payments to other governmental entities or community organizations that are not related to the direct purchase of a service on a fee basis (which is reported under object code 3000) or payments to joint operations (which are reflected under object code 7000).\n\n• Public Assistance Payments – Payments to individuals for public assistance programs (general government use only).\n\n• Miscellaneous Other Charges – Includes expenditures that support the program, including indirect costs and other costs.\n"]
["Page 24"]
[6000,"MATERIALS AND SUPPLIES - Includes articles and commodities that are consumed or materially altered when used and minor equipment that is not capitalized.  This includes any equipment purchased under $5,000, unless the LEA has set a lower capitalization threshold.  Therefore, computer equipment under $5,000 would be reported in “materials and supplies.”\n\n• Food Purchases – Food items purchased from a grocery store or its equivalent for snacks or breaks is included in this object code.  Examples include bottled water, granola bars, cookies, and fruit purchased from a store such as Wal‐Mart, Food Lion, Costco, etc.  Prepared meals is not included in this object code; see object code 3000 for prepared/working/catered meals as purchased/contracted services.\n\n• Vehicle and Powered Equipment Fuels – Gasoline, lubricating oils, or such other fuel used in the operation of vehicles and powered equipment (e.g., lawnmowers) purchased from private sources or governmental agencies.\n\n• Vehicle and Powered Equipment Supplies – Tires, spark plugs, batteries, and chains used in the operation of vehicles and powered equipment purchased from private sources or governmental agencies.\n\n• Textbooks – All textbooks and workbooks purchased to be used in the classroom.\n\n• Instructional Materials – Books (not textbooks) and other materials.\n\n"]
[null,"• Technology Software/On‐line Content – Include expenditures for videodiscs and computer programs used in the classroom for instructional purposes, operating system software (i.e., standalone software, not software that is pre‐installed and included in hardware costs), application software, and on‐line or downloadable software and content. Include expenditures for both additions and replacement.\n\n• Non‐Capitalized Technology Hardware – Include expenditures for hardware or classroom technology equipment that is not capitalized.\n\n• Non‐Capitalized Technology Infrastructure – Include expenditures for technology infrastructure that is not capitalized.\n"]
["Page 25"]
[8000,"CAPITAL OUTLAY - Note: Indirect cost cannot be claimed against capital outlay and equipment.\nOutlays that result in the acquisition of or additions to fixed assets.  Capital Outlay includes the purchase\nof fixed assets both replacement and/or additional.\n\nCapital Outlay Replacement\n\n• Technology – Hardware Replacements – Include capital outlay for replacement of hardware or classroom technology equipment. (For further clarification on which expenditures should be included in this object code, see the “Special Note” below.)\n\n• Technology – Infrastructure Replacements – Include capital outlay for replacement of technology infrastructure. (For further clarification on which expenditures should be included in this object code, see the “Special Note” below.)\n\n• Capital Outlay Additions – Include machinery, equipment, furniture, fixtures, communications equipment, motor vehicles, etc. that are capitalized.\n\n• Technology – Hardware Additions – Include capital outlay for additional hardware or classroom technology equipment. (For further clarification on which expenditures should be included in this object code, see the “Special Note” below.)  \n\n• Technology – Infrastructure Additions – Include capital outlay for additional technology infrastructure. (For further clarification on which expenditures should be included in this object code, see the “Special Note” below.)\n\n"]
[null,"• Special Note ‐ Classification of Hardware and Infrastructure Expenditures: \n\nReport expenditures under technology “hardware” for computers, associated peripheral equipment, and other specialized technology equipment. Computers include desktop and laptop machines, handheld computers (i.e., Personal Digital Assistants or PDAs), and mainframe machines. Peripheral equipment includes devices attached to computers, such as monitors, keyboards, disk drives, modems, printers, scanners, cameras and speakers, etc.\n\nReport other specialized computer devices under technology “hardware” such as fax‐back and voicemail resources; videoconferencing and other distance education tools, including satellite transmitters and receivers; cable‐based receivers; and modem or codec‐based video equipment; projection devices, from transparent and opaque projectors to video monitors; and graphing calculators and other specialized computational aids.\n\nReport expenditures under technology “infrastructure” for equipment and devices that enable the linking of computers or video hardware to networks (such as routers, hubs, switches, access servers, modems, or codecs). Infrastructure also refers to cabling installations, whether wire, fiber optic, or coaxial, as well as electrical capacity expansion or HVAC upgrades to support networks. In wireless networking systems, include receivers and transmitters under infrastructure.\n"]
["Page 26"]
[]
[null,null,null,"Well Rounded Students"]
[null,null,null,"Safe and Healthy Students"]
[null,null,null,"Technology"]

{"sheet":"Transferability","index":2,"n_rows":186,"n_cols":15,"rows_kept":186,"cut":false,"hidden":false,"merged":[[93,12,93,14],[94,0,94,8],[94,9,94,11],[94,12,94,14],[95,0,95,8],[95,9,95,11],[95,12,95,14],[99,0,99,8],[99,9,99,11],[99,12,99,14],[96,0,96,8],[96,9,96,11],[96,12,96,14],[97,0,97,8],[97,9,97,11],[97,12,97,14],[98,0,98,8],[98,9,98,11],[98,12,98,14],[181,0,181,6],[181,7,181,10],[181,12,181,14],[182,12,182,14],[20,0,20,2],[185,0,185,14],[184,0,184,14],[178,0,178,6],[178,7,178,10],[178,12,178,14],[179,0,179,6],[179,7,179,10],[179,12,179,14],[180,0,180,6],[180,7,180,10],[180,12,180,14],[175,0,175,6],[175,7,175,10],[175,12,175,14],[176,0,176,6],[176,7,176,10],[176,12,176,14],[93,0,93,8],[93,9,93,11],[177,0,177,6],[177,7,177,10],[177,12,177,14],[172,0,172,6],[172,7,172,10],[172,12,172,14],[173,0,173,6],[173,7,173,10],[173,12,173,14],[174,0,174,6],[174,7,174,10],[174,12,174,14],[164,12,164,14],[168,0,168,14],[171,0,171,6],[171,7,171,10],[171,12,171,14],[169,0,169,14],[170,0,170,14],[165,0,165,14],[167,0,167,14],[164,8,164,11],[161,0,161,6],[161,7,161,10],[161,12,161,14],[162,0,162,6],[162,7,162,10],[162,12,162,14],[163,0,163,6],[163,7,163,10],[163,12,163,14],[158,0,158,6],[158,7,158,10],[158,12,158,14],[159,0,159,6],[159,7,159,10],[159,12,159,14],[160,0,160,6],[160,7,160,10],[160,12,160,14],[155,0,155,6],[155,7,155,10],[155,12,155,14],[156,0,156,6],[156,7,156,10],[156,12,156,14],[157,0,157,6],[157,7,157,10],[157,12,157,14],[147,12,147,14],[147,10,147,11],[150,0,150,14],[151,0,151,14],[152,0,152,14],[153,0,153,6],[153,7,153,10],[153,12,153,14],[154,0,154,6],[154,7,154,10],[154,12,154,14],[149,0,149,14],[144,0,144,8],[144,9,144,11],[144,12,144,14],[145,0,145,8],[145,9,145,11],[145,12,145,14],[146,0,146,8],[146,9,146,11],[146,12,146,14],[141,0,141,8],[141,9,141,11],[141,12,141,14],[142,0,142,8],[142,9,142,11],[142,12,142,14],[143,0,143,8],[143,9,143,11],[143,12,143,14],[138,0,138,8],[138,9,138,11],[138,12,138,14],[139,0,139,8],[139,9,139,11],[139,12,139,14],[140,0,140,8],[140,9,140,11],[140,12,140,14],[133,0,133,14],[136,0,136,8],[136,9,136,11],[136,12,136,14],[134,0,134,14],[135,0,135,14],[126,10,126,11],[137,0,137,8],[137,9,137,11],[137,12,137,14],[128,0,128,14],[126,12,126,14],[132,0,132,14],[119,0,119,8],[119,9,119,11],[119,12,119,14],[120,0,120,8],[120,9,120,11],[120,12,120,14],[125,0,125,8],[125,9,125,11],[125,12,125,14],[121,0,121,8],[121,9,121,11],[121,12,121,14],[122,0,122,8],[122,9,122,11],[122,12,122,14],[123,0,123,8],[123,9,123,11],[123,12,123,14],[124,0,124,8],[124,9,124,11],[124,12,124,14],[116,0,116,8],[116,9,116,11],[116,12,116,14],[112,0,112,14],[117,0,117,8],[117,9,117,11],[117,12,117,14],[118,0,118,8],[118,9,118,11],[118,12,118,14],[109,12,109,14],[109,10,109,11],[115,0,115,8],[115,9,115,11],[115,12,115,14],[113,0,113,14],[114,0,114,14],[106,0,106,8],[106,9,106,11],[106,12,106,14],[107,0,107,8],[107,9,107,11],[107,12,107,14],[108,0,108,8],[108,9,108,11],[108,12,108,14],[111,0,111,14],[103,0,103,8],[103,9,103,11],[103,12,103,14],[104,0,104,8],[104,9,104,11],[104,12,104,14],[105,0,105,8],[105,9,105,11],[105,12,105,14],[100,0,100,8],[100,9,100,11],[100,12,100,14],[101,0,101,8],[101,9,101,11],[101,12,101,14],[102,0,102,8],[102,9,102,11],[102,12,102,14],[90,0,90,14],[91,0,91,8],[91,9,91,11],[91,12,91,14],[84,10,84,11],[85,0,85,14],[92,0,92,8],[92,9,92,11],[92,12,92,14],[82,0,82,8],[82,9,82,11],[82,12,82,14],[83,0,83,8],[83,9,83,11],[83,12,83,14],[84,12,84,14],[88,0,88,14],[89,0,89,14],[87,0,87,14],[81,12,81,14],[75,0,75,8],[75,9,75,11],[75,12,75,14],[76,0,76,8],[76,9,76,11],[76,12,76,14],[79,0,79,8],[79,9,79,11],[79,12,79,14],[77,0,77,8],[77,9,77,11],[77,12,77,14],[78,0,78,8],[78,9,78,11],[78,12,78,14],[61,0,61,6],[61,7,61,10],[61,12,61,14],[63,0,63,6],[63,7,63,10],[63,12,63,14],[64,0,64,6],[64,7,64,10],[64,12,64,14],[62,0,62,6],[62,7,62,10],[62,12,62,14],[58,0,58,6],[58,7,58,10],[58,12,58,14],[59,0,59,6],[59,7,59,10],[59,12,59,14],[60,0,60,6],[60,7,60,10],[60,12,60,14],[52,0,52,14],[56,0,56,6],[56,7,56,10],[56,12,56,14],[54,0,54,14],[55,0,55,14],[43,0,43,2],[57,0,57,6],[57,7,57,10],[57,12,57,14],[44,0,44,2],[45,0,45,2],[46,0,46,2],[47,0,47,2],[48,0,48,2],[50,0,50,14],[53,0,53,14],[39,0,39,2],[42,0,42,2],[40,0,40,2],[31,0,31,2],[30,0,30,2],[36,0,36,2],[33,0,33,2],[32,0,32,2],[35,0,35,2],[41,0,41,2],[29,0,29,2],[27,0,27,2],[22,0,22,2],[21,0,21,2],[24,0,24,2],[25,0,25,2],[23,0,23,2],[37,0,37,2],[38,0,38,2],[34,0,34,2],[19,0,19,2],[17,0,17,2],[18,0,18,2],[14,0,14,2],[15,0,15,2],[16,0,16,2],[11,0,11,2],[26,0,26,2],[28,0,28,2],[1,0,1,14],[3,0,3,14],[8,3,8,14],[9,10,9,11],[13,0,13,2],[12,0,12,2],[5,0,5,11],[9,13,9,14],[9,7,9,8],[9,5,9,6],[9,3,9,4],[6,0,6,10],[182,8,182,11],[65,0,65,6],[65,7,65,10],[65,12,65,14],[66,0,66,6],[66,7,66,10],[66,12,66,14],[67,8,67,10],[67,12,67,14],[73,0,73,8],[73,9,73,11],[73,12,73,14],[71,0,71,14],[72,0,72,14],[69,0,69,14],[70,0,70,14],[74,0,74,8],[74,9,74,11],[74,12,74,14],[80,0,80,8],[80,9,80,11],[80,12,80,14],[81,0,81,8],[81,9,81,11]]}
[null,null,null,null,"School Division:",null,{"$f":"Narrative!$A$17","v":"ALBEMARLE COUNTY PUBLIC SCHOOLS"},null,null,null,null,null,"Division Number:",null,{"$f":"Narrative!$H$17","v":2}]
["G.  TRANSFERABILITY"]
[]
["Section 5103(b)(2) of ESSA allows divisions to transfer all or a portion of the funds received from Title II, Part A, or Title IV, Part A, into: Title I, Part A; Title I, Part C; Title I, Part D; Title II, Part A; Title III, Part A; Title IV, Part A; or Title V, Part B.  "]
[]
["Complete the tab below if funds will be transferred under Section 5103(b)(2). Please note that prior approval is required to transfer funds. The transfer request form is provided at "]
["Transfer Request Form"]
[]
[null,null,null,"Amount Budgeted"]
[null,null,null,"Title I, Part A",null,"Title I, Part C",null,"Title I, Part D",null,"Title II, Part A","Title III, Part A",null,"Title IV, Part A","Title V, Part B"]
[null,null,null,"Title II, Part A, Transferability","Title IV, Part A, Transferability","Title II, Part A, Transferability","Title IV, Part A, Transferability","Title II, Part A, Transferability","Title IV, Part A, Transferability","Title IV, Part A, Transferability","Title II, Part A, Transferability","Title IV, Part A, Transferability","Title II, Part A, Transferability\nAward S367A200044\nProject Code APE60022\n","Title II, Part A, Transferability","Title IV, Part A, Transferability"]
["Amount Transferred to Program",null,null,null,null,null,null,null,null,null,null,null,{"$f":"Narrative!M60","v":0}]
["OBJECT CODE - EXPENDITURE TYPE"]
["1000 -  Personal Services"]
["Administrative",null,null,null,null,null,null,null,null,null,null,null,0]
["Non-Administrative",null,null,null,null,null,null,null,null,null,null,null,0]
["Private School Set-Aside ",null,null,null,null,null,null,null,null,null,null,null,0]
["Total Personal Services",null,null,null,null,null,null,null,null,null,null,null,{"$f":"SUM(M15:M17)","v":0}]
["2000 - Employee Benefits"]
["Administrative",null,null,null,null,null,null,null,null,null,null,null,0]
["Non-Administrative",null,null,null,null,null,null,null,null,null,null,null,0]
["Private School Set-Aside ",null,null,null,null,null,null,null,null,null,null,null,0]
["Total Employee Benefits",null,null,null,null,null,null,null,null,null,null,null,{"$f":"SUM(M20:M22)","v":0}]
["3000 - Purchased/Contracted Services"]
["Administrative",null,null,null,null,null,null,null,null,null,null,null,0]
["Non-Administrative",null,null,null,null,null,null,null,null,null,null,null,0]
["Private School Set-Aside ",null,null,null,null,null,null,null,null,null,null,null,0]
["Total Purchased/Contracted Services",null,null,null,null,null,null,null,null,null,null,null,{"$f":"SUM(M25:M27)","v":0}]
["4000 - Internal Services"]
["Internal Services",null,null,null,null,null,null,null,null,null,null,null,0]
["Private School Set-Aside ",null,null,null,null,null,null,null,null,null,null,null,0]
["Total Internal Services",null,null,null,null,null,null,null,null,null,null,null,{"$f":"SUM(M30:M31)","v":0}]
["5000 - Other Charges"]
["Indirect Costs",null,null,null,null,null,null,null,null,null,null,null,0]
["Non-Administrative",null,null,null,null,null,null,null,null,null,null,null,0]
["Private School Set-Aside ",null,null,null,null,null,null,null,null,null,null,null,0]
["Total Other Charges",null,null,null,null,null,null,null,null,null,null,null,{"$f":"SUM(M34:M36)","v":0}]
["6000 - Materials and Supplies"]
["Administrative",null,null,null,null,null,null,null,null,null,null,null,0]
["Non-Administrative",null,null,null,null,null,null,null,null,null,null,null,0]
["Private School Set-Aside ",null,null,null,null,null,null,null,null,null,null,null,0]
["Total Materials and Supplies",null,null,null,null,null,null,null,null,null,null,null,{"$f":"SUM(M39:M41)","v":0}]
["8000 - Capital Outlay"]
["Non-Administrative",null,null,null,null,null,null,null,null,null,null,null,0]
["Private School Set-Aside ",null,null,null,null,null,null,null,null,null,null,null,0]
["Total Capital Outlay",null,null,null,null,null,null,null,null,null,null,null,{"$f":"SUM(M44:M45)","v":0}]
["Total Budget",null,null,null,null,null,null,null,null,null,null,null,{"$f":"SUM(M18,M23,M28,M32,M37,M42,M46)","v":0}]
["Total Private School Set-Aside",null,null,null,null,null,null,null,null,null,null,null,{"$f":"SUM(M17+M22+M27+M31+M36+M41+M45)","v":0}]
["Does the Total Budget Match the Amount Transferred into Program?",null,null,null,null,null,null,null,null,null,null,null,{"$f":"IF(M47=M12,\"Yes\",\"No\")","v":"Yes"}]
[]
["Page 27"]
[null,null,null,null,"School Division:",null,{"$f":"Narrative!$A$17","v":"ALBEMARLE COUNTY PUBLIC SCHOOLS"},null,null,null,null,null,"Division Number:",null,{"$f":"Narrative!$H$17","v":2}]
["DETAILED BUDGET DESCRIPTION OF OBJECT CODE 1000"]
["If applicable, indicate the positions and FTEs supported with funds from this program."]
[]
[]
["Item Description",null,null,null,null,null,null,"Funding Source",null,null,null,"FTEs","Total Cost"]
[]
[]
[]
[]
[]
[]
[]
[]
[]
[]
[null,null,null,null,"      ",null,null,null,"Total for Object Code:",null,null,{"$f":"SUM(L58:L67)","v":0},{"$f":"SUM(M58:O67)","v":0}]
[]
["DETAILED BUDGET DESCRIPTION OF OBJECT CODE 2000"]
["Indicate the fixed charge categories (such as FICA, health insurance, etc.) and specify the amount of each."]
[]
[]
["Item Description",null,null,null,null,null,null,null,null,"Funding Source",null,null,"Total Cost"]
[]
[]
[]
[]
[]
[]
[]
[]
[]
[]
[null,null,null,null,"      ",null,null,null,null,null,"Total for Object Code:",null,{"$f":"SUM(M75:O84)","v":0}]
["Page 28"]
[null,null,null,null,"School Division:",null,{"$f":"Narrative!$A$17","v":"ALBEMARLE COUNTY PUBLIC SCHOOLS"},null,null,null,null,null,"Division Number:",null,{"$f":"Narrative!$H$17","v":2}]
["JUSTIFICATION FOR PROFESSIONAL DEVELOPMENT - OBJECT CODE 3000"]
["Please indicate how these funds will support any services and activities that are described in this application.  If program funds are expended for professional development, justify such expenditures by demonstrating a relationship between the proposed expenditure for professional development and the program services and activities described in the application. "]
[]
[]
["Item Description",null,null,null,null,null,null,null,null,"Funding Source",null,null,"Total Cost"]
[]
[]
[]
[]
[]
[]
[]
[]
[]
[]
[]
[]
[]
[]
[]
[]
[]
[null,null,null,null,"      ",null,null,null,null,null,"Total for Object Code:",null,{"$f":"SUM(M93:O109)","v":0}]
[]
["JUSTIFICATION FOR INTERNAL SERVICES - OBJECT CODE 4000"]
["If program funds are expended for internal services, describe these services below."]
[]
[]
["Item Description",null,null,null,null,null,null,null,null,"Funding Source",null,null,"Total Cost"]
[]
[]
[]
[]
[]
[]
[]
[]
[]
[]
[null,null,null,null,"      ",null,null,null,null,null,"Total for Object Code:",null,{"$f":"SUM(M117:O126)","v":0}]
[]
["Page 29"]
[null,null,null,null,"School Division:",null,{"$f":"Narrative!$A$17","v":"ALBEMARLE COUNTY PUBLIC SCHOOLS"},null,null,null,null,null,"Division Number:",null,{"$f":"Narrative!$H$17","v":2}]
[]
[]
["JUSTIFICATION FOR TRAVEL COSTS - OBJECT CODE 5000"]
["Travel must be justified by demonstrating a relationship between the proposed travel and the needs of the program.  Please indicate the estimated cost and the estimated number of people attending.  If applicable, indicate indirect costs charged to this program.  Indirect costs cannot be claimed against capital outlay and equipment."]
[]
[]
["Item Description",null,null,null,null,null,null,null,null,"Funding Source",null,null,"Total Cost"]
[]
[]
[]
[]
[]
[]
[]
[]
[]
[]
[null,null,null,null,"      ",null,null,null,null,null,"Total for Object Code:",null,{"$f":"SUM(M138:O147)","v":0}]
[]
["JUSTIFICATION FOR MATERIALS AND SUPPLIES - OBJECT CODE 6000"]
["Provide a description of materials, supplies, and all equipment less $5,000 per unit.  Indicate the estimated quantity of each item.  Please describe any technology infrastructure included in the budget.  \nNOTE:  LEAs may not spend more than 15 percent of the funds allocated to the effective use of technology category to purchase equipment, devices, software, platforms, digital instructional resources, or other one-time IT purchases."]
[]
[]
["Item Description",null,null,null,null,null,null,"Funding Source",null,null,null,"Quantities","Total Cost"]
[]
[]
[]
[]
[]
[]
[]
[]
[]
[]
[null,null,null,null,"      ",null,null,null,"Total for Object Code:",null,null,null,{"$f":"SUM(M155:O164)","v":0}]
["Page 30"]
[null,null,null,null,"School Division:",null,{"$f":"Narrative!$A$17","v":"ALBEMARLE COUNTY PUBLIC SCHOOLS"},null,null,null,null,null,"Division Number:",null,{"$f":"Narrative!$H$17","v":2}]
["JUSTIFICATION FOR CAPITAL OUTLAY - OBJECT CODE 8000"]
["All capital outlay expenditures over $5,000 per unit must be approved in advance by the Virginia Department of Education. If the school division has established a threshold of a lesser amount, items equal to that amount or greater must also receive prior approval by the Virginia Department of Education.  Nonconsumable items must be listed in the application.  Equipment quantities must be specified. "]
[]
[]
["Item Description",null,null,null,null,null,null,"Funding Source",null,null,null,"Quantities","Total Cost"]
[]
[]
[]
[]
[]
[]
[]
[]
[]
[]
[null,null,null,null,"      ",null,null,null,"Total for Object Code:",null,null,null,{"$f":"SUM(M173:O182)","v":0}]
[]
["Page 31"]
["Page 30"]

{"sheet":"GEPA","index":3,"n_rows":9,"n_cols":16,"rows_kept":9,"cut":false,"hidden":false,"merged":[[13,5,13,6],[13,7,13,8],[13,9,13,10],[11,5,11,6],[11,7,11,8],[11,9,11,10],[12,5,12,6],[12,7,12,8],[12,9,12,10],[7,0,7,15],[8,0,8,15],[10,5,10,6],[10,7,10,8],[10,9,10,10],[0,3,0,5],[1,0,1,15],[3,0,3,15],[5,0,5,15],[6,0,6,15]]}
[null,null,null,"School Division:",null,null,{"$f":"Narrative!$A$17","v":"ALBEMARLE COUNTY PUBLIC SCHOOLS"},null,null,null,null,null,"Division Number:",null,null,{"$f":"Narrative!$H$17","v":2}]
["H.  GENERAL EDUCATION PROVISIONS ACT (GEPA) SECTION 427"]
[]
["Section 427 of the General Education Provisions Act (GEPA) requires applicants for federal funds to include in their applications a description of the steps the applicant will take to ensure equitable access to, and participation in, federally-assisted programs for students, teachers, and other program beneficiaries with special needs. The provision allows applicants discretion in developing the required description. The statute highlights six types of barriers that can impede equitable access or participation: gender, race, national origin, color, disability, or age. Based on local circumstances, the applicant should determine whether these or other barriers may prevent students, teachers, etc., from such access or participation in the federally-funded project or activity. The description in the application of steps to be taken to overcome these barriers need not be lengthy; the application may provide a clear and succinct description of how the applicant plans to address those barriers that are applicable to their circumstances."]
[]
["Describe the steps the division will take to ensure equitable access to, and participation in, grant-funded programs for students, teachers, and other program beneficiaries with special needs as required by the General Education Provisions Act (GEPA) 427, OMB Control No. 1894-00045, Section 427."]
[]
[]
["Page 32"]

{"sheet":"Private Schools","index":4,"n_rows":99,"n_cols":23,"rows_kept":99,"cut":false,"hidden":false,"merged":[[85,9,85,10],[77,9,77,10],[76,9,76,10],[74,7,74,8],[31,0,31,22],[18,1,18,10],[19,1,19,10],[20,1,20,10],[23,1,23,10],[24,1,24,10],[68,9,68,10],[42,9,42,10],[40,0,40,4],[38,0,38,4],[18,11,18,19],[38,9,38,10],[44,9,44,10],[43,9,43,10],[66,9,66,10],[48,11,48,12],[42,11,42,12],[53,11,53,12],[54,11,54,12],[48,9,48,10],[63,9,63,10],[64,9,64,10],[84,9,84,10],[74,9,74,10],[79,9,79,10],[72,9,72,10],[81,9,81,10],[73,9,73,10],[78,9,78,10],[34,14,34,18],[37,7,37,8],[34,8,34,11],[40,11,40,12],[41,11,41,12],[39,16,39,21],[40,16,40,21],[41,13,41,15],[37,9,37,10],[35,8,35,11],[38,7,38,8],[38,11,38,12],[38,13,38,15],[41,9,41,10],[38,16,38,21],[39,13,39,15],[39,7,39,8],[34,5,34,7],[35,14,35,18],[35,12,35,13],[35,5,35,7],[40,13,40,15],[37,16,37,21],[35,19,35,20],[57,9,57,10],[49,11,49,12],[98,0,98,22],[80,9,80,10],[58,9,58,10],[59,9,59,10],[82,5,82,6],[52,0,52,4],[50,5,50,6],[52,5,52,6],[50,0,50,4],[69,9,69,10],[70,9,70,10],[51,9,51,10],[87,9,87,10],[89,9,89,10],[88,9,88,10],[51,7,51,8],[50,9,50,10],[62,7,62,8],[59,7,59,8],[86,9,86,10],[83,9,83,10],[82,9,82,10],[45,0,45,4],[45,5,45,6],[43,0,43,4],[43,11,43,12],[44,11,44,12],[45,11,45,12],[46,9,46,10],[46,11,46,12],[47,11,47,12],[43,7,43,8],[43,5,43,6],[47,7,47,8],[44,0,44,4],[44,5,44,6],[44,7,44,8],[45,7,45,8],[45,9,45,10],[46,0,46,4],[46,5,46,6],[58,7,58,8],[53,7,53,8],[55,7,55,8],[57,7,57,8],[54,7,54,8],[66,5,66,6],[67,5,67,6],[46,7,46,8],[47,0,47,4],[50,7,50,8],[51,0,51,4],[47,5,47,6],[59,0,59,4],[55,0,55,4],[56,0,56,4],[53,0,53,4],[48,5,48,6],[49,5,49,6],[48,0,48,4],[49,0,49,4],[68,7,68,8],[60,7,60,8],[68,5,68,6],[68,0,68,4],[63,7,63,8],[65,7,65,8],[66,7,66,8],[67,7,67,8],[64,7,64,8],[61,7,61,8],[62,5,62,6],[65,5,65,6],[60,0,60,4],[60,5,60,6],[63,0,63,4],[72,0,72,4],[71,5,71,6],[57,0,57,4],[62,0,62,4],[54,0,54,4],[54,5,54,6],[61,0,61,4],[66,0,66,4],[72,5,72,6],[86,0,86,4],[86,5,86,6],[69,0,69,4],[69,7,69,8],[70,7,70,8],[71,7,71,8],[72,7,72,8],[70,5,70,6],[70,0,70,4],[86,7,86,8],[81,7,81,8],[83,7,83,8],[77,5,77,6],[78,5,78,6],[77,7,77,8],[85,5,85,6],[83,5,83,6],[82,7,82,8],[84,7,84,8],[80,7,80,8],[78,7,78,8],[71,0,71,4],[73,0,73,4],[73,5,73,6],[88,7,88,8],[89,0,89,4],[90,0,90,4],[89,5,89,6],[89,7,89,8],[90,5,90,6],[90,7,90,8],[88,0,88,4],[87,5,87,6],[87,7,87,8],[85,7,85,8],[85,0,85,4],[76,7,76,8],[80,5,80,6],[77,0,77,4],[83,0,83,4],[81,0,81,4],[75,7,75,8],[73,7,73,8],[75,5,75,6],[79,7,79,8],[76,5,76,6],[84,0,84,4],[80,0,80,4],[79,5,79,6],[82,0,82,4],[84,5,84,6],[76,0,76,4],[79,0,79,4],[81,5,81,6],[78,0,78,4],[75,0,75,4],[74,0,74,4],[74,5,74,6],[39,0,39,4],[39,5,39,6],[34,12,34,13],[37,13,37,15],[92,0,92,4],[93,5,93,6],[87,0,87,4],[57,5,57,6],[69,5,69,6],[64,0,64,4],[91,0,91,4],[93,0,93,4],[92,5,92,6],[91,5,91,6],[67,0,67,4],[88,5,88,6],[65,0,65,4],[59,5,59,6],[58,5,58,6],[63,5,63,6],[64,5,64,6],[58,0,58,4],[44,13,44,15],[45,13,45,15],[41,7,41,8],[40,5,40,6],[51,11,51,12],[57,11,57,12],[58,11,58,12],[72,11,72,12],[54,9,54,10],[75,9,75,10],[61,9,61,10],[71,9,71,10],[71,11,71,12],[75,11,75,12],[74,11,74,12],[73,11,73,12],[61,5,61,6],[56,7,56,8],[53,5,53,6],[50,11,50,12],[55,5,55,6],[56,5,56,6],[51,5,51,6],[48,7,48,8],[52,7,52,8],[49,7,49,8],[43,16,43,21],[44,16,44,21],[45,16,45,21],[43,13,43,15],[47,9,47,10],[49,9,49,10],[56,9,56,10],[55,9,55,10],[70,11,70,12],[60,9,60,10],[67,9,67,10],[65,9,65,10],[61,13,61,15],[46,13,46,15],[52,9,52,10],[53,9,53,10],[62,9,62,10],[67,11,67,12],[68,11,68,12],[69,11,69,12],[54,13,54,15],[47,13,47,15],[48,13,48,15],[49,13,49,15],[62,13,62,15],[63,13,63,15],[64,13,64,15],[65,13,65,15],[66,13,66,15],[67,13,67,15],[50,13,50,15],[51,13,51,15],[52,13,52,15],[1,0,1,22],[11,19,11,22],[42,0,42,4],[38,5,38,6],[15,11,15,12],[41,5,41,6],[19,11,19,19],[42,7,42,8],[39,9,39,10],[40,7,40,8],[40,9,40,10],[41,0,41,4],[37,11,37,12],[39,11,39,12],[41,16,41,21],[42,16,42,21],[42,13,42,15],[37,0,37,4],[37,5,37,6],[42,5,42,6],[23,11,23,19],[34,19,34,20],[24,11,24,19],[25,1,25,10],[88,11,88,12],[89,11,89,12],[66,11,66,12],[63,11,63,12],[52,11,52,12],[59,11,59,12],[60,11,60,12],[61,11,61,12],[64,11,64,12],[65,11,65,12],[62,11,62,12],[86,11,86,12],[87,11,87,12],[76,11,76,12],[77,11,77,12],[78,11,78,12],[79,11,79,12],[80,11,80,12],[81,11,81,12],[55,11,55,12],[56,11,56,12],[82,11,82,12],[83,11,83,12],[84,11,84,12],[46,16,46,21],[47,16,47,21],[48,16,48,21],[49,16,49,21],[50,16,50,21],[51,16,51,21],[58,16,58,21],[59,16,59,21],[60,16,60,21],[52,16,52,21],[53,16,53,21],[54,16,54,21],[55,16,55,21],[56,16,56,21],[57,16,57,21],[61,16,61,21],[55,13,55,15],[56,13,56,15],[57,13,57,15],[58,13,58,15],[59,13,59,15],[60,13,60,15],[53,13,53,15],[81,16,81,21],[71,16,71,21],[72,16,72,21],[73,16,73,21],[74,16,74,21],[75,16,75,21],[68,13,68,15],[69,13,69,15],[70,13,70,15],[71,13,71,15],[72,13,72,15],[75,13,75,15],[76,13,76,15],[77,13,77,15],[78,13,78,15],[76,16,76,21],[77,16,77,21],[78,16,78,21],[79,16,79,21],[80,16,80,21],[85,11,85,12],[68,16,68,21],[69,16,69,21],[62,16,62,21],[63,16,63,21],[64,16,64,21],[65,16,65,21],[66,16,66,21],[67,16,67,21],[70,16,70,21],[79,13,79,15],[80,13,80,15],[81,13,81,15],[82,13,82,15],[83,13,83,15],[84,13,84,15],[73,13,73,15],[74,13,74,15],[82,16,82,21],[83,16,83,21],[84,16,84,21],[85,16,85,21],[86,16,86,21],[87,16,87,21],[91,13,91,15],[92,13,92,15],[93,13,93,15],[85,13,85,15],[86,13,86,15],[87,13,87,15],[88,13,88,15],[89,13,89,15],[90,13,90,15],[93,16,93,21],[88,16,88,21],[89,16,89,21],[90,16,90,21],[91,16,91,21],[92,16,92,21],[90,11,90,12],[91,11,91,12],[92,11,92,12],[93,11,93,12],[95,7,95,8],[91,7,91,8],[90,9,90,10],[91,9,91,10],[92,7,92,8],[93,7,93,8],[92,9,92,10],[93,9,93,10],[94,9,94,10],[97,0,97,4],[97,5,97,6],[97,7,97,8],[97,9,97,10],[97,11,97,12],[94,16,94,21],[95,16,95,21],[96,16,96,21],[96,0,96,4],[96,5,96,6],[96,13,96,15],[95,0,95,4],[95,5,95,6],[94,0,94,4],[94,5,94,6],[94,11,94,12],[95,11,95,12],[95,9,95,10],[94,7,94,8],[94,13,94,15],[95,13,95,15],[96,9,96,10],[96,11,96,12],[96,7,96,8],[32,0,32,21],[29,0,29,21],[27,0,27,21],[22,0,22,21],[17,0,17,21],[13,13,13,21],[8,0,8,21],[3,0,3,21],[5,0,5,21],[25,11,25,19],[20,11,20,19]]}
[null,null,null,null,"School Division:",null,{"$f":"Narrative!$A$17","v":"ALBEMARLE COUNTY PUBLIC SCHOOLS"},null,null,null,null,null,null,null,null,null,null,null,null,"Division Number:",null,null,{"$f":"Narrative!$H$17","v":2}]
["I.  PRIVATE SCHOOL PARTICIPATION"]
[]
["Each year, the school division must contact all eligible private (nonprofit) schools and engage in meaningful consultation on the availability of equitable services funded by Title IV, Part A. (ESEA Section 8501 and Title VIII, Uniform Provisions, Part F, Subpart 1)."]
[]
["1. Are there private nonprofit schools in your school division’s attendance area?"]
[null,null,null,"Yes (If yes, complete the remainder of this page.)",null,null,null,null,null,null,null,null,"No (If no, it is not necessary to complete the rest of this page.)"]
[]
["2. Place an \"X\" in the appropriate block(s) to indicate how private schools in the division were notified on the availability of equitable services funded by Title IV, Part A. (Copies of the notification must be kept on file for monitoring purposes.)"]
[null,null,"Regular Mail",null,null,null,null,null,null,null,"Certified Mail"]
[]
[null,null,"Telephone Calls",null,null,null,null,null,null,null,"Meetings"]
[]
[null,null,"Visits to the Private School",null,null,null,null,null,null,null,"Other (Please specify)"]
[]
["3. What is the public school division's projected K-12 enrollment for the 2020-2021 school year?"]
[]
["4. Determining Set-Asides (These fields will calculate automatically once enrollment figures have been entered.)"]
[null,"a. Proposed Budget ",null,null,null,null,null,null,null,null,null,{"$f":"Budget!M33","v":0}]
[null,"b. Amount of funds allocated for administration ",null,null,null,null,null,null,null,null,null,{"$f":"Budget!M34","v":0}]
[null,"c. Amount to use for set-aside calculations",null,null,null,null,null,null,null,null,null,{"$f":"L19-L20","v":0}]
[]
["5. Determining additional set-asides as a result of Transferability. These fields will calculate automatically once budget and enrollment figures have been entered."]
[null,"a. Proposed Budget ",null,null,null,null,null,null,null,null,null,{"$f":"Transferability!M12","v":0}]
[null,"b. Amount of funds allocated for administration ",null,null,null,null,null,null,null,null,null,{"$f":"SUM(Transferability!M15+Transferability!M20+Transferability!M25+Transferability!M34+Transferability!M39)","v":0}]
[null,"c. Amount to use for set-aside calculations",null,null,null,null,null,null,null,null,null,{"$f":"L24-L25","v":0}]
[]
["6. Complete the chart below:\n• In Column A, list all eligible private schools in the geographic boundaries of the school division.\n• In Column B, indicate the participation status of the listed private school(s) for the 2020-2021 award year, as a result of consultation.\n• In Column C, enter the K-12 enrollment of private schools participating in services for the 2020-2021 award year.\n• Column D will automatically calculate the value of services for the 2020-2021 award year.\n• In Column E, indicate the method of notification for each private school."]
[]
["7. For the 2020-2021 award year, enter the value of services amount in cell F36 on the budget tab in the budget summary on the “Private School Set-Aside” lines.  On the Budget Detail pages, list as \"Private School Set-Aside\" under the appropriate object codes."]
[]
["Page 33"]
["8. Enter the value of additional services amount in cell I36 on the transferability tab in the appropriate object codes.  On the budget detail section on the same tab, list as \"Private School Set-Aside\" under the appropriate object codes."]
[]
[null,null,null,null,null,"Value of Services for \nParticipating Private Schools \n– from Title IVA 2020-2021 Budget",null,null,"Value of Additional Services for Participating Private Schools \n- from 2020-2021 Transferability",null,null,null,"Total Value of Services for \nPublic Schools from \n2020-2021 Allocation",null,"Total Value of Additional Services for Public Schools from \n2020-2021 Transferability"]
[null,null,null,null,null,{"$f":"J97","v":0},null,null,{"$f":"L97","v":0},null,null,null,{"$f":"L21-J97","v":0},null,{"$f":"L26-L97","v":0}]
[]
["A",null,null,null,null,"B",null,"C",null,"D",null,"E",null,"F",null,null,"G"]
[" Private Schools",null,null,null,null,"Participation Status for \n2020-2021 Award Year?\n(Yes/No)  ",null,"K-12\n Enrollment ",null,"Value of Services for Participating Private Schools – \nfrom Title IVA \n2020-2021 budget\n(calculated field)",null,"Value of Additional Services for Participating Private Schools - \nfrom 2020-2021 \nTransferability",null,"Total Value of Services (D+E)",null,null,"Method of Notification\n(for non-participating schools only)"]
[null,null,null,null,null,null,null,null,null,{"$f":"ROUND(IF(F40=\"Yes\",H40*$F$97,0),2)","v":0},null,{"$f":"ROUND(IF(F40=\"Yes\",H40*$F$98,0),2)","v":0},null,{"$f":"SUM(J40+L40)","v":0}]
[null,null,null,null,null,null,null,null,null,{"$f":"ROUND(IF(F41=\"Yes\",H41*$F$97,0),2)","v":0},null,{"$f":"ROUND(IF(F41=\"Yes\",H41*$F$98,0),2)","v":0},null,{"$f":"SUM(J41+L41)","v":0}]
[null,null,null,null,null,null,null,null,null,0,null,0,null,0]
[null,null,null,null,null,null,null,null,null,0,null,0,null,0]
[null,null,null,null,null,null,null,null,null,0,null,0,null,0]
[null,null,null,null,null,null,null,null,null,0,null,0,null,0]
[null,null,null,null,null,null,null,null,null,0,null,0,null,0]
[null,null,null,null,null,null,null,null,null,0,null,0,null,0]
[null,null,null,null,null,null,null,null,null,0,null,0,null,0]
[null,null,null,null,null,null,null,null,null,0,null,0,null,0]
[null,null,null,null,null,null,null,null,null,0,null,0,null,0]
[null,null,null,null,null,null,null,null,null,0,null,0,null,0]
[null,null,null,null,null,null,null,null,null,0,null,0,null,0]
[null,null,null,null,null,null,null,null,null,0,null,0,null,0]
[null,null,null,null,null,null,null,null,null,0,null,0,null,0]
[null,null,null,null,null,null,null,null,null,0,null,0,null,0]
[null,null,null,null,null,null,null,null,null,0,null,0,null,0]
[null,null,null,null,null,null,null,null,null,0,null,0,null,0]
[null,null,null,null,null,null,null,null,null,0,null,0,null,0]
[null,null,null,null,null,null,null,null,null,0,null,0,null,0]
[null,null,null,null,null,null,null,null,null,0,null,0,null,0]
[null,null,null,null,null,null,null,null,null,0,null,0,null,0]
[null,null,null,null,null,null,null,null,null,0,null,0,null,0]
[null,null,null,null,null,null,null,null,null,0,null,0,null,0]
[null,null,null,null,null,null,null,null,null,0,null,0,null,0]
[null,null,null,null,null,null,null,null,null,0,null,0,null,0]
[null,null,null,null,null,null,null,null,null,0,null,0,null,0]
[null,null,null,null,null,null,null,null,null,0,null,0,null,0]
[null,null,null,null,null,null,null,null,null,0,null,0,null,0]
[null,null,null,null,null,null,null,null,null,0,null,0,null,0]
[null,null,null,null,null,null,null,null,null,0,null,0,null,0]
[null,null,null,null,null,null,null,null,null,0,null,0,null,0]
[null,null,null,null,null,null,null,null,null,0,null,0,null,0]
[null,null,null,null,null,null,null,null,null,0,null,0,null,0]
[null,null,null,null,null,null,null,null,null,0,null,0,null,0]
[null,null,null,null,null,null,null,null,null,0,null,0,null,0]
[null,null,null,null,null,null,null,null,null,0,null,0,null,0]
[null,null,null,null,null,null,null,null,null,0,null,0,null,0]
[null,null,null,null,null,null,null,null,null,0,null,0,null,0]
[null,null,null,null,null,null,null,null,null,0,null,0,null,0]
[null,null,null,null,null,null,null,null,null,0,null,0,null,0]
[null,null,null,null,null,null,null,null,null,0,null,0,null,0]
[null,null,null,null,null,null,null,null,null,0,null,0,null,0]
[null,null,null,null,null,null,null,null,null,0,null,0,null,0]
[null,null,null,null,null,null,null,null,null,0,null,0,null,0]
[null,null,null,null,null,null,null,null,null,0,null,0,null,0]
[null,null,null,null,null,null,null,null,null,0,null,0,null,0]
[null,null,null,null,null,null,null,null,null,0,null,0,null,0]
[null,null,null,null,null,null,null,null,null,0,null,0,null,0]
[null,null,null,null,null,null,null,null,null,0,null,0,null,0]
[null,null,null,null,null,null,null,null,null,0,null,0,null,0]
[null,null,null,null,null,null,null,null,null,0,null,0,null,0]
[null,null,null,null,null,null,null,null,null,0,null,0,null,0]
[null,null,null,null,null,null,null,null,null,0,null,0,null,0]
[null,null,null,null,null,null,null,null,null,0,null,0,null,0]
[null,null,null,null,null,null,null,null,null,0,null,0,null,0]
[null,null,null,null,null,null,null,null,null,0,null,0,null,{"$f":"SUM(J96+L96)","v":0}]
["Per Pupil Expenditure \n(calculated field):          ",null,null,null,null,{"$f":"IF(ISERROR(SUM(L21)/(SUM(L16)+SUMIF(F40:G96,\"Yes\",H40:I96))),0,SUM(L21)/(SUM(L16)+SUMIF(F40:G96,\"Yes\",H40:I96)))","v":0},null,"Total Private School Set-Asides",null,{"$f":"SUM(J40:K96)","v":0},null,{"$f":"SUM(L40:M96)","v":0}]
["Per Pupil Expenditure for Transferability funds (calculated field):",null,null,null,null,{"$f":"IF(ISERROR(SUM(L26)/(SUM(L16)+SUMIF(F40:G96,\"Yes\",H40:I96))),0,SUM(L26)/(SUM(L16)+SUMIF(F40:G96,\"Yes\",H40:I96)))","v":0},null,null,null,"Use this Figure for Private School Set-Asides in the 2020-2021 Budget",null,"Use this Figure for Private School Set-Asides in the 2020-2021 Transferability Budget"]
["Page 35"]

{"sheet":"General Assurances","index":5,"n_rows":47,"n_cols":16,"rows_kept":47,"cut":false,"hidden":false,"merged":[[0,3,0,5],[1,0,1,15],[3,0,3,3],[4,0,4,3],[5,0,5,3],[3,4,3,15],[4,4,4,15],[5,4,5,15],[51,5,51,6],[51,7,51,8],[51,9,51,10],[46,0,46,15],[48,5,48,6],[48,7,48,8],[48,9,48,10],[49,5,49,6],[49,7,49,8],[49,9,49,10],[6,0,6,3],[9,4,9,15],[10,4,10,15],[50,5,50,6],[50,7,50,8],[50,9,50,10],[42,2,42,15],[6,4,6,15],[7,4,7,15],[22,3,22,15],[36,3,36,15],[7,0,7,3],[8,0,8,3],[9,0,9,3],[10,0,10,3],[8,4,8,15],[43,1,43,15],[44,1,44,15],[40,3,40,15],[37,4,37,15],[38,4,38,15],[39,4,39,15],[41,2,41,15],[35,3,35,15],[28,0,28,15],[29,3,29,5],[30,0,30,15],[31,3,31,15],[32,3,32,15],[33,3,33,15],[34,3,34,15],[11,0,11,15],[16,2,16,15],[17,2,17,15],[15,1,15,15],[27,3,27,15],[23,3,23,15],[24,3,24,15],[25,3,25,15],[26,3,26,15],[12,1,12,15],[13,1,13,15],[14,1,14,15],[18,3,18,15],[19,3,19,15],[20,3,20,15],[21,3,21,15]]}
[null,null,null,"School Division:",null,null,{"$f":"Narrative!$A$17","v":"ALBEMARLE COUNTY PUBLIC SCHOOLS"},null,null,null,null,null,"Division Number:",null,null,{"$f":"Narrative!$H$17","v":2}]
["GENERAL ASSURANCES"]
[]
["Title I, Part A",null,null,null,"Improving Basic Programs Operated by Local Educational Agencies"]
["Title I, Part C",null,null,null,"Education of Migratory  Children"]
["Title I, Part D, Subpart 2",null,null,null,"Prevention and Intervention Programs for Children and Youth Who Are Neglected, Delinquent, or At-Risk"]
["Title II, Part A",null,null,null,"Supporting Effective Instruction"]
["Title III, Part A ",null,null,null,"Language Instruction for English Learners and Immigrant Students"]
["Title IV, Part A",null,null,null,"Student Support and Academic Enrichments Grants"]
["Title V, Part B, Subpart 2",null,null,null,"Rural and Low-Income School Program"]
[]
["The school division/grantee assures:"]
["I.","Each program will be administered in accordance with all applicable statutes, regulations, program plans, and applications;"]
["II.","The control of funds provided under each program and title to property acquired with program funds will be in a public agency, a nonprofit private agency, institution, organization, or an Indian tribe, if the law authorizing the program provides for assistance to those entities;"]
["III.","The public agency, nonprofit private agency, institution, organization, or Indian tribe, will administer the funds and property to the extent required by the authorizing statutes;"]
["IV.","It will adopt and use proper methods of administering each program, including - "]
[null,"A.","The enforcement of any obligations imposed by law on agencies, institutions, organizations, and other recipients responsible for carrying out each program;"]
[null,"B.","The correction of deficiencies in program operations that are identified through audits, monitoring, or evaluation and that:"]
[null,null,"1.","It will maintain fiscal effort in support of free public education;"]
[null,null,"2.","It will provide services with state and local funds that are at least comparable to services provided in schools and areas not receiving special federal funds; "]
[null,null,"3.","The majority of the resources in the school division are derived from nonfederal funds;"]
[null,null,"4.","It is in compliance with the requirements in Title VIII, Section 8524 and has no policy that prevents, or otherwise denies participation in, constitutionally protected prayer in public elementary and secondary schools;"]
[null,null,"5.","It will comply with the audit requirements for each program; "]
[null,null,"6.","The federal funds are used to supplement, not supplant regular nonfederal funds;"]
[null,null,"7.","It will cooperate in carrying out any evaluation of each program conducted by or for the state educational agency, the Secretary, or other federal officials;\n\n"]
[null,null,"8.","It will use such fiscal control and fund accounting procedures as will ensure proper disbursement of, and accounting for, federal funds paid to the applicant under each program;"]
[null,null,"9.","It will submit such reports to the state educational agency (which shall make the reports available to the Governor) and the Secretary of Education as the state educational agency and Secretary may require to enable the state educational agency and the Secretary to perform their duties under each program;\n"]
[null,null,"10.","It will maintain such records for five years, provide such information, and afford such access to the records as the state educational agency (after consultation with the Governor) or the Secretary may reasonably require to carry out the state educational agency’s or the Secretary’s duties; "]
["Page 36"]
[null,null,null,"School Division:",null,null,{"$f":"Narrative!$A$17","v":"ALBEMARLE COUNTY PUBLIC SCHOOLS"},null,null,null,null,null,"Division Number:",null,null,{"$f":"Narrative!$H$17","v":2}]
["GENERAL ASSURANCES (CONTINUED)"]
[null,null,"11.","It consulted with teachers, school administrators, parents, members of the community, nonprofit organizations and other interested parties in the development of this plan;"]
[null,null,"12.","It afforded a reasonable opportunity for public comment on the plan or application and considered such comment before the application was submitted;"]
[null,null,"13.","It will provide information in an understandable and uniform format and, to the extent practicable, be provided in a language that the parents can understand;"]
[null,null,"14.","It is in compliance with the requirement regarding equal access to public school facilities as specified in Title VIII, Section 8525;"]
[null,null,"15.","It is in compliance with the requirement regarding the prohibition on aiding and abetting sexual abuse as specified in Title VIII, Section 8546;"]
[null,null,"16.","It will comply with the other application requirements outlined in"]
[null,null,null,null,"Section 8501. Private School Children;"]
[null,null,null,null,"Section 8502. Bypass; and"]
[null,null,null,null,"Section 8521. Maintenance of Effort under Title VIII –Other Provisions;"]
[null,null,"17.","It will ensure that funds are expended in accordance with the school division’s approved application or amended application.  In the event the local division needs to expend funds in any manner other than stipulated in the approved application, the plan must be amended using the amendment process provided by the Department of Education.  The application must be amended before funds can be expended for activities not approved in the original application;"]
[null,"C.","It will collect and disseminate information collected under Section 1111 in a manner that protects the privacy of individuals;\n"]
[null,"D.","It will adhere to the provisions of the Federal Funding Transparency and Accountability Act (FFATA), and will obtain a valid DUNS number prior to applying for funds."]
["V.","It will comply with Section 22.1-277.07, of the Code of Virginia that requires the expulsion for one year of any student determined to have brought a firearm to school.  A description of each incident, the name of the school concerned, the number of students expelled from each school, and the type of firearm used in each instance of expulsion will be reported to the Virginia Department of Education in compliance with provisions under Section 8561 (Gun-Free Schools Act).  This agency has a policy that requires referral to the criminal justice or the juvenile delinquency system of any student who brings a firearm or weapon to school; and"]
["VI.","It will participate, if selected, in the state National Assessment of Educational Progress in 4th and 8th grade reading and mathematics carried out under Section 303 of the National Assessment of Educational Progress Act."]
[]
["Page 37"]

{"sheet":"Program Specific Assurances","index":6,"n_rows":17,"n_cols":16,"rows_kept":17,"cut":false,"hidden":false,"merged":[[0,3,0,5],[1,0,1,15],[2,0,2,15],[3,1,3,15],[9,1,9,15],[13,1,13,15],[14,1,14,15],[12,2,12,15],[7,2,7,15],[8,2,8,15],[10,2,10,15],[11,2,11,15],[21,5,21,6],[21,7,21,8],[21,9,21,10],[4,2,4,15],[5,2,5,15],[6,2,6,15],[19,5,19,6],[19,7,19,8],[19,9,19,10],[20,5,20,6],[20,7,20,8],[20,9,20,10],[16,0,16,15],[18,5,18,6],[18,7,18,8],[18,9,18,10]]}
[null,null,null,"School Division:",null,null,{"$f":"Narrative!$A$17","v":"ALBEMARLE COUNTY PUBLIC SCHOOLS"},null,null,null,null,null,"Division Number:",null,null,{"$f":"Narrative!$H$17","v":2}]
["PROGRAM SPECIFIC ASSURANCES"]
["In accordance with ESEA Section 4106(e) (2) and (f), each school division/grantee or consortium of school divisions receiving Title IV, Part A, funds will: "]
["I.","Prioritize the distribution of funds to schools served based on one or more of the following criteria—"]
[null,"A.","Are among the schools with the greatest needs;"]
[null,"B.","Have the highest percentages or numbers of children counted under Section 1124(c) (i.e., children counted for purposes of basic grants to LEAs under Title I, Part A of the ESEA);"]
[null,"C.","Are identified for comprehensive support and improvement under Section 1111(c)(4)(D)(i) (i.e., are among the lowest-achieving schools); "]
[null,"D.","Are implementing targeted support and improvement plans as described in Section 1111(d)(2) (i.e., have consistently underperforming student subgroups); or"]
[null,"E.","Are identified as a persistently dangerous public elementary school or secondary school under Section 8532. (ESEA Section 4106(e)(2)(A));"]
["II.","Divisions or consortia that receives $30,000 or more will use—"]
[null,"A.","Not less than 20 percent of funds to support one or more of the activities authorized under Section 4107 pertaining to well-rounded educational opportunities; "]
[null,"B.","Not less than 20 percent of funds to support one or more activities authorized under Section 4108 pertaining to safe and healthy students; and"]
[null,"C.","A portion of funds to support one or more activities authorized under Section 4109(a) pertaining to the effective use of technology, including an assurance that it will not use more than 15 percent of the remaining portion for purchasing technology infrastructure as described in Section 4109(b). (ESEA Section 4106(e)(2)(C)-(E));"]
["III.","Comply with Section 8501-8504, regarding equitable participation of private school children and teachers (ESEA Section 4106(e)(2)(B)); and\n"]
["IV.","Complete an annual State report regarding how funds for the SSAE program are being used (ESEA Section 4106(e)(2)(F)).\n"]
[]
["Page 38"]

{"sheet":"Prefills","index":7,"n_rows":288,"n_cols":61,"rows_kept":288,"cut":false,"hidden":true,"merged":[]}
["Name","Code",null,null,null,null,null,null,"INNOVATIVE ASSISTANCE PROGRAM AREAS",null,null,null,null,null,null,null,null,null,null,null,"Yes",null,"Yes",null,null,"Title I A",null,null,null,"Title I C",null,null,null,"Title ID",null,null,null,"Title IIA",null,null,null,"Title IID",null,null,null,"Title III",null,null,null,"Title IV",null,null,null,"Title V",null,null,null,"Title VI"]
["ACCOMACK COUNTY PUBLIC SCHOOLS",1,null,null,null,null,null,null,null,null,null,null,null,null,null,null,null,null,null,null,"No",null,"No",null,null,"Payee","ProjectGroupID","CONoSOLIDATED_APP_FLAG","Allocation","Payee","ProjectGroupID","CONoSOLIDATED_APP_FLAG","Allocation","Payee","ProjectGroupID","CONoSOLIDATED_APP_FLAG","Allocation","Payee","ProjectGroupID","CONoSOLIDATED_APP_FLAG","Allocation","Payee","ProjectGroupID","CONoSOLIDATED_APP_FLAG","Allocation","Payee","ProjectGroupID","CONoSOLIDATED_APP_FLAG","Allocation","Payee","ProjectGroupID","CONoSOLIDATED_APP_FLAG","Allocation","Payee","ProjectGroupID","CONoSOLIDATED_APP_FLAG","Allocation","Payee","ProjectGroupID","CONoSOLIDATED_APP_FLAG","Allocation"]
["ALBEMARLE COUNTY PUBLIC SCHOOLS",2,null,null,null,null,null," "," ",null,null,null,null,null,null,null,null,null,null,null,null,null,"Shared Services Only",null,null,1,1,"Yes",1786364.85,1,2,"Yes",274686.67,1,3,"Yes",null,1,4,"Yes",285018.61,null,null,null,null,1,6,"Yes",97040.22,1,97,null,160168.14000000001,null,null,null,null,1,9,"Yes",94384.84]
["ALEXANDRIA CITY PUBLIC SCHOOLS",101,null,null,null,null,null,"1. ","1. Recruiting, training, and hiring highly qualified teachers to reduce class size",null,null,null,null,null,null,null,null,null,null,null,null,null,null,null,null,2,1,"No",1442772.07,2,2,"No",84026.79,2,3,"No",null,2,4,"No",309434.74,null,null,null,null,2,6,"No",103428.7,2,97,null,113535.06,null,null,null,null,2,9,"No"]
["ALLEGHANY COUNTY PUBLIC SCHOOLS",3,null,null,null,null,null,"2. ","2. Technology activities, including professional development",null,null,null,null,null,null,null,null,null,null,null,null,null,null,null,null,3,1,"Yes",483805.33,3,2,"Yes",null,3,3,"Yes",42166.04,3,4,"Yes",106591.23,null,null,null,null,3,6,"Yes",2476.63,3,97,null,45392.69,null,null,null,null,3,9,"Yes"]
["AMELIA COUNTY PUBLIC SCHOOLS",4,null,null,null,null,null,"3a.","3a. Development or acquisition and use of: computer software and hardware",null,null,null,null,null,null,null,null,null,null,null,null,null,"Yes",null,null,4,1,"Yes",346908.37,4,2,"Yes",null,4,3,"Yes",null,4,4,"Yes",65194.85,null,null,null,null,4,6,"Yes",4599.45,4,97,null,25929.63,null,null,null,null,4,9,"Yes"]
["AMHERST COUNTY PUBLIC SCHOOLS",5,null,null,null,null,null,"3b.","3b. Development or acquisition and use of: instructional/reference materials and academic assessments",null,null,null,null,null,null,null,null,null,null,null,null,null,"No",null,null,5,1,"No",885018.8,5,2,"No",null,5,3,"No",null,5,4,"No",157542.35,null,null,null,null,5,6,"No",943.48,5,97,null,73552.08,null,null,null,null,5,9,"No"]
["APPOMATTOX COUNTY PUBLIC SCHOOLS",6,null,null,null,null,null,"3c.","3c. Development or acquisition and use of: library/media services and materials",null,null,null,null,null,null,null,null,null,null,null,null,null,null,null,null,6,1,"No",567155.55000000005,6,2,"No",null,6,3,"No",null,6,4,"No",87175.73,null,null,null,null,6,6,"No",353.8,6,97,null,40312.69,null,null,null,null,6,9,"No",42396.28]
["ARLINGTON COUNTY PUBLIC SCHOOLS",7,null,null,null,null,null,"4. ","4. Educational reform projects, including magnet schools",null,null,null,null,null,null,null,null,null,null,null,null,null,null,null,null,7,1,"Yes",1938429.68,7,2,"Yes",null,7,3,"Yes",null,7,4,"Yes",575325.02,null,null,null,null,7,6,"Yes",588170.92000000004,7,97,null,184904.38,null,null,null,null,7,9,"Yes"]
["AUGUSTA COUNTY PUBLIC SCHOOLS",8,null,null,null,null,null,"5. ","5. Programs to improve the academic achievement of educationally disadvantaged elementary and secondary students, including dropout prevention",null,null,null,null,null,null,null,null,null,null,null,null,null,null,null,null,8,1,"No",1232008.8899999999,8,2,"No",null,8,3,"No",null,8,4,"No",267370.76,null,null,null,null,8,6,"No",20756.5,8,97,null,98448.06,null,null,null,null,8,9,"No"]
["BATH COUNTY PUBLIC SCHOOLS",9,null,null,null,null,null,"6. ","6. Programs to improve the literacy skills of adults, including adult education and family literacy programs",null,null,null,null,null,null,null,null,null,null,null,null,null,null,null,null,9,1,"No",71070.41,9,2,"No",null,9,3,"No",null,9,4,"No",22599.119999999999,null,null,null,null,9,6,"No",1297.28,9,97,null,10000,null,null,null,null,9,9,"No"]
["BEDFORD CITY PUBLIC SCHOOLS",140,null,null,null,null,null,"7. ","7. Programs for gifted and talented children",null,null,null,null,null,null,null,null,null,null,null,null,null,null,null,null,10,1,"No",1145914.03,10,2,"No",null,10,3,"No",null,10,4,"No",282012.89,null,null,null,null,10,6,"No",14623.9,10,97,null,107577.77,null,null,null,null,10,9,"No"]
["BEDFORD COUNTY PUBLIC SCHOOLS",10,null,null,null,null,null,"8. ","8. Planning, design, and initial implementation of charter schools under Title V, Part B",null,null,null,null,null,null,null,null,null,null,null,null,null,null,null,null,11,1,"Yes",145848.95000000001,11,2,"Yes",null,11,3,"Yes",null,11,4,"Yes",28259.51,null,null,null,null,11,6,"Yes",0,11,97,null,10258.44,null,null,null,null,11,9,"Yes"]
["BLAND COUNTY PUBLIC SCHOOLS",11,null,null,null,null,null,"9. ","9. School improvement programs or activities under Sections 1116 and 1117 of Title I, Part A",null,null,null,null,null,null,null,null,null,null,null,null,null,null,null,null,12,1,"No",399151.25,12,2,"No",null,12,3,"No",null,12,4,"No",99570.94,null,null,null,null,12,6,"No",5795.58,12,97,null,29652.35,null,null,null,null,12,9,"No"]
["BOTETOURT COUNTY PUBLIC SCHOOLS",12,null,null,null,null,null,"10.","10. Community service programs",null,null,null,null,null,null,null,null,null,null,null,null,null,null,null,null,13,1,"Yes",675744.96,13,2,"Yes",null,13,3,"Yes",null,13,4,"Yes",138844.75,null,null,null,null,13,6,"Yes",3773.91,13,97,null,59463.54,null,null,null,null,13,9,"Yes",35353.839999999997]
["BRISTOL CITY PUBLIC SCHOOLS",102,null,null,null,null,null,"11.","11. Consumer, economic, and personal finance education",null,null,null,null,null,null,null,null,null,null,null,null,null,null,null,null,14,1,"Yes",1153736.24,14,2,"Yes",null,14,3,"Yes",null,14,4,"Yes",284870.84000000003,null,null,null,null,14,6,"Yes",117.93,14,97,null,90987.74,null,null,null,null,14,9,"Yes",59901.19]
["BRUNSWICK COUNTY PUBLIC SCHOOLS",13,null,null,null,null,null,"12.","12. Public school choice",null,null,null,null,null,null,null,null,null,null,null,null,null,1000,null,null,15,1,"Yes",655870.68999999994,15,2,"Yes",null,15,3,"Yes",null,15,4,"Yes",114275.33,null,null,null,null,15,6,"Yes",117.93,15,97,null,54085.18,null,null,null,null,15,9,"Yes",38227.480000000003]
["BUCHANAN COUNTY PUBLIC SCHOOLS",14,null,null,null,null,null,"13.","13. Programs to hire and support school nurses",null,null,null,null,null,null,null,null,null,null,null,null,null,2000,null,null,16,1,"No",1545273.89,16,2,"No",null,16,3,"No",null,16,4,"No",280543.86,null,null,null,null,16,6,"No",15921.18,16,97,null,118195.55,null,null,null,null,16,9,"No"]
["BUCKINGHAM COUNTY PUBLIC SCHOOLS",15,null,null,null,null,null,"14.","14. School-based mental health services",null,null,null,null,null,null,null,null,null,null,null,null,null,3000,null,null,17,1,"Yes",814710.69,17,2,"Yes",null,17,3,"Yes",null,17,4,"Yes",144371.48000000001,null,null,null,null,17,6,"Yes",6722.28,17,97,null,67722.27,null,null,null,null,17,9,"Yes"]
["BUENA VISTA CITY PUBLIC SCHOOLS",103,null,null,null,null,null,"15.","15. Alternative educational programs",null,null,null,null,null,null,null,null,null,null,null,null,null,4000,null,null,18,1,"No",1092840.3899999999,18,2,"No",44652.04,18,3,"No",null,18,4,"No",170008.63,null,null,null,null,18,6,"No",12501.07,18,97,null,79089.17,null,null,null,null,18,9,"No",81089.210000000006]
["CAMPBELL COUNTY PUBLIC SCHOOLS",16,null,null,null,null,null,"16.","16. Prekindergarten programs",null,null,null,null,null,null,null,null,null,null,null,null,null,5000,null,null,19,1,"Yes",153655.88,19,2,"Yes",null,19,3,"Yes",null,19,4,"Yes",40727.79,null,null,null,null,19,6,"Yes",2122.8200000000002,19,97,null,13270.64,null,null,null,null,19,9,"Yes"]
["CAROLINE COUNTY PUBLIC SCHOOLS",17,null,null,null,null,null,"17.","17. Academic intervention programs jointly operated with community-based organizations ",null,null,null,null,null,null,null,null,null,null,null,null,null,6000,null,null,20,1,"Yes",563153.39,20,2,"Yes",null,20,3,"Yes",null,20,4,"Yes",98801.22,null,null,null,null,20,6,"Yes",1179.3499999999999,20,97,null,54548.1,null,null,null,null,20,9,"Yes",37438.239999999998]
["CARROLL COUNTY PUBLIC SCHOOLS",18,null,null,null,null,null,"18.","18. CPR training",null,null,null,null,null,null,null,null,null,null,null,null,null,8000,null,null,21,1,"No",5714631.1299999999,21,2,"No",null,21,3,"No",null,21,4,"No",1100170.8400000001,null,null,null,null,21,6,"No",380345.9,21,97,null,504599.63,null,null,null,null,21,9,"No"]
["CHARLES CITY COUNTY PUBLIC SCHOOLS",19,null,null,null,null,null,"19.","19. Smaller learning communities",null,null,null,null,null,null,null,null,null,null,null,null,null,null,null,null,22,1,"No",176849.62,22,2,"No",null,22,3,"No",null,22,4,"No",53983.95,null,null,null,null,22,6,"No",1651.09,22,97,null,14271.54,null,null,null,null,22,9,"No"]
["CHARLOTTE COUNTY PUBLIC SCHOOLS",20,null,null,null,null,null,"20.","20. Activities that encourage and expand improvements throughout the LEA area that  are designed to advance student academic achievement",null,null,null,null,null,null,null,null,null,null,null,null,null,null,null,null,23,1,"Yes",164891.07999999999,23,2,"Yes",null,23,3,"Yes",null,23,4,"Yes",22655.09,null,null,null,null,23,6,"Yes",707.61,23,97,null,13489.22,null,null,null,null,23,9,"Yes"]
["CHARLOTTESVILLE CITY PUBLIC SCHOOLS",104,null,null,null,null,null,"21.","21. Parental and community involvement",null,null,null,null,null,null,null,null,null,null,null,null,null,null,null,null,24,1,"No",1396949.73,24,2,"No",null,24,3,"No",75055.02,24,4,"No",196335.99,null,null,null,null,24,6,"No",54485.81,24,97,null,109155.85,null,null,null,null,24,9,"No"]
["CHESAPEAKE CITY PUBLIC SCHOOLS",136,null,null,null,null,null,"22.","22. Activities that expand learning through best-practice models",null,null,null,null,null,null,null,null,null,null,null,null,null,null,null,null,25,1,"Yes",395240.36,25,2,"Yes",null,25,3,"Yes",null,25,4,"Yes",67373.3,null,null,null,null,25,6,"Yes",3420.11,25,97,null,35441.89,null,null,null,null,25,9,"Yes",24871.14]
["CHESTERFIELD COUNTY PUBLIC SCHOOLS",21,null,null,null,null,null,"23.","23. Same-gender schools and classrooms (consistent with applicable law)**",null,null,null,null,null,null,null,null,null,null,null,null,null,null,null,null,26,1,"No",667387.98,26,2,"No",null,26,3,"No",null,26,4,"No",188883.41,null,null,null,null,26,6,"No",0,26,97,null,64366.48,null,null,null,null,26,9,"No",42396.28]
["CLARKE COUNTY PUBLIC SCHOOLS",22,null,null,null,null,null,"24.","24. Service learning activities",null,null,null,null,null,null,null,null,null,null,null,null,null,null,null,null,27,1,"Yes",623179.68999999994,27,2,"Yes",null,27,3,"Yes",null,27,4,"Yes",148246.69,null,null,null,null,27,6,"Yes",7901.62,27,97,null,59835.8,null,null,null,null,27,9,"Yes"]
["CLIFTON FORGE CITY",105,null,null,null,null,null,"25.","25. School safety programs",null,null,null,null,null,null,null,null,null,null,null,null,null,null,null,null,28,1,"No",445025.3,28,2,"No",null,28,3,"No",null,28,4,"No",61949.87,null,null,null,null,28,6,"No",4127.71,28,97,null,37033.379999999997,null,null,null,null,28,9,"No",29444.67]
["COLONIAL BEACH TOWN PUBLIC SCHOOLS",202,null,null,null,null,null,"26.","26. Programs that use research-based cognitive and perceptual development approaches",null,null,null,null,null,null,null,null,null,null,null,null,null,null,null,null,29,1,"No",19058305.989999998,29,2,"No",null,29,3,"No",null,29,4,"No",3048713.67,null,null,null,null,29,6,"No",4500516.1899999995,29,97,null,{"$f":"1496373.62+20627.72","v":1517001.34},null,null,null,null,29,9,"No"]
["COLONIAL HEIGHTS CITY PUBLIC SCHOOLS",106,null,null,null,null,null,"27.","27. Supplemental educational services as defined in Section 1116(e) of Title I, Part A",null,null,null,null,null,null,null,null,null,null,null,null,null,null,null,null,30,1,"Yes",750182.79,30,2,"Yes",null,30,3,"Yes",null,30,4,"Yes",229607.12,null,null,null,null,30,6,"Yes",58023.85,30,97,null,63215.47,null,null,null,null,30,9,"Yes"]
["COVINGTON CITY PUBLIC SCHOOLS",107,null,null,null,null,null,null,"Program Administration",null,null,null,null,null,null,null,null,null,null,null,null,null,null,null,null,31,1,"Yes",432347.3,31,2,"Yes",null,31,3,"Yes",null,31,4,"Yes",76356.75,null,null,null,null,31,6,"Yes",6014.67,31,97,null,32904.97,null,null,null,null,31,9,"Yes"]
["CRAIG COUNTY PUBLIC SCHOOLS",23,null,null,null,null,null,null,"Indirect Costs (not to exceed approved rate)",null,null,null,null,null,null,null,null,null,null,null,null,null,null,null,null,32,1,"Yes",334692.03999999998,32,2,"Yes",null,32,3,"Yes",null,32,4,"Yes",89768.19,null,null,null,null,32,6,"Yes",6132.6,32,97,null,27095.25,null,null,null,null,32,9,"Yes"]
["CULPEPER COUNTY PUBLIC SCHOOLS",24,null,null,null,null,null,null,null,null,null,null,null,null,null,null,null,null,null,null,null,null,null,null,null,33,1,"Yes",1759978.81,33,2,"Yes",null,33,3,"Yes",null,33,4,"Yes",255524.18,null,null,null,null,33,6,"Yes",11085.86,33,97,null,133633.54999999999,null,null,null,null,33,9,"Yes"]
["CUMBERLAND COUNTY PUBLIC SCHOOLS",25,null,null,null,null,null,null,null,null,null,null,null,null,null,null,null,null,null,null,null,null,null,null,null,34,1,"No",1466937.97,34,2,"No",null,34,3,"No",65468.33,34,4,"No",258437.37,null,null,null,null,34,6,"No",64274.39,34,97,null,104042.76,null,null,null,null,34,9,"No"]
["DANVILLE CITY PUBLIC SCHOOLS",108,null,null,null,null,null,null,null,null,null,null,null,null,null,null,null,null,null,null,null,null,null,null,null,35,1,"No",445027.2,35,2,"No",null,35,3,"No",null,35,4,"No",93477.61,null,null,null,null,35,6,"No",471.74,35,97,null,34843.56,null,null,null,null,35,9,"No"]
["DEPARTMENT OF JUVENILE JUSTICE",917,null,null,null,null,null,null,null,null,null,null,null,null,null,null,null,null,null,null,null,null,null,null,null,36,1,"Yes",667366.41,36,2,"Yes",null,36,3,"Yes",null,36,4,"Yes",201920.72,null,null,null,null,36,6,"Yes",5626.14,36,97,null,54073.919999999998,null,null,null,null,36,9,"Yes"]
["DICKENSON COUNTY PUBLIC SCHOOLS",26,null,null,null,null,null,null,null,null,null,null,null,null,null,null,null,null,null,null,null,null,null,null,null,37,1,"No",259489.63,37,2,"No",null,37,3,"No",75455.02,37,4,"No",56336.15,null,null,null,null,37,6,"No",4481.5200000000004,37,97,null,22848.07,null,null,null,null,37,9,"No"]
["DINWIDDIE COUNTY PUBLIC SCHOOLS",27,null,null,null,null,null,null,null,null,null,null,null,null,null,null,null,null,null,null,null,null,null,null,null,38,1,"No",579299.44999999995,38,2,"No",null,38,3,"No",null,38,4,"No",103272.25,null,null,null,null,38,6,"No",2948.37,38,97,null,51824.65,null,null,null,null,38,9,"No",34261.050000000003]
["EMPORIA CITY PUBLIC SCHOOLS",138,null,null,null,null,null,null,null,null,null,null,null,null,null,null,null,null,null,null,null,null,null,null,null,39,1,"Yes",347914.44,39,2,"Yes",null,39,3,"Yes",null,39,4,"Yes",90678.95,null,null,null,null,39,6,"Yes",10732.05,39,97,null,31025.09,null,null,null,null,39,9,"Yes"]
["ESSEX COUNTY PUBLIC SCHOOLS",28,null,null,null,null,null,null,null,null,null,null,null,null,null,null,null,null,null,null,null,null,null,null,null,40,1,"Yes",394688.88,40,2,"Yes",null,40,3,"Yes",null,40,4,"Yes",141258.94,null,null,null,null,40,6,"Yes",11422.52,40,97,null,{"$f":"35478.77+38028.4","v":73507.17},null,null,null,null,40,9,"Yes",45674.66]
["FAIRFAX CITY PUBLIC SCHOOLS",134,null,null,null,null,null,null,null,null,null,null,null,null,null,null,null,null,null,null,null,null,null,null,null,41,1,"Yes",1688629.4,41,2,"Yes",null,41,3,"Yes",null,41,4,"Yes",258229.39,null,null,null,null,41,6,"Yes",4363.58,41,97,null,112661.67,null,null,null,null,41,9,"Yes",101326.1]
["FAIRFAX COUNTY PUBLIC SCHOOLS",29,null,null,null,null,null,null,null,null,null,null,null,null,null,null,null,null,null,null,null,null,null,null,null,42,1,"No",1040367.33,42,2,"No",null,42,3,"No",null,42,4,"No",275512.78999999998,null,null,null,null,42,6,"No",18397.810000000001,42,97,null,83048.539999999994,null,null,null,null,42,9,"No"]
["FALLS CHURCH CITY PUBLIC SCHOOLS",109,null,null,null,null,null,null,null,null,null,null,null,null,null,null,null,null,null,null,null,null,null,null,null,43,1,"No",7349539.6399999997,43,2,"No",null,43,3,"No",null,43,4,"No",1051997.08,null,null,null,null,43,6,"No",337729.78,43,97,null,673305.36,null,null,null,null,43,9,"No"]
["FAUQUIER COUNTY PUBLIC SCHOOLS",30,null,null,null,null,null,null,null,null,null,null,null,null,null,null,null,null,null,null,null,null,null,null,null,44,1,"No",2365483.9500000002,44,2,"No",null,44,3,"No",null,44,4,"No",338985.77,null,null,null,null,44,6,"No",46820.06,44,97,null,195641.89,null,null,null,null,44,9,"No",136862.07]
["FLOYD COUNTY PUBLIC SCHOOLS",31,null,null,null,null,null,null,null,null,null,null,null,null,null,null,null,null,null,null,null,null,null,null,null,45,1,"No",50679.88,45,2,"No",null,45,3,"No",null,45,4,"No",14143.23,null,null,null,null,45,6,"No",0,45,97,null,10000,null,null,null,null,45,9,"No"]
["FLUVANNA COUNTY PUBLIC SCHOOLS",32,null,null,null,null,null,null,null,null,null,null,null,null,null,null,null,null,null,null,null,null,null,null,null,46,1,"No",583674.4,46,2,"No",null,46,3,"No",null,46,4,"No",169572.61,null,null,null,null,46,6,"No",2830.43,46,97,null,48059.73,null,null,null,null,46,9,"No"]
["FRANKLIN CITY PUBLIC SCHOOLS",135,null,null,null,null,null,null,null,null,null,null,null,null,null,null,null,null,null,null,null,null,null,null,null,47,1,null,957773.93,47,2,null,null,47,3,null,null,47,4,null,null,null,null,null,null,47,6,null,null,47,97,null,null,null,null,null,null,47,9]
["FRANKLIN COUNTY PUBLIC SCHOOLS",33,null,null,null,null,null,null,null,null,null,null,null,null,null,null,null,null,null,null,null,null,null,null,null,48,1,"No",364442.44,48,2,"No",null,48,3,"No",null,48,4,"No",89793.73,null,null,null,null,48,6,"No",2830.43,48,97,null,30128.81,null,null,null,null,48,9,"No"]
["FREDERICK COUNTY PUBLIC SCHOOLS",34,null,null,null,null,null,null,null,null,null,null,null,null,null,null,null,null,null,null,null,null,null,null,null,49,1,"Yes",187432.04,49,2,"Yes",null,49,3,"Yes",null,49,4,"Yes",49057.43,null,null,null,null,49,6,"Yes",1533.15,49,97,null,15364.03,null,null,null,null,49,9,"Yes"]
["FREDERICKSBURG CITY PUBLIC SCHOOLS",110,null,null,null,null,null,null,null,null,null,null,null,null,null,null,null,null,null,null,null,null,null,null,null,50,1,"Yes",207204.21,50,2,"Yes",null,50,3,"Yes",null,50,4,"Yes",53010.23,null,null,null,null,50,6,"Yes",1651.09,50,97,null,18120.88,null,null,null,null,50,9,"Yes"]
["GALAX CITY PUBLIC SCHOOLS",111,null,null,null,null,null,null,null,null,null,null,null,null,null,null,null,null,null,null,null,null,null,null,null,51,1,"Yes",359206.96,51,2,"Yes",null,51,3,"Yes",null,51,4,"Yes",75397.789999999994,null,null,null,null,51,6,"Yes",825.54,51,97,null,30493.35,null,null,null,null,51,9,"Yes",23636.68]
["GILES COUNTY PUBLIC SCHOOLS",35,null,null,null,null,null,null,null,null,null,null,null,null,null,null,null,null,null,null,null,null,null,null,null,52,1,"Yes",1452119.85,52,2,"Yes",null,52,3,"Yes",null,52,4,"Yes",278539.78999999998,null,null,null,null,52,6,"Yes",117.93,52,97,null,125672.17,null,null,null,null,52,9,"Yes",59860.71]
["GLOUCESTER COUNTY PUBLIC SCHOOLS",36,null,null,null,null,null,null,null,null,null,null,null,null,null,null,null,null,null,null,null,null,null,null,null,53,1,"Yes",1478880.05,53,2,"Yes",null,53,3,"Yes",null,53,4,"Yes",497194,null,null,null,null,53,6,"Yes",686851.48,53,97,null,119277.52,null,null,null,null,53,9,"Yes"]
["GOOCHLAND COUNTY PUBLIC SCHOOLS",37,null,null,null,null,null,null,null,null,null,null,null,null,null,null,null,null,null,null,null,null,null,null,null,54,1,"No",802748.47,54,2,"No",null,54,3,"No",null,54,4,"No",154669.74,null,null,null,null,54,6,"No",6132.6,54,97,null,70124.070000000007,null,null,null,null,54,9,"No"]
["GRAYSON COUNTY PUBLIC SCHOOLS",38,null,null,null,null,null,null,null,null,null,null,null,null,null,null,null,null,null,null,null,null,null,null,null,55,1,"Yes",575986.28,55,2,"Yes",null,55,3,"Yes",null,55,4,"Yes",99147.32,null,null,null,null,55,6,"Yes",8373.36,55,97,null,40880.97,null,null,null,null,55,9,"Yes",28716.14]
["GREENE COUNTY PUBLIC SCHOOLS",39,null,null,null,null,null,null,null,null,null,null,null,null,null,null,null,null,null,null,null,null,null,null,null,56,1,"No",368226.52,56,2,"No",null,56,3,"No",null,56,4,"No",76743.66,null,null,null,null,56,6,"No",471.74,56,97,null,28605.75,null,null,null,null,56,9,"No"]
["GREENSVILLE COUNTY PUBLIC SCHOOLS",40,null,null,null,null,null,null,null,null,null,null,null,null,null,null,null,null,null,null,null,null,null,null,null,57,1,"Yes",184826.4,57,2,"Yes",null,57,3,"Yes",null,57,4,"Yes",45413.08,null,null,null,null,57,6,"Yes",589.66999999999996,57,97,null,14736.58,null,null,null,null,57,9,"Yes"]
["HALIFAX COUNTY PUBLIC SCHOOLS",41,null,null,null,null,null,null,null,null,null,null,null,null,null,null,null,null,null,null,null,null,null,null,null,58,1,"Yes",1294642.32,58,2,"Yes",null,58,3,"Yes",null,58,4,"Yes",220360.3,null,null,null,null,58,6,"Yes",6840.21,58,97,null,106146.89,null,null,null,null,58,9,"Yes",86168.67]
["HAMPTON CITY PUBLIC SCHOOLS",112,null,null,null,null,null,null,null,null,null,null,null,null,null,null,null,null,null,null,null,null,null,null,null,59,1,"Yes",299225.65000000002,59,2,"Yes",null,59,3,"Yes",null,59,4,"Yes",56969.03,null,null,null,null,59,6,"Yes",353.8,59,97,null,26425.759999999998,null,null,null,null,59,9,"Yes",21774.89]
["HANOVER COUNTY PUBLIC SCHOOLS",42,null,null,null,null,null,null,null,null,null,null,null,null,null,null,null,null,null,null,null,null,null,null,null,60,1,"No",1827644.08,60,2,"No",null,60,3,"No",null,60,4,"No",335865.35,null,null,null,null,60,6,"No",31210.809999999998,60,97,null,133104.93,null,null,null,null,60,9,"No"]
["HARRISONBURG CITY PUBLIC SCHOOLS",113,null,null,null,null,null,null,null,null,null,null,null,null,null,null,null,null,null,null,null,null,null,null,null,62,1,"No",436338.29,62,2,"No",null,62,3,"No",null,62,4,"No",86634.99,null,null,null,null,62,6,"No",4363.58,62,97,null,37521.89,null,null,null,null,62,9,"No",36912.080000000002]
["HENRICO COUNTY PUBLIC SCHOOLS",43,null,null,null,null,null,null,null,null,null,null,null,null,null,null,null,null,null,null,null,null,null,null,null,63,1,"Yes",235524.03,63,2,"Yes",null,63,3,"Yes",null,63,4,"Yes",50042.86,null,null,null,null,63,6,"Yes",2358.69,63,97,null,19580.28,null,null,null,null,63,9,"Yes"]
["HENRY COUNTY PUBLIC SCHOOLS",44,null,null,null,null,null,null,null,null,null,null,null,null,null,null,null,null,null,null,null,null,null,null,null,65,1,"Yes",725875.23,65,2,"Yes",146597.21,65,3,"Yes",null,65,4,"Yes",141165.28,null,null,null,null,65,6,"Yes",17808.13,65,97,null,55133.03,null,null,null,null,65,9,"Yes",30092.25]
["HIGHLAND COUNTY PUBLIC SCHOOLS",45,null,null,null,null,null,null,null,null,null,null,null,null,null,null,null,null,null,null,null,null,null,null,null,66,1,"Yes",415720.58,66,2,"Yes",null,66,3,"Yes",null,66,4,"Yes",71599.070000000007,null,null,null,null,66,6,"Yes",2476.63,66,97,null,34734.39,null,null,null,null,66,9,"Yes",26834.11]
["HOPEWELL CITY PUBLIC SCHOOLS",114,null,null,null,null,null,null,null,null,null,null,null,null,null,null,null,null,null,null,null,null,null,null,null,67,1,"Yes",712107.14,67,2,"Yes",16791.84,67,3,"Yes",null,67,4,"Yes",121535.97,null,null,null,null,67,6,"Yes",9906.51,67,97,null,62778.03,null,null,null,null,67,9,"Yes",41060.65]
["ISLE OF WIGHT COUNTY PUBLIC SCHOOLS",46,null,null,null,null,null,null,null,null,null,null,null,null,null,null,null,null,null,null,null,null,null,null,null,68,1,"Yes",711907.43,68,2,"Yes",null,68,3,"Yes",null,68,4,"Yes",134123.26,null,null,null,null,68,6,"Yes",15657.33,68,97,null,59342.49,null,null,null,null,68,9,"Yes"]
["JAMES CITY COUNTY PUBLIC SCHOOLS",47,null,null,null,null,null,null,null,null,null,null,null,null,null,null,null,null,null,null,null,null,null,null,null,69,1,"Yes",743761.79,69,2,"Yes",null,69,3,"Yes",null,69,4,"Yes",138636.82,null,null,null,null,69,6,"Yes",2004.89,69,97,null,65457.06,null,null,null,null,69,9,"Yes"]
["JAMES MADISON UNIVERSITY",871,null,null,null,null,null,null,null,null,null,null,null,null,null,null,null,null,null,null,null,null,null,null,null,70,1,"No",669452.26,70,2,"No",null,70,3,"No",null,70,4,"No",115030.19,null,null,null,null,70,6,"No",8609.23,70,97,null,56384.35,null,null,null,null,70,9,"No",49297.06]
["KING AND QUEEN COUNTY PUBLIC SCHOOLS",49,null,null,null,null,null,null,null,null,null,null,null,null,null,null,null,null,null,null,null,null,null,null,null,71,1,"No",1936344.77,71,2,"No",null,71,3,"No",null,71,4,"No",331006.21999999997,null,null,null,null,71,6,"No",15095.64,71,97,null,191727.4,null,null,null,null,71,9,"No"]
["KING GEORGE COUNTY PUBLIC SCHOOLS",48,null,null,null,null,null,null,null,null,null,null,null,null,null,null,null,null,null,null,null,null,null,null,null,72,1,"No",299983.23,72,2,"No",null,72,3,"No",null,72,4,"No",74096.61,null,null,null,null,72,6,"No",4000.8,72,97,null,21487.21,null,null,null,null,72,9,"No"]
["KING WILLIAM COUNTY PUBLIC SCHOOLS",50,null,null,null,null,null,null,null,null,null,null,null,null,null,null,null,null,null,null,null,null,null,null,null,73,1,"Yes",821866.06,73,2,"Yes",null,73,3,"Yes",null,73,4,"Yes",146931.21,null,null,null,null,73,6,"Yes",1297.28,73,97,null,71713.72,null,null,null,null,73,9,"Yes",41607.040000000001]
["LANCASTER COUNTY PUBLIC SCHOOLS",51,null,null,null,null,null,null,null,null,null,null,null,null,null,null,null,null,null,null,null,null,null,null,null,74,1,"Yes",595755.54,74,2,"Yes",null,74,3,"Yes",null,74,4,"Yes",142906.75,null,null,null,null,74,6,"Yes",7901.62,74,97,null,47415.11,null,null,null,null,74,9,"Yes"]
["LEE COUNTY PUBLIC SCHOOLS",52,null,null,null,null,null,null,null,null,null,null,null,null,null,null,null,null,null,null,null,null,null,null,null,75,1,"No",9359215.4900000002,75,2,"No",null,75,3,"No",83222.45,75,4,"No",1168202.08,null,null,null,null,75,6,"No",1673669.6199999999,75,97,null,828060.03,null,null,null,null,75,9,"No"]
["LEXINGTON CITY PUBLIC SCHOOLS",137,null,null,null,null,null,null,null,null,null,null,null,null,null,null,null,null,null,null,null,null,null,null,null,77,1,"No",1035194.35,77,2,"No",null,77,3,"No",null,77,4,"No",204875.18,null,null,null,null,77,6,"No",2004.89,77,97,null,76250.95,null,null,null,null,77,9,"No"]
["LOUDOUN COUNTY PUBLIC SCHOOLS",53,null,null,null,null,null,null,null,null,null,null,null,null,null,null,null,null,null,null,null,null,null,null,null,78,1,"Yes",168077.55,78,2,"Yes",null,78,3,"Yes",null,78,4,"Yes",34678.32,null,null,null,null,78,6,"Yes",1297.28,78,97,null,12995.11,null,null,null,null,78,9,"Yes"]
["LOUISA COUNTY PUBLIC SCHOOLS",54,null,null,null,null,null,null,null,null,null,null,null,null,null,null,null,null,null,null,null,null,null,null,null,79,1,"Yes",251322.25,79,2,"Yes",null,79,3,"Yes",null,79,4,"Yes",54205.39,null,null,null,null,79,6,"Yes",8255.43,79,97,null,20990.53,null,null,null,null,79,9,"Yes",22442.71]
["LUNENBURG COUNTY PUBLIC SCHOOLS",55,null,null,null,null,null,null,null,null,null,null,null,null,null,null,null,null,null,null,null,null,null,null,null,80,1,"No",1140222.44,80,2,"No",null,80,3,"No",null,80,4,"No",267446.32,null,null,null,null,80,6,"No",32265.48,80,97,null,98105.87,null,null,null,null,80,9,"No"]
["LYNCHBURG CITY PUBLIC SCHOOLS",115,null,null,null,null,null,null,null,null,null,null,null,null,null,null,null,null,null,null,null,null,null,null,null,81,1,"Yes",487094.47,81,2,"Yes",null,81,3,"Yes",null,81,4,"Yes",102940.92,null,null,null,null,81,6,"Yes",3184.24,81,97,null,40061.339999999997,null,null,null,null,81,9,"Yes"]
["MADISON COUNTY PUBLIC SCHOOLS",56,null,null,null,null,null,null,null,null,null,null,null,null,null,null,null,null,null,null,null,null,null,null,null,82,1,"No",1560395.85,82,2,"No",null,82,3,"No",null,82,4,"No",301261.94,null,null,null,null,82,6,"No",73935.86,82,97,null,131023.23,null,null,null,null,82,9,"No"]
["MANASSAS CITY PUBLIC SCHOOLS",143,null,null,null,null,null,null,null,null,null,null,null,null,null,null,null,null,null,null,null,null,null,null,null,83,1,"No",1041024.89,83,2,"No",null,83,3,"No",null,83,4,"No",246309.59,null,null,null,null,83,6,"No",471.74,83,97,null,94098.29,null,null,null,null,83,9,"No",77628.7]
["MANASSAS PARK CITY PUBLIC SCHOOLS",144,null,null,null,null,null,null,null,null,null,null,null,null,null,null,null,null,null,null,null,null,null,null,null,84,1,"No",899401.35,84,2,"No",null,84,3,"No",null,84,4,"No",165334.59,null,null,null,null,84,6,"No",1179.3499999999999,84,97,null,59765.03,null,null,null,null,84,9,"No"]
["MARTINSVILLE CITY PUBLIC SCHOOLS",116,null,null,null,null,null,null,null,null,null,null,null,null,null,null,null,null,null,null,null,null,null,null,null,85,1,"Yes",1061982.44,85,2,"Yes",null,85,3,"Yes",null,85,4,"Yes",178910.96,null,null,null,null,85,6,"Yes",34554.86,85,97,null,89812.77,null,null,null,null,85,9,"Yes"]
["MATHEWS COUNTY PUBLIC SCHOOLS",57,null,null,null,null,null,null,null,null,null,null,null,null,null,null,null,null,null,null,null,null,null,null,null,86,1,"No",1224664.82,86,2,"No",null,86,3,"No",null,86,4,"No",232450.21,null,null,null,null,86,6,"No",1415.22,86,97,null,100143.34,null,null,null,null,86,9,"No",89163.73]
["MCVH AUTHORITY",948,null,null,null,null,null,null,null,null,null,null,null,null,null,null,null,null,null,null,null,null,null,null,null,87,1,"No",548834.55000000005,87,2,"No",null,87,3,"No",null,87,4,"No",117309.13,null,null,null,null,87,6,"No",0,87,97,null,44335.95,null,null,null,null,87,9,"No"]
["MECKLENBURG COUNTY PUBLIC SCHOOLS",58,null,null,null,null,null,null,null,null,null,null,null,null,null,null,null,null,null,null,null,null,null,null,null,88,1,"No",2505705,88,2,"No",null,88,3,"No",null,88,4,"No",405992.66,null,null,null,null,88,6,"No",104372.18,88,97,null,213484.53,null,null,null,null,88,9,"No"]
["MIDDLESEX COUNTY PUBLIC SCHOOLS",59,null,null,null,null,null,null,null,null,null,null,null,null,null,null,null,null,null,null,null,null,null,null,null,89,1,"Yes",1493865.24,89,2,"Yes",null,89,3,"Yes",65468.33,89,4,"Yes",386761.95,null,null,null,null,89,6,"Yes",132204.76,89,97,null,138563.12,null,null,null,null,89,9,"Yes"]
["MONTGOMERY COUNTY PUBLIC SCHOOLS",60,null,null,null,null,null,null,null,null,null,null,null,null,null,null,null,null,null,null,null,null,null,null,null,90,1,"Yes",178917.13,90,2,"Yes",null,90,3,"Yes",null,90,4,"Yes",50466.87,null,null,null,null,90,6,"Yes",235.87,90,97,null,15571.65,null,null,null,null,90,9,"Yes"]
["NELSON COUNTY PUBLIC SCHOOLS",62,null,null,null,null,null,null,null,null,null,null,null,null,null,null,null,null,null,null,null,null,null,null,null,91,1,"Yes",384791.1,91,2,"Yes",null,91,3,"Yes",null,91,4,"Yes",86637.53,null,null,null,null,91,6,"Yes",1533.15,91,97,null,37690,null,null,null,null,91,9,"Yes",21248.73]
["NEW KENT COUNTY PUBLIC SCHOOLS",63,null,null,null,null,null,null,null,null,null,null,null,null,null,null,null,null,null,null,null,null,null,null,null,92,1,"No",1634724.65,92,2,"No",null,92,3,"No",null,92,4,"No",386963.39,null,null,null,null,92,6,"No",5896.73,92,97,null,131394.79999999999,null,null,null,null,92,9,"No",116908.5]
["NEWPORT NEWS CITY PUBLIC SCHOOLS",117,null,null,null,null,null,null,null,null,null,null,null,null,null,null,null,null,null,null,null,null,null,null,null,93,1,"Yes",797445.56,93,2,"Yes",null,93,3,"Yes",null,93,4,"Yes",162547.51999999999,null,null,null,null,93,6,"Yes",17499.52,93,97,null,71470.179999999993,null,null,null,null,93,9,"Yes"]
["NORFOLK CITY PUBLIC SCHOOLS",118,null,null,null,null,null,null,null,null,null,null,null,null,null,null,null,null,null,null,null,null,null,null,null,94,1,"Yes",1472677.86,94,2,"Yes",null,94,3,"Yes",null,94,4,"Yes",290090.15000000002,null,null,null,null,94,6,"Yes",7929.2300000000005,94,97,null,135653.35,null,null,null,null,94,9,"Yes"]
["NORTHAMPTON COUNTY PUBLIC SCHOOLS",65,null,null,null,null,null,null,null,null,null,null,null,null,null,null,null,null,null,null,null,null,null,null,null,95,1,"Yes",612667.46,95,2,"Yes",58279.65,95,3,"Yes",null,95,4,"Yes",95204.6,null,null,null,null,95,6,"Yes",9434.77,95,97,null,51551.26,null,null,null,null,95,9,"Yes",30375.57]
["NORTHUMBERLAND COUNTY PUBLIC SCHOOLS",66,null,null,null,null,null,null,null,null,null,null,null,null,null,null,null,null,null,null,null,null,null,null,null,96,1,"No",1830587.27,96,2,"No",null,96,3,"No",null,96,4,"No",390133.67,null,null,null,null,96,6,"No",2830.43,96,97,null,151161.04,null,null,null,null,96,9,"No",111060.04]
["NORTON CITY PUBLIC SCHOOLS",119,null,null,null,null,null,null,null,null,null,null,null,null,null,null,null,null,null,null,null,null,null,null,null,97,1,"Yes",955292.83,97,2,"Yes",null,97,3,"Yes",null,97,4,"Yes",189990.91,null,null,null,null,97,6,"Yes",1061.4100000000001,97,97,null,76332.02,null,null,null,null,97,9,"Yes",80866.600000000006]
["NOTTOWAY COUNTY PUBLIC SCHOOLS",67,null,null,null,null,null,null,null,null,null,null,null,null,null,null,null,null,null,null,null,null,null,null,null,98,1,"Yes",790862.23,98,2,"Yes",null,98,3,"Yes",null,98,4,"Yes",238273.04,null,null,null,null,98,6,"Yes",46105.14,98,97,null,53019.92,null,null,null,null,98,9,"Yes"]
["OLD DOMINION UNIVERSITY",798,null,null,null,null,null,null,null,null,null,null,null,null,null,null,null,null,null,null,null,null,null,null,null,101,1,"No",2424663.52,101,2,"No",null,101,3,"No",null,101,4,"No",462020.52,null,null,null,null,101,6,"No",467470.4,101,97,null,300434.59999999998,null,null,null,null,101,9,"No"]
["ORANGE COUNTY PUBLIC SCHOOLS",68,null,null,null,null,null,null,null,null,null,null,null,null,null,null,null,null,null,null,null,null,null,null,null,102,1,"Yes",1187022.8400000001,102,2,"Yes",null,102,3,"Yes",null,102,4,"Yes",140471.06,null,null,null,null,102,6,"Yes",4009.78,102,97,null,102415.5,null,null,null,null,102,9,"Yes"]
["PAGE COUNTY PUBLIC SCHOOLS",69,null,null,null,null,null,null,null,null,null,null,null,null,null,null,null,null,null,null,null,null,null,null,null,103,1,"No",222093.19,103,2,"No",null,103,3,"No",null,103,4,"No",42688.72,null,null,null,null,103,6,"No",0,103,97,null,20944.89,null,null,null,null,103,9,"No",19569.07]
["PATRICK COUNTY PUBLIC SCHOOLS",70,null,null,null,null,null,null,null,null,null,null,null,null,null,null,null,null,null,null,null,null,null,null,null,104,1,"Yes",1310005.3799999999,104,2,"Yes",null,104,3,"Yes",43275.68,104,4,"Yes",252362.99,null,null,null,null,104,6,"Yes",54601.119999999995,104,97,null,107860.72,null,null,null,null,104,9,"Yes"]
["PETERSBURG CITY PUBLIC SCHOOLS",120,null,null,null,null,null,null,null,null,null,null,null,null,null,null,null,null,null,null,null,null,null,null,null,106,1,"Yes",426114.92,106,2,"Yes",null,106,3,"Yes",null,106,4,"Yes",69056.02,null,null,null,null,106,6,"Yes",9552.7099999999991,106,97,null,40909.21,null,null,null,null,106,9,"Yes"]
["PITTSYLVANIA COUNTY PUBLIC SCHOOLS",71,null,null,null,null,null,null,null,null,null,null,null,null,null,null,null,null,null,null,null,null,null,null,null,107,1,"No",189854,107,2,"No",null,107,3,"No",null,107,4,"No",49741.84,null,null,null,null,107,6,"No",471.74,107,97,null,19982.98,null,null,null,null,107,9,"No",16938.28]
["POQUOSON CITY PUBLIC SCHOOLS",142,null,null,null,null,null,null,null,null,null,null,null,null,null,null,null,null,null,null,null,null,null,null,null,108,1,"No",3362135.93,108,2,"No",null,108,3,"No",null,108,4,"No",462675.97,null,null,null,null,108,6,"No",22171.72,108,97,null,276813.31,null,null,null,null,108,9,"No"]
["PORTSMOUTH CITY PUBLIC SCHOOLS",121,null,null,null,null,null,null,null,null,null,null,null,null,null,null,null,null,null,null,null,null,null,null,null,109,1,"No",35900.35,109,2,"No",null,109,3,"No",null,109,4,"No",26471.37,null,null,null,null,109,6,"No",18254.349999999999,109,97,null,10000,null,null,null,null,109,9,"No"]
["POWHATAN COUNTY PUBLIC SCHOOLS",72,null,null,null,null,null,null,null,null,null,null,null,null,null,null,null,null,null,null,null,null,null,null,null,110,1,"No",869495.9,110,2,"No",null,110,3,"No",null,110,4,"No",123721.11,null,null,null,null,110,6,"No",47173.87,110,97,null,78938.11,null,null,null,null,110,9,"No"]
["PRINCE EDWARD COUNTY PUBLIC SCHOOLS",73,null,null,null,null,null,null,null,null,null,null,null,null,null,null,null,null,null,null,null,null,null,null,null,111,1,"No",479304.13,111,2,"No",null,111,3,"No",null,111,4,"No",62830.43,null,null,null,null,111,6,"No",22053.78,111,97,null,43728.160000000003,null,null,null,null,111,9,"No",24344.98]
["PRINCE GEORGE COUNTY PUBLIC SCHOOLS",74,null,null,null,null,null,null,null,null,null,null,null,null,null,null,null,null,null,null,null,null,null,null,null,112,1,"No",5925925.0599999996,112,2,"No",null,112,3,"No",null,112,4,"No",912948.55,null,null,null,null,112,6,"No",46199.340000000004,112,97,null,477648.35,null,null,null,null,112,9,"No"]
["PRINCE WILLIAM COUNTY PUBLIC SCHOOLS",75,null,null,null,null,null,null,null,null,null,null,null,null,null,null,null,null,null,null,null,null,null,null,null,113,1,"No",1430946,113,2,"No",null,113,3,"No",null,113,4,"No",162327.85,null,null,null,null,113,6,"No",215098.96,113,97,null,110174.93,null,null,null,null,113,9,"No"]
["PULASKI COUNTY PUBLIC SCHOOLS",77,null,null,null,null,null,null,null,null,null,null,null,null,null,null,null,null,null,null,null,null,null,null,null,114,1,"Yes",1270239.23,114,2,"Yes",null,114,3,"Yes",null,114,4,"Yes",204988.17,null,null,null,null,114,6,"Yes",12147.27,114,97,null,132243.45000000001,null,null,null,null,114,9,"Yes"]
["RADFORD CITY PUBLIC SCHOOLS",122,null,null,null,null,null,null,null,null,null,null,null,null,null,null,null,null,null,null,null,null,null,null,null,115,1,"Yes",3087839.06,115,2,"Yes",null,115,3,"Yes",122059.6,115,4,"Yes",532463.59,null,null,null,null,115,6,"Yes",19930.96,115,97,null,302552.98,null,null,null,null,115,9,"Yes"]
["RAPPAHANNOCK COUNTY PUBLIC SCHOOLS",78,null,null,null,null,null,null,null,null,null,null,null,null,null,null,null,null,null,null,null,null,null,null,null,116,1,"Yes",1034151.34,116,2,"Yes",null,116,3,"Yes",null,116,4,"Yes",118565.73,null,null,null,null,116,6,"Yes",10967.92,116,97,null,80678.69,null,null,null,null,116,9,"Yes",41485.620000000003]
["RICHMOND CITY PUBLIC SCHOOLS",123,null,null,null,null,null,null,null,null,null,null,null,null,null,null,null,null,null,null,null,null,null,null,null,117,1,"No",8621665.5800000001,117,2,"No",null,117,3,"No",88770.62,117,4,"No",1448596.31,null,null,null,null,117,6,"No",131809.91,117,97,null,724567.24,null,null,null,null,117,9,"No"]
["RICHMOND COUNTY PUBLIC SCHOOLS",79,null,null,null,null,null,null,null,null,null,null,null,null,null,null,null,null,null,null,null,null,null,null,null,118,1,"Yes",12444819.02,118,2,"Yes",null,118,3,"Yes",169773.81,118,4,"Yes",2073002.1,null,null,null,null,118,6,"Yes",75360.25,118,97,null,1133895.71,null,null,null,null,118,9,"Yes"]
["ROANOKE CITY PUBLIC SCHOOLS",124,null,null,null,null,null,null,null,null,null,null,null,null,null,null,null,null,null,null,null,null,null,null,null,119,1,"Yes",196028.34,119,2,"Yes",null,119,3,"Yes",null,119,4,"Yes",42293.22,null,null,null,null,119,6,"Yes",589.66999999999996,119,97,null,18509.93,null,null,null,null,119,9,"Yes",16472.830000000002]
["ROANOKE COUNTY PUBLIC SCHOOLS",80,null,null,null,null,null,null,null,null,null,null,null,null,null,null,null,null,null,null,null,null,null,null,null,120,1,"Yes",2363020.5299999998,120,2,"Yes",null,120,3,"Yes",null,120,4,"Yes",355881.14,null,null,null,null,120,6,"Yes",16958.7,120,97,null,234500.12,null,null,null,null,120,9,"Yes"]
["ROCKBRIDGE COUNTY PUBLIC SCHOOLS",81,null,null,null,null,null,null,null,null,null,null,null,null,null,null,null,null,null,null,null,null,null,null,null,121,1,"Yes",5309040.83,121,2,"Yes",null,121,3,"Yes",null,121,4,"Yes",961786.03,null,null,null,null,121,6,"Yes",6604.34,121,97,null,475384.14,null,null,null,null,121,9,"Yes"]
["ROCKINGHAM COUNTY PUBLIC SCHOOLS",82,null,null,null,null,null,null,null,null,null,null,null,null,null,null,null,null,null,null,null,null,null,null,null,122,1,"No",330069.44,122,2,"No",null,122,3,"No",null,122,4,"No",57158.48,null,null,null,null,122,6,"No",2830.43,122,97,null,27299.45,null,null,null,null,122,9,"No"]
["RUSSELL COUNTY PUBLIC SCHOOLS",83,null,null,null,null,null,null,null,null,null,null,null,null,null,null,null,null,null,null,null,null,null,null,null,123,1,"No",15808821.49,123,2,"No",null,123,3,"No",68797.23,123,4,"No",1749581.7,null,null,null,null,123,6,"No",143402.03,123,97,null,1186379.73,null,null,null,null,123,9,"No"]
["SALEM CITY PUBLIC SCHOOLS",139,null,null,null,null,null,null,null,null,null,null,null,null,null,null,null,null,null,null,null,null,null,null,null,124,1,"Yes",5101630.67,124,2,"Yes",null,124,3,"Yes",null,124,4,"Yes",798154.6,null,null,null,null,124,6,"Yes",117109.12,124,97,null,530514.12,null,null,null,null,124,9,"Yes"]
["SCOTT COUNTY PUBLIC SCHOOLS",84,null,null,null,null,null,null,null,null,null,null,null,null,null,null,null,null,null,null,null,null,null,null,null,126,1,"No",777776.34,126,2,"No",null,126,3,"No",null,126,4,"No",134079.94,null,null,null,null,126,6,"No",5189.13,126,97,null,58119.11,null,null,null,null,126,9,"No"]
["SHENANDOAH COUNTY PUBLIC SCHOOLS",85,null,null,null,null,null,null,null,null,null,null,null,null,null,null,null,null,null,null,null,null,null,null,null,127,1,"Yes",2838005.51,127,2,"Yes",null,127,3,"Yes",null,127,4,"Yes",514754.32,null,null,null,null,127,6,"Yes",3066.3,127,97,null,240575.68,null,null,null,null,127,9,"Yes"]
["SMYTH COUNTY PUBLIC SCHOOLS",86,null,null,null,null,null,null,null,null,null,null,null,null,null,null,null,null,null,null,null,null,null,null,null,128,1,"No",11439845.93,128,2,"No",null,128,3,"No",207501.32,128,4,"No",2128931.46,null,null,null,null,128,6,"No",132586.43,128,97,null,905128.53,null,null,null,null,128,9,"No"]
["SOUTHAMPTON COUNTY PUBLIC SCHOOLS",87,null,null,null,null,null,null,null,null,null,null,null,null,null,null,null,null,null,null,null,null,null,null,null,130,1,"Yes",945847.46,130,2,"Yes",null,130,3,"Yes",null,130,4,"Yes",139797.48000000001,null,null,null,null,130,6,"Yes",14859.77,130,97,null,78382.17,null,null,null,null,130,9,"Yes"]
["SOUTHWESTERN VA TRAINING CENTER",951,null,null,null,null,null,null,null,null,null,null,null,null,null,null,null,null,null,null,null,null,null,null,null,131,1,"Yes",290080.55,131,2,"Yes",null,131,3,"Yes",null,131,4,"Yes",234560.52,null,null,null,null,131,6,"Yes",55989.35,131,97,null,{"$f":"23778.37+75105.4","v":98883.76999999999},null,null,null,null,131,9,"Yes"]
["SPOTSYLVANIA COUNTY PUBLIC SCHOOLS",88,null,null,null,null,null,null,null,null,null,null,null,null,null,null,null,null,null,null,null,null,null,null,null,132,1,"Yes",918051.51,132,2,"Yes",null,132,3,"Yes",null,132,4,"Yes",143040.51,null,null,null,null,132,6,"Yes",95409.14,132,97,null,85889.35,null,null,null,null,132,9,"Yes"]
["STAFFORD COUNTY PUBLIC SCHOOLS",89,null,null,null,null,null,null,null,null,null,null,null,null,null,null,null,null,null,null,null,null,null,null,null,134,null,null,203535.25,134,2,null,null,134,3,null,null,134,4,null,null,null,null,null,null,134,6,null,null,134,97,null,null,null,null,null,null,134,9]
["STAUNTON CITY PUBLIC SCHOOLS",126,null,null,null,null,null,null,null,null,null,null,null,null,null,null,null,null,null,null,null,null,null,null,null,135,1,"Yes",582345.29,135,2,"Yes",null,135,3,"Yes",null,135,4,"Yes",92642.58,null,null,null,null,135,6,"Yes",825.54,135,97,null,55182.400000000001,null,null,null,null,135,9,"Yes",22726.02]
["SUFFOLK CITY PUBLIC SCHOOLS",127,null,null,null,null,null,null,null,null,null,null,null,null,null,null,null,null,null,null,null,null,null,null,null,136,1,"No",5736458.1900000004,136,2,"No",null,136,3,"No",null,136,4,"No",1120927.6599999999,null,null,null,null,136,6,"No",83615.679999999993,136,97,null,473910.16,null,null,null,null,136,9,"No"]
["SURRY COUNTY PUBLIC SCHOOLS",90,null,null,null,null,null,null,null,null,null,null,null,null,null,null,null,null,null,null,null,null,null,null,null,137,1,"No",45424.18,137,2,"No",null,137,3,"No",null,137,4,"No",23261.02,null,null,null,null,137,6,"No",1886.95,137,97,null,10000,null,null,null,null,137,9,"No"]
["SUSSEX COUNTY PUBLIC SCHOOLS",91,null,null,null,null,null,null,null,null,null,null,null,null,null,null,null,null,null,null,null,null,null,null,null,138,null,null,408279.26,138,2,null,null,138,3,null,null,138,4,null,null,null,null,null,null,138,6,null,null,138,97,null,null,null,null,null,null,138,9]
["TAZEWELL COUNTY PUBLIC SCHOOLS",92,null,null,null,null,null,null,null,null,null,null,null,null,null,null,null,null,null,null,null,null,null,null,null,139,1,"Yes",426422.45,139,2,"Yes",null,139,3,"Yes",null,139,4,"Yes",108496.46,null,null,null,null,139,6,"Yes",7076.08,139,97,null,32610.82,null,null,null,null,139,9,"Yes"]
["VA BEACH CITY PUBLIC SCHOOLS",128,null,null,null,null,null,null,null,null,null,null,null,null,null,null,null,null,null,null,null,null,null,null,null,140,1,null,248360.28,140,2,null,null,140,3,null,null,140,4,null,null,null,null,null,null,140,6,null,null,140,97,null,0,null,null,null,null,140,9]
["VA DEPT OF CORRECTIONAL EDUCATION",900,null,null,null,null,null,null,null,null,null,null,null,null,null,null,null,null,null,null,null,null,null,null,null,142,null,"Yes",103300.01,142,2,"Yes",null,142,3,"Yes",null,142,4,"Yes",41895.93,null,null,null,null,142,6,"Yes",1297.28,142,97,null,10000,null,null,null,null,142,9,"Yes"]
["VIRGINIA COMMONWEALTH UNIVERSITY",881,null,null,null,null,null,null,null,null,null,null,null,null,null,null,null,null,null,null,null,null,null,null,null,143,1,"Yes",1224558.32,143,2,"Yes",null,143,3,"Yes",null,143,4,"Yes",146942.94,null,null,null,null,143,6,"Yes",280566.57,143,97,null,95462.2,null,null,null,null,143,9,"Yes"]
["VSDB STAUNTON",218,null,null,null,null,null,null,null,null,null,null,null,null,null,null,null,null,null,null,null,null,null,null,null,144,1,"Yes",339650.44,144,2,"Yes",null,144,3,"Yes",null,144,4,"Yes",55184.7,null,null,null,null,144,6,"Yes",113806.95,144,97,null,24781.919999999998,null,null,null,null,144,9,"Yes"]
["WARREN COUNTY PUBLIC SCHOOLS",93,null,null,null,null,null,null,null,null,null,null,null,null,null,null,null,null,null,null,null,null,null,null,null,202,1,"Yes",270941.82,202,2,"Yes",null,202,3,"Yes",null,202,4,"Yes",23893.33,null,null,null,null,202,6,"Yes",1061.4100000000001,202,97,null,13838.33,null,null,null,null,202,9,"Yes",11454.09]
["WASHINGTON COUNTY PUBLIC SCHOOLS",94,null,null,null,null,null,null,null,null,null,null,null,null,null,null,null,null,null,null,null,null,null,null,null,207,1,"Yes",61153.61,207,2,"Yes",null,207,3,"Yes",null,207,4,"Yes",15601.91,null,null,null,null,207,6,"Yes",1061.4100000000001,207,97,null,10000,null,null,null,null,207,9,"Yes"]
["WAYNESBORO CITY PUBLIC SCHOOLS",130,null,null,null,null,null,null,null,null,null,null,null,null,null,null,null,null,null,null,null,null,null,null,null,218,1,"No",88380.54,218,2,"No",null,218,3,"No",null,218,4,"No",18032.810000000001,null,null,null,null,218,6,"No",null,218,97,null,10000,null,null,null,null,218,9,"No"]
["WEST POINT TOWN PUBLIC SCHOOLS",207,null,null,null,null,null,null,null,null,null,null,null,null,null,null,null,null,null,null,null,null,null,null,null,219,null,null,null,219,2,null,null,219,3,null,null,219,4,null,null,null,null,null,null,219,6,null,null,219,97,null,0,null,null,null,null,219,9]
["WESTMORELAND COUNTY PUBLIC SCHOOLS",95,null,null,null,null,null,null,null,null,null,null,null,null,null,null,null,null,null,null,null,null,null,null,null,871,null,null,null,871,2,null,151714.47,871,3,null,null,871,4,null,null,null,null,null,null,871,6,null,null,871,97,null,0,null,null,null,null,871,9]
["WILLIAMSBURG CITY PUBLIC SCHOOLS",131,null,null,null,null,null,null,null,null,null,null,null,null,null,null,null,null,null,null,null,null,null,null,null,917,null,null,null,917,2,null,null,917,3,null,null,900,4,null,164890.76999999999,null,null,null,null,917,6,null,null,917,97,null,10000,null,null,null,null,900,9]
["WINCHESTER CITY PUBLIC SCHOOLS",132]
["WISE COUNTY PUBLIC SCHOOLS",96,null,null,null,null,null,null,null,null,null,null,null,null,null,null,null,null,null,null,null,null,null,null,null,null,null,null,216737360.72999996,null,null,null,776748.66999999993,null,null,null,1107013.4500000002,null,null,null,38258742.920000009,null,null,null,0,null,null,null,11670119.999999991,null,null,null,{"$f":"SUM(BA3:BA143)","v":18347051.999999996},null,null,null,null,null,null,null,1952272.8000000007]
["WOODROW WILSON REHABILITATION CTR",947]
["WYTHE COUNTY PUBLIC SCHOOLS",97,null,null,null,null,null,null,null,null,null,null,null,null,null,null,null,null,null,null,null,null,null,null,null,null,null,null,null,null,null,null,null,null,null,null,null,null,null,null,null,null,null,null,null,null,null,null,null,null,null,null,{"$f":"BA144-18347052","v":0}]
["YORK COUNTY PUBLIC SCHOOLS",98,null,null,null,null,null,null,null,null,null,null,null,null,null,null,null,null,null,null,null,null,null,null,null,null,null,null,null,null,null,null,null,null,null,null,null,null,null,null,null,null,null,null,null,null,null,null,null,null,null,null,null,null,null,null,null,null,null,null,0]
[]
[null,null,null,null,null,null,null,null,null,null,null,null,null,null,null,null,null,null,null,null,null,null,null,null,1]
[null,null,null,null,null,null,null,null,null,null,null,null,null,null,null,null,null,null,null,null,null,null,null,null,2]
[null,null,null,null,null,null,null,null,null,null,null,null,null,null,null,null,null,null,null,null,null,null,null,null,3]
[null,null,null,null,null,null,null,null,null,null,null,null,null,null,null,null,null,null,null,null,null,null,null,null,4]
[null,null,null,null,null,null,null,null,null,null,null,null,null,null,null,null,null,null,null,null,null,null,null,null,5]
[null,null,null,null,null,null,null,null,null,null,null,null,null,null,null,null,null,null,null,null,null,null,null,null,6]
[null,null,null,null,null,null,null,null,null,null,null,null,null,null,null,null,null,null,null,null,null,null,null,null,7]
[null,null,null,null,null,null,null,null,null,null,null,null,null,null,null,null,null,null,null,null,null,null,null,null,8]
[null,null,null,null,null,null,null,null,null,null,null,null,null,null,null,null,null,null,null,null,null,null,null,null,9]
[null,null,null,null,null,null,null,null,null,null,null,null,null,null,null,null,null,null,null,null,null,null,null,null,10]
[null,null,null,null,null,null,null,null,null,null,null,null,null,null,null,null,null,null,null,null,null,null,null,null,11]
[null,null,null,null,null,null,null,null,null,null,null,null,null,null,null,null,null,null,null,null,null,null,null,null,12]
[null,null,null,null,null,null,null,null,null,null,null,null,null,null,null,null,null,null,null,null,null,null,null,null,13]
[null,null,null,null,null,null,null,null,null,null,null,null,null,null,null,null,null,null,null,null,null,null,null,null,14]
[null,null,null,null,null,null,null,null,null,null,null,null,null,null,null,null,null,null,null,null,null,null,null,null,15]
[null,null,null,null,null,null,null,null,null,null,null,null,null,null,null,null,null,null,null,null,null,null,null,null,16]
[null,null,null,null,null,null,null,null,null,null,null,null,null,null,null,null,null,null,null,null,null,null,null,null,17]
[null,null,null,null,null,null,null,null,null,null,null,null,null,null,null,null,null,null,null,null,null,null,null,null,18]
[null,null,null,null,null,null,null,null,null,null,null,null,null,null,null,null,null,null,null,null,null,null,null,null,19]
[null,null,null,null,null,null,null,null,null,null,null,null,null,null,null,null,null,null,null,null,null,null,null,null,20]
[null,null,null,null,null,null,null,null,null,null,null,null,null,null,null,null,null,null,null,null,null,null,null,null,21]
[null,null,null,null,null,null,null,null,null,null,null,null,null,null,null,null,null,null,null,null,null,null,null,null,22]
[null,null,null,null,null,null,null,null,null,null,null,null,null,null,null,null,null,null,null,null,null,null,null,null,23]
[null,null,null,null,null,null,null,null,null,null,null,null,null,null,null,null,null,null,null,null,null,null,null,null,24]
[null,null,null,null,null,null,null,null,null,null,null,null,null,null,null,null,null,null,null,null,null,null,null,null,25]
[null,null,null,null,null,null,null,null,null,null,null,null,null,null,null,null,null,null,null,null,null,null,null,null,26]
[null,null,null,null,null,null,null,null,null,null,null,null,null,null,null,null,null,null,null,null,null,null,null,null,27]
[null,null,null,null,null,null,null,null,null,null,null,null,null,null,null,null,null,null,null,null,null,null,null,null,28]
[null,null,null,null,null,null,null,null,null,null,null,null,null,null,null,null,null,null,null,null,null,null,null,null,29]
[null,null,null,null,null,null,null,null,null,null,null,null,null,null,null,null,null,null,null,null,null,null,null,null,30]
[null,null,null,null,null,null,null,null,null,null,null,null,null,null,null,null,null,null,null,null,null,null,null,null,31]
[null,null,null,null,null,null,null,null,null,null,null,null,null,null,null,null,null,null,null,null,null,null,null,null,32]
[null,null,null,null,null,null,null,null,null,null,null,null,null,null,null,null,null,null,null,null,null,null,null,null,33]
[null,null,null,null,null,null,null,null,null,null,null,null,null,null,null,null,null,null,null,null,null,null,null,null,34]
[null,null,null,null,null,null,null,null,null,null,null,null,null,null,null,null,null,null,null,null,null,null,null,null,35]
[null,null,null,null,null,null,null,null,null,null,null,null,null,null,null,null,null,null,null,null,null,null,null,null,36]
[null,null,null,null,null,null,null,null,null,null,null,null,null,null,null,null,null,null,null,null,null,null,null,null,37]
[null,null,null,null,null,null,null,null,null,null,null,null,null,null,null,null,null,null,null,null,null,null,null,null,38]
[null,null,null,null,null,null,null,null,null,null,null,null,null,null,null,null,null,null,null,null,null,null,null,null,39]
[null,null,null,null,null,null,null,null,null,null,null,null,null,null,null,null,null,null,null,null,null,null,null,null,40]
[null,null,null,null,null,null,null,null,null,null,null,null,null,null,null,null,null,null,null,null,null,null,null,null,41]
[null,null,null,null,null,null,null,null,null,null,null,null,null,null,null,null,null,null,null,null,null,null,null,null,42]
[null,null,null,null,null,null,null,null,null,null,null,null,null,null,null,null,null,null,null,null,null,null,null,null,43]
[null,null,null,null,null,null,null,null,null,null,null,null,null,null,null,null,null,null,null,null,null,null,null,null,44]
[null,null,null,null,null,null,null,null,null,null,null,null,null,null,null,null,null,null,null,null,null,null,null,null,45]
[null,null,null,null,null,null,null,null,null,null,null,null,null,null,null,null,null,null,null,null,null,null,null,null,46]
[null,null,null,null,null,null,null,null,null,null,null,null,null,null,null,null,null,null,null,null,null,null,null,null,47]
[null,null,null,null,null,null,null,null,null,null,null,null,null,null,null,null,null,null,null,null,null,null,null,null,48]
[null,null,null,null,null,null,null,null,null,null,null,null,null,null,null,null,null,null,null,null,null,null,null,null,49]
[null,null,null,null,null,null,null,null,null,null,null,null,null,null,null,null,null,null,null,null,null,null,null,null,50]
[null,null,null,null,null,null,null,null,null,null,null,null,null,null,null,null,null,null,null,null,null,null,null,null,51]
[null,null,null,null,null,null,null,null,null,null,null,null,null,null,null,null,null,null,null,null,null,null,null,null,52]
[null,null,null,null,null,null,null,null,null,null,null,null,null,null,null,null,null,null,null,null,null,null,null,null,53]
[null,null,null,null,null,null,null,null,null,null,null,null,null,null,null,null,null,null,null,null,null,null,null,null,54]
[null,null,null,null,null,null,null,null,null,null,null,null,null,null,null,null,null,null,null,null,null,null,null,null,55]
[null,null,null,null,null,null,null,null,null,null,null,null,null,null,null,null,null,null,null,null,null,null,null,null,56]
[null,null,null,null,null,null,null,null,null,null,null,null,null,null,null,null,null,null,null,null,null,null,null,null,57]
[null,null,null,null,null,null,null,null,null,null,null,null,null,null,null,null,null,null,null,null,null,null,null,null,58]
[null,null,null,null,null,null,null,null,null,null,null,null,null,null,null,null,null,null,null,null,null,null,null,null,59]
[null,null,null,null,null,null,null,null,null,null,null,null,null,null,null,null,null,null,null,null,null,null,null,null,60]
[null,null,null,null,null,null,null,null,null,null,null,null,null,null,null,null,null,null,null,null,null,null,null,null,62]
[null,null,null,null,null,null,null,null,null,null,null,null,null,null,null,null,null,null,null,null,null,null,null,null,63]
[null,null,null,null,null,null,null,null,null,null,null,null,null,null,null,null,null,null,null,null,null,null,null,null,65]
[null,null,null,null,null,null,null,null,null,null,null,null,null,null,null,null,null,null,null,null,null,null,null,null,66]
[null,null,null,null,null,null,null,null,null,null,null,null,null,null,null,null,null,null,null,null,null,null,null,null,67]
[null,null,null,null,null,null,null,null,null,null,null,null,null,null,null,null,null,null,null,null,null,null,null,null,68]
[null,null,null,null,null,null,null,null,null,null,null,null,null,null,null,null,null,null,null,null,null,null,null,null,69]
[null,null,null,null,null,null,null,null,null,null,null,null,null,null,null,null,null,null,null,null,null,null,null,null,70]
[null,null,null,null,null,null,null,null,null,null,null,null,null,null,null,null,null,null,null,null,null,null,null,null,71]
[null,null,null,null,null,null,null,null,null,null,null,null,null,null,null,null,null,null,null,null,null,null,null,null,72]
[null,null,null,null,null,null,null,null,null,null,null,null,null,null,null,null,null,null,null,null,null,null,null,null,73]
[null,null,null,null,null,null,null,null,null,null,null,null,null,null,null,null,null,null,null,null,null,null,null,null,74]
[null,null,null,null,null,null,null,null,null,null,null,null,null,null,null,null,null,null,null,null,null,null,null,null,75]
[null,null,null,null,null,null,null,null,null,null,null,null,null,null,null,null,null,null,null,null,null,null,null,null,77]
[null,null,null,null,null,null,null,null,null,null,null,null,null,null,null,null,null,null,null,null,null,null,null,null,78]
[null,null,null,null,null,null,null,null,null,null,null,null,null,null,null,null,null,null,null,null,null,null,null,null,79]
[null,null,null,null,null,null,null,null,null,null,null,null,null,null,null,null,null,null,null,null,null,null,null,null,80]
[null,null,null,null,null,null,null,null,null,null,null,null,null,null,null,null,null,null,null,null,null,null,null,null,81]
[null,null,null,null,null,null,null,null,null,null,null,null,null,null,null,null,null,null,null,null,null,null,null,null,82]
[null,null,null,null,null,null,null,null,null,null,null,null,null,null,null,null,null,null,null,null,null,null,null,null,83]
[null,null,null,null,null,null,null,null,null,null,null,null,null,null,null,null,null,null,null,null,null,null,null,null,84]
[null,null,null,null,null,null,null,null,null,null,null,null,null,null,null,null,null,null,null,null,null,null,null,null,85]
[null,null,null,null,null,null,null,null,null,null,null,null,null,null,null,null,null,null,null,null,null,null,null,null,86]
[null,null,null,null,null,null,null,null,null,null,null,null,null,null,null,null,null,null,null,null,null,null,null,null,87]
[null,null,null,null,null,null,null,null,null,null,null,null,null,null,null,null,null,null,null,null,null,null,null,null,88]
[null,null,null,null,null,null,null,null,null,null,null,null,null,null,null,null,null,null,null,null,null,null,null,null,89]
[null,null,null,null,null,null,null,null,null,null,null,null,null,null,null,null,null,null,null,null,null,null,null,null,90]
[null,null,null,null,null,null,null,null,null,null,null,null,null,null,null,null,null,null,null,null,null,null,null,null,91]
[null,null,null,null,null,null,null,null,null,null,null,null,null,null,null,null,null,null,null,null,null,null,null,null,92]
[null,null,null,null,null,null,null,null,null,null,null,null,null,null,null,null,null,null,null,null,null,null,null,null,93]
[null,null,null,null,null,null,null,null,null,null,null,null,null,null,null,null,null,null,null,null,null,null,null,null,94]
[null,null,null,null,null,null,null,null,null,null,null,null,null,null,null,null,null,null,null,null,null,null,null,null,95]
[null,null,null,null,null,null,null,null,null,null,null,null,null,null,null,null,null,null,null,null,null,null,null,null,96]
[null,null,null,null,null,null,null,null,null,null,null,null,null,null,null,null,null,null,null,null,null,null,null,null,97]
[null,null,null,null,null,null,null,null,null,null,null,null,null,null,null,null,null,null,null,null,null,null,null,null,98]
[null,null,null,null,null,null,null,null,null,null,null,null,null,null,null,null,null,null,null,null,null,null,null,null,101]
[null,null,null,null,null,null,null,null,null,null,null,null,null,null,null,null,null,null,null,null,null,null,null,null,102]
[null,null,null,null,null,null,null,null,null,null,null,null,null,null,null,null,null,null,null,null,null,null,null,null,103]
[null,null,null,null,null,null,null,null,null,null,null,null,null,null,null,null,null,null,null,null,null,null,null,null,104]
[null,null,null,null,null,null,null,null,null,null,null,null,null,null,null,null,null,null,null,null,null,null,null,null,106]
[null,null,null,null,null,null,null,null,null,null,null,null,null,null,null,null,null,null,null,null,null,null,null,null,107]
[null,null,null,null,null,null,null,null,null,null,null,null,null,null,null,null,null,null,null,null,null,null,null,null,108]
[null,null,null,null,null,null,null,null,null,null,null,null,null,null,null,null,null,null,null,null,null,null,null,null,109]
[null,null,null,null,null,null,null,null,null,null,null,null,null,null,null,null,null,null,null,null,null,null,null,null,110]
[null,null,null,null,null,null,null,null,null,null,null,null,null,null,null,null,null,null,null,null,null,null,null,null,111]
[null,null,null,null,null,null,null,null,null,null,null,null,null,null,null,null,null,null,null,null,null,null,null,null,112]
[null,null,null,null,null,null,null,null,null,null,null,null,null,null,null,null,null,null,null,null,null,null,null,null,113]
[null,null,null,null,null,null,null,null,null,null,null,null,null,null,null,null,null,null,null,null,null,null,null,null,114]
[null,null,null,null,null,null,null,null,null,null,null,null,null,null,null,null,null,null,null,null,null,null,null,null,115]
[null,null,null,null,null,null,null,null,null,null,null,null,null,null,null,null,null,null,null,null,null,null,null,null,116]
[null,null,null,null,null,null,null,null,null,null,null,null,null,null,null,null,null,null,null,null,null,null,null,null,117]
[null,null,null,null,null,null,null,null,null,null,null,null,null,null,null,null,null,null,null,null,null,null,null,null,118]
[null,null,null,null,null,null,null,null,null,null,null,null,null,null,null,null,null,null,null,null,null,null,null,null,119]
[null,null,null,null,null,null,null,null,null,null,null,null,null,null,null,null,null,null,null,null,null,null,null,null,120]
[null,null,null,null,null,null,null,null,null,null,null,null,null,null,null,null,null,null,null,null,null,null,null,null,121]
[null,null,null,null,null,null,null,null,null,null,null,null,null,null,null,null,null,null,null,null,null,null,null,null,122]
[null,null,null,null,null,null,null,null,null,null,null,null,null,null,null,null,null,null,null,null,null,null,null,null,123]
[null,null,null,null,null,null,null,null,null,null,null,null,null,null,null,null,null,null,null,null,null,null,null,null,124]
[null,null,null,null,null,null,null,null,null,null,null,null,null,null,null,null,null,null,null,null,null,null,null,null,126]
[null,null,null,null,null,null,null,null,null,null,null,null,null,null,null,null,null,null,null,null,null,null,null,null,127]
[null,null,null,null,null,null,null,null,null,null,null,null,null,null,null,null,null,null,null,null,null,null,null,null,128]
[null,null,null,null,null,null,null,null,null,null,null,null,null,null,null,null,null,null,null,null,null,null,null,null,130]
[null,null,null,null,null,null,null,null,null,null,null,null,null,null,null,null,null,null,null,null,null,null,null,null,131]
[null,null,null,null,null,null,null,null,null,null,null,null,null,null,null,null,null,null,null,null,null,null,null,null,132]
[null,null,null,null,null,null,null,null,null,null,null,null,null,null,null,null,null,null,null,null,null,null,null,null,134]
[null,null,null,null,null,null,null,null,null,null,null,null,null,null,null,null,null,null,null,null,null,null,null,null,135]
[null,null,null,null,null,null,null,null,null,null,null,null,null,null,null,null,null,null,null,null,null,null,null,null,136]
[null,null,null,null,null,null,null,null,null,null,null,null,null,null,null,null,null,null,null,null,null,null,null,null,137]
[null,null,null,null,null,null,null,null,null,null,null,null,null,null,null,null,null,null,null,null,null,null,null,null,138]
[null,null,null,null,null,null,null,null,null,null,null,null,null,null,null,null,null,null,null,null,null,null,null,null,139]
[null,null,null,null,null,null,null,null,null,null,null,null,null,null,null,null,null,null,null,null,null,null,null,null,140]
[null,null,null,null,null,null,null,null,null,null,null,null,null,null,null,null,null,null,null,null,null,null,null,null,142]
[null,null,null,null,null,null,null,null,null,null,null,null,null,null,null,null,null,null,null,null,null,null,null,null,143]
[null,null,null,null,null,null,null,null,null,null,null,null,null,null,null,null,null,null,null,null,null,null,null,null,144]
[null,null,null,null,null,null,null,null,null,null,null,null,null,null,null,null,null,null,null,null,null,null,null,null,202]
[null,null,null,null,null,null,null,null,null,null,null,null,null,null,null,null,null,null,null,null,null,null,null,null,207]
[null,null,null,null,null,null,null,null,null,null,null,null,null,null,null,null,null,null,null,null,null,null,null,null,218]
[null,null,null,null,null,null,null,null,null,null,null,null,null,null,null,null,null,null,null,null,null,null,null,null,219]
[null,null,null,null,null,null,null,null,null,null,null,null,null,null,null,null,null,null,null,null,null,null,null,null,871]
[null,null,null,null,null,null,null,null,null,null,null,null,null,null,null,null,null,null,null,null,null,null,null,null,917]

{"sheet":"Sheet1","index":8,"n_rows":3,"n_cols":5,"rows_kept":3,"cut":false,"hidden":true,"merged":[]}
["Well Rounded Students",null,"Yes",null,"Title II, Part A, Transferability"]
["Safe and Healthy Students",null,"No"]
["Technology"]

{"sheet":"Eisenhower","index":9,"n_rows":137,"n_cols":3,"rows_kept":137,"cut":false,"hidden":true,"merged":[]}
["Division","Payee Code","Eisenhower 2001-02 Allocation"]
["Accomack County Public Schools",1,40219]
["Albemarle County Public Schools",2,51797]
["Alleghany County Public Schools",3,17117]
["Amelia County Public Schools",4,9570]
["Amherst County Public Schools",5,23328]
["Appomattox County Public Schools",6,13233]
["Arlington City Public Schools",7,95426]
["Augusta County Public Schools",8,46299]
["Bath County Public Schools",9,4106]
["Bedford City Public Schools",10,45969]
["Bland County Public Schools",11,4276]
["Botetourt County Public Schools",12,17978]
["Brunswick County Public Schools",13,20999]
["Buchanan County Public Schools",14,45671]
["Buckingham County Public Schools",15,16039]
["Campbell County Public Schools",16,43611]
["Caroline County Public Schools",17,21130]
["Carroll County Public Schools",18,24846]
["Charles City County Public Schools",19,6554]
["Charlotte County Public Schools",20,14605]
["Chesterfield County Public Schools",21,203846]
["Clarke County Public Schools",22,9598]
["Craig County Public Schools",23,3793]
["Culpeper County Public Schools",24,28401]
["Cumberland County Public Schools",25,9657]
["Dickenson County Public Schools",26,30316]
["Dinwiddie County Public Schools",27,23432]
["Essex County Public Schools",28,9550]
["Fairfax City Public Schools",29,598091]
["Fauquier County Public Schools",30,41272]
["Floyd County Public Schools",31,11053]
["Fluvanna County Public Schools",32,14485]
["Franklin County Public Schools",33,38410]
["Frederick County Public Schools",34,44378]
["Giles County Public Schools",35,14946]
["Gloucester County Public Schools",36,32788]
["Goochland County Public Schools",37,8628]
["Grayson County Public Schools",38,16690]
["Greene County Public Schools",39,14718]
["Greensville County Public Schools",40,20374]
["Halifax County Public Schools",41,38749]
["Hanover County Public Schools",42,57659]
["Henrico County Public Schools",43,178303]
["Henry County Public Schools",44,52795]
["Highland County Public Schools",45,1935]
["Isle of Wight County Public Schools",46,27152]
["King George County Public Schools",48,13419]
["King and Queen County Public Schools",49,6912]
["King William County Public Schools",50,8380]
["Lancaster County Public Schools",51,10507]
["Lee County Public Schools",52,41263]
["Loudoun County Public Schools",53,96953]
["Louisa County Public Schools",54,23738]
["Lunenburg County Public Schools",55,15190]
["Madison County Public Schools",56,11853]
["Mathews County Public Schools",57,7014]
["Mecklenburg County Public Schools",58,32938]
["Middlesex County Public Schools",59,8368]
["Montgomery County Public Schools",60,54140]
["Nelson County Public Schools",62,13815]
["New Kent County Public Schools",63,9077]
["Northampton County Public Schools",65,21346]
["Northumberland County Public Schools",66,10384]
["Nottoway County Public Schools",67,18218]
["Orange County Public Schools",68,18979]
["Page County Public Schools",69,21063]
["Patrick County Public Schools",70,16611]
["Pittsylvania County Public Schools",71,52751]
["Powhatan County Public Schools",72,13446]
["Prince Edward County Public Schools",73,21122]
["Prince George County Public Schools",74,242268]
["Prince William County Public Schools",75,196730]
["Pulaski County Public Schools",77,33374]
["Rappahannock County Public Schools",78,5138]
["Richmond County Public Schools",79,8129]
["Roanoke  County Public Schools",80,51084]
["Rockbridge County Public Schools",81,16141]
["Rockingham County Public Schools",82,47793]
["Russell County Public Schools",83,38558]
["Scott County Public Schools",84,25851]
["Shenandoah County Public Schools",85,29778]
["Smyth County Public Schools",86,36172]
["Southampton County Public Schools",87,18229]
["Spotsylvania County Public Schools",88,69801]
["Stafford County Public Schools",89,72619]
["Surry County Public Schools",90,7504]
["Sussex County Public Schools",91,12362]
["Tazewell County Public Schools",92,60941]
["Warren County Public Schools",93,25597]
["Washington County Public Schools",94,44834]
["Westmoreland County Public Schools",95,14506]
["Wise County Public Schools",96,61108]
["Wythe County Public Schools",97,30649]
["York County Public Schools",98,46236]
["Alexandria City Public Schools",101,69247]
["Bristol City Public Schools",102,21473]
["Buena Vista City Public Schools",103,6888]
["Charlottesville City Public Schools",104,38826]
["Colonial Heights City Public Schools",106,12438]
["Covington City Public Schools",107,7236]
["Danville City Public Schools",108,72571]
["Falls Church City Public Schools",109,7301]
["Fredericksburg City Public Schools",110,17330]
["Galax City Public Schools",111,9206]
["Hampton City Public Schools",112,149143]
["Harrisonburg City Public Schools",113,25488]
["Hopewell City Public Schools",114,30889]
["Lynchburg City Public Schools",115,78002]
["Martinsville City Public Schools",116,18810]
["Newport News City Public Schools",117,230453]
["Norfolk City Public Schools",118,339860]
["Norton City Public Schools",119,6864]
["Petersburg City Public Schools",120,52679]
["Portsmouth City Public Schools",121,152072]
["Radford City Public Schools",122,8930]
["Richmond City Public Schools",123,281765]
["Roanoke City Public Schools",124,122107]
["Staunton City Public Schools",126,19574]
["Suffolk City Public Schools",127,79656]
["Virginia Beach City Public Schools",128,384961]
["Waynesboro City Public Schools",130,19429]
["Williamsburg City Public Schools",131,37910]
["Winchester City Public Schools",132,21654]
["Fairfax City Public Schools",134,10264]
["Franklin City Public Schools",135,13179]
["Chesapeake City Public Schools",136,190847]
["Lexington City Public Schools",137,3719]
["Salem City Public Schools",139,18844]
["Poquoson City Public Schools",142,8712]
["Manassas City Public Schools",143,26521]
["Manassas Park City Public Schools",144,7878]
["Colonial Beach Town Public Schools",202,3794]
["West Point Town Public Schools",207,3095]
["VSDB Staunton",218,2806]
["VSDB Hampton",219,1708]
["Va Dept of Correctional Education",900,36639]